Workbook

Sheet Indkøb
A1: Indkøbsliste til en fisketur, ferietur eller andet ophold i naturen, hvor logi med køkken er til rådighed. | AA1: Disse retter må ikke ændres
AA2: Varme retter
A3: Indsæt antal voksne personer: | C3: 8 | F3: Indsæt antal dage: | G3: 7 | I3: Udarbejdet af Jørgen Walter ©
C4: =+C3+C5/2 -> 8 | F4: Antal voksne og børn: | G4: =+C3+C5 -> 8 | AA4: Svinekød
A5: Indsæt antal børn under 18 år: | C5: 0 | F5: Vælg ankomst dag: | G5: Lørdag | I5: Opskrifter kommer løbende ind på siden | AA5: Flæskesteg med ridset svær
AA6: Koteletter med skaft
A7: FORSLAG TIL VARME RETTER I OPHOLDSPERIODEN. DER SKAL INDKØBES DETTE TIL DEN VARME RET. | I7: www.walter-lystfisker.dk | AA7: Winersnitzel med ansjoser
A8: VIS GODE RÅD | D8: VIS MENU | AA8: Frikadeller med tilbehør
A9: =+List!A21 -> Lørdag | B9: Flæskesteg med ridset svær | E9: =+List!K6 -> 4 Kg Flæskesteg med ridset svær | I9: COPYRIGHT © 2014 | AA9: Rødvinsgryde med landbrød
A10: =IF($G$3>1,List!A22,"Ingen") -> Søndag | B10: Dansk hakkebøf med bløde løg | E10: =IF($G$3>=2,List!K9,"") -> 2 Kg Dansk hakkebøf med bløde løg | AA10: Karbonader med ost/uden ost
A11: =IF($G$3>2,List!A23,"Ingen") -> Mandag | B11: Coq au vin Bourgogne | E11: =IF($G$3>=3,List!K12,"") -> 1 Stk Coq au vin Bourgogne | AA11: Guleærter med koteletter og chili
A12: =IF($G$3>3,List!A24,"Ingen") -> Tirsdag | B12: Kogt ørred med fiskesauce | E12: =IF($G$3>=4,List!K15,"") -> 4 Kg Kogt ørred med fiskesauce
A13: =IF($G$3>4,List!A25,"Ingen") -> Onsdag | B13: Haresteg eller kaninsteg | E13: =IF($G$3>=5,List!K18,"") -> 2 Stk Haresteg eller kaninsteg | AA13: Oksekød
A14: =IF($G$3>5,List!A26,"Ingen") -> Torsdag | B14: Walters Pariserbøffer | E14: =IF($G$3>=6,List!K21,"") -> 800 g Walters Pariserbøffer | AA14: Dansk hakkebøf med bløde løg
A15: =IF($G$3>6,List!A27,"Ingen") -> Fredag | B15: Jørgen Walters fiskekage | E15: =IF($G$3>=7,List!K24,"") -> 2 hel Jørgen Walters fiskekage | AA15: Tournedos beef med bainase souce
A16: =IF($G$3>6,List!A28,"Ingen") -> Spise ude | B16: Spise på Grillen | E16: =IF($G$3>=7,List!K27,"") -> Spise på Grillen | AA16: T-bone steak med bagte kartofler
A17: Indkøb af diverse fødevarer afrundet til normal vægt og stk. Der vælges efter behag fra listen. | AA17: Osso buco med grøntsager
AA18: Beef Stroganoff med kartoffelmos
A19: =+Mængde!A19 -> Mejeri produkter | B19: =+Mængde!B19 -> Brød / Deserter | C19: =+Mængde!C19 -> Kolonial varer | D19: =+Mængde!D19 -> Slagter varer | E19: =+Mængde!E19 -> Grøntsager | F19: =+Mængde!F19 -> Drikke varer | G19: =+Mængde!G19 -> Køkken varer | AA19: Oksekødsgryde med rodfrugter
A20: =+Mængde!A20 -> Smør Kg | B20: =+Mængde!B20 -> Boller i stk | C20: =+Mængde!C20 -> Sukker Kg | D20: =+Mængde!D20 -> Leverpostej Kg | E20: =+Mængde!E20 -> Kartofler Kg | F20: =+Mængde!F20 -> Rødvin fl. | G20: =+Mængde!G20 -> Sulfo sæbe fl. | AA20: Engelsk bøf med svampe og løg
A21: =ROUND(Mængde!A21*Indkøb!$G$3*$G$4,2) -> 1 | B21: =+Mængde!B21*Indkøb!$G$3*$G$4 -> 56 | C21: =ROUND(Mængde!C21*Indkøb!$G$3*$G$4/10,2)*2.5 -> 0.7 | D21: =ROUND(Mængde!D21*Indkøb!$G$3*$G$4/5,1)*5 -> 3 | E21: =ROUND(Mængde!E21*Indkøb!$G$3*$G$4/5,1)*5 -> 5.5 | F21: =+Mængde!F21*Indkøb!$G$3*$C$3 -> 28 | G21: =+Mængde!G21 -> 1
A22: =+Mængde!A22 -> Margarine Kg | B22: =+Mængde!B22 -> Rundstykker stk | C22: =+Mængde!C22 -> Mel Kg | D22: =+Mængde!D22 -> Rullepølse skiver | E22: =+Mængde!E22 -> Små kartofler Kg | F22: =+Mængde!F22 -> Hvidvin fl. | G22: =+Mængde!G22 -> Viskestykke stk. | AA22: Fjerkræ
A23: =ROUND(Mængde!A23*Indkøb!$G$3*$G$4,2) -> 1 | B23: =+Mængde!B23*Indkøb!$G$3*$G$4 -> 56 | C23: =ROUND(Mængde!C23*Indkøb!$G$3*$G$4/5,2)*5 -> 2.8 | D23: =+Mængde!D23*Indkøb!$G$3*$G$4 -> 112 | E23: =ROUND(Mængde!E23*Indkøb!$G$3*$G$4/5,1)*5 -> 5.5 | F23: =+Mængde!F23*Indkøb!$G$3*$C$3 -> 28 | G23: =+Mængde!G23*Indkøb!$C$3 -> 8 | AA23: Coq au vin Bourgogne
A24: =+Mængde!A24 -> Let mælk lt. | B24: =+Mængde!B24 -> Franskbrød | C24: =+Mængde!C24 -> Salt kg | D24: =+Mængde!D24 -> Spegepølse skiver | E24: =+Mængde!E24 -> Gulerødder stk | F24: =+Mængde!F24 -> Hof fl. | G24: =+Mængde!G24 -> Karklude | AA24: And med rødkål og brune kartofler
A25: =ROUND(Mængde!A25*Indkøb!$G$3*$G$4/10,2)*5 -> 7 | B25: =+Mængde!B25 -> 1 | C25: =ROUND(Mængde!C25*Indkøb!$G$3*$G$4/5,2)*5 -> 2.8 | D25: =+Mængde!D25*Indkøb!$G$3*$G$4 -> 112 | E25: =ROUND(Mængde!E25*$G$4/5,1)*5 -> 8 | F25: =+Mængde!F25*Indkøb!$G$3*$C$3 -> 224 | G25: =+Mængde!G25*Indkøb!$C$3 -> 8 | AA25: Høne i peperrodsauce
A26: =+Mængde!A26 -> Sødmælk lt. | B26: =+Mængde!B26 -> Toastbrød | C26: =+Mængde!C26 -> Hvid peber pk. | D26: =+Mængde!D26 -> Sky pk. | E26: =+Mængde!E26 -> Porer stk | F26: =+Mængde!F26 -> Tuborg fl. | G26: =+Mængde!G26 -> Grydesvamp | AA26: Hønsekødsuppe med boller
A27: =ROUND(Mængde!A27*Indkøb!$G$3*$G$4/10,2)*5 -> 7 | B27: =+Mængde!B27 -> 1 | C27: =+Mængde!C27 -> 1 | D27: =+Mængde!D27 -> 1 | E27: =ROUND(Mængde!E27*$G$4/5,1)*5 -> 8 | F27: =+Mængde!F27*Indkøb!$G$3*$C$3 -> 224 | G27: =+Mængde!G27 -> 1 | AA27: Kalkun, lynstegt med grøntsager
A28: =+Mængde!A28 -> Kaffe fløde dl. | B28: =+Mængde!B28 -> Fuldkornsbrød skiver | C28: =+Mængde!C28 -> Sort peber pk. | D28: =+Mængde!D28 -> Kryder fedt pk. | E28: =+Mængde!E28 -> Tomater stk | F28: =+Mængde!F28 -> Andet øl fl. | G28: =+Mængde!G28 -> Gummibånd | AA28: Duer med safransauce og ris
A29: =ROUND(Mængde!A29*Indkøb!$G$3*$G$4/10,2)*10 -> 2.8 | B29: =+Mængde!B29*Indkøb!$G$3*$G$4 -> 56 | C29: =+Mængde!C29 -> 1 | D29: =+Mængde!D29 -> 1 | E29: =ROUND(Mængde!E29*$G$4/5,1)*5 -> 16 | F29: =+Mængde!F29*Indkøb!$G$3*$C$3 -> 224 | G29: =+Mængde!G29*Indkøb!$C$3*G3 -> 56 | AA29: Stegt andebryst i rødvinssauce
A30: =+Mængde!A30 -> Piske fløde lt. | B30: =+Mængde!B30 -> Rugbrød skiver | C30: =+Mængde!C30 -> Paprika pk. | D30: =+Mængde!D30 -> Bacon skiver | E30: =+Mængde!E30 -> Agurker stk | F30: =+Mængde!F30 -> Juice 1 l | G30: =+Mængde!G30 -> Tændstikker stor
A31: =ROUND(Mængde!A31*Indkøb!$G$3*$G$4/10,2)*10 -> 2.8 | B31: =+Mængde!B31*Indkøb!$G$3*$G$4 -> 56 | C31: =+Mængde!C31 -> 1 | D31: =+Mængde!D31*$G$3*$G$4 -> 56 | E31: =ROUND(Mængde!E31*$G$4/10,1)*5 -> 4 | F31: =ROUND(Mængde!F31*Indkøb!$G$3*$G$4/10,1)*5 -> 7 | G31: =+Mængde!G31 -> 1 | AA31: Fisk
A32: =+Mængde!A32 -> Skrabe æg stk | B32: =+Mængde!B32 -> Snacks pose | C32: =+Mængde!C32 -> Carry pk. | D32: =+Mængde!D32 -> Pølser stk. | E32: =+Mængde!E32 -> Chili peber stk | F32: =+Mængde!F32 -> Sodavand fl. | G32: =+Mængde!G32 -> Gl. Aviser stk. | AA32: Kogt ørred med fiskesauce
A33: =+Mængde!A33*Indkøb!$G$3*$G$4 -> 56 | B33: =+Mængde!B33 -> 1 | C33: =+Mængde!C33 -> 1 | D33: =+Mængde!D33*$G$4 -> 32 | E33: =ROUND(Mængde!E33*$G$4/5,1)*5 -> 8 | F33: =+Mængde!F33*$G$3*Indkøb!$C$5 -> 0 | G33: =+Mængde!G33*G3 -> 7 | AA33: Ovn stegt laks eller ørred i folie
A34: =+Mængde!A34 -> Ost skiver | B34: =+Mængde!B34 -> Ostestænger pose | C34: =+Mængde!C34 -> Jomfru olivenolie fl. | D34: =+Mængde!D34 -> Grill pølser stk. | E34: =+Mængde!E34 -> Grøn peber stk | F34: =+Mængde!F34 -> Cider | G34: =+Mængde!G34 -> Toiletpapir rl. | AA34: Fiskedeller med remo
A35: =+Mængde!A35*Indkøb!$G$3*$G$4 -> 112 | B35: =+Mængde!B35 -> 1 | C35: =+Mængde!C35 -> 1 | D35: =+Mængde!D35*$G$4 -> 16 | E35: =ROUND(Mængde!E35*$G$4/10,1)*5 -> 4 | F35: =+Mængde!F35*$G$3*Indkøb!$C$5 -> 0 | G35: =+Mængde!G35*Indkøb!$G$3*$G$4/4 -> 14 | AA35: Fiskefillet med remo og citron
A36: =+Mængde!A36 -> Brie ost | B36: =+Mængde!B36 -> Smørtyve pose | C36: =+Mængde!C36 -> Vineddike hvid fl. | D36: =+Mængde!D36 -> Bainase pk. | E36: =+Mængde!E36 -> Gul peber stk | F36: =+Mængde!F36 -> Gl. Dansk fl. | G36: =+Mængde!G36 -> Køkkenruller rl. | AA36: Kogt torsk med sennepsauce
A37: =+Mængde!A37 -> 1 | B37: =+Mængde!B37 -> 1 | C37: =+Mængde!C37 -> 1 | D37: =+Mængde!D37*$G$4/2 -> 4 | E37: =ROUND(Mængde!E37*$G$4/10,1)*5 -> 4 | F37: =ROUND(Mængde!F37*$C$3*$G$3,0)/2 -> 3 | G37: =+Mængde!G37*Indkøb!$G$3 -> 7 | AA37: Fiskesuppe hot chili
A38: =+Mængde!A38 -> Youghurt lt. | B38: =+Mængde!B38 -> Tuch kiks pk. | C38: =+Mængde!C38 -> Vineddike rød fl. | D38: =+Mængde!D38 -> 0 | E38: =+Mængde!E38 -> Rød peber stk | F38: =+Mængde!F38 -> Whisky fl. | G38: =+Mængde!G38 -> Kaffefilter stk. | AA38: Stjerneskud a'la Neptun
A39: =ROUND(Mængde!A39*Indkøb!$G$3*$G$4/10,2)*10 -> 13.9 | B39: =+Mængde!B39*Indkøb!$G$3 -> 7 | C39: =+Mængde!C39 -> 1 | E39: =ROUND(Mængde!E39*$G$4/5,1)*5 -> 8 | F39: =ROUND(Mængde!F39*$C$3*$G$3,0)/2 -> 3 | G39: =+Mængde!G39*Indkøb!$G$3 -> 42
A40: =+Mængde!A40 -> Rygeost pk. | B40: =+Mængde!B40 -> Brændte figner ds. | C40: =+Mængde!C40 -> Eddike alm. Fl. | D40: =+Mængde!D40 -> 0 | E40: =+Mængde!E40 -> Løg stk | F40: =+Mængde!F40 -> Dr. Nelson fl. | G40: =+Mængde!G40 -> Is poser stk. | AA40: Vildt
A41: =ROUND(Mængde!A41*Indkøb!$C$3/10,1)*5 -> 2 | B41: =+Mængde!B41 -> 1 | C41: =+Mængde!C41 -> 1 | E41: =ROUND(Mængde!E41*$G$4/5,1)*5 -> 16 | F41: =ROUND(Mængde!F41*$C$3*$G$3,0)/2 -> 3 | G41: =+Mængde!G41*Indkøb!$G$3 -> 7 | AA41: Haresteg eller kaninsteg
A42: =+Mængde!A42 -> 0 | B42: =+Mængde!B42 -> Syltede pærer gl. | C42: =+Mængde!C42 -> Bønner i tomat ds. | D42: =+Mængde!D42 -> 0 | E42: =+Mængde!E42 -> Hvidløg | F42: =+Mængde!F42 -> 0 | G42: =+Mængde!G42 -> Affalds poser stk. | AA42: Svensk elgfars bøffer
A43: =ROUND(Mængde!A43*Indkøb!$C$3/10,1)*10 -> 0 | B43: =+Mængde!B43 -> 1 | C43: =ROUND(Mængde!C43*Indkøb!$G$3*$G$4/4,1) -> 14 | E43: =+Mængde!E43*$C$3 -> 8 | F43: =+Mængde!F43 -> 0 | G43: =+Mængde!G43*Indkøb!$G$3 -> 14 | AA43: Meyers fasan
A44: =+Mængde!A44 -> 0 | B44: =+Mængde!B44 -> Rasp ps. | C44: =+Mængde!C44 -> Bønner i Chili ds. | D44: =+Mængde!D44 -> 0 | E44: =+Mængde!E44 -> Citroner stk | F44: =+Mængde!F44 -> 0 | G44: =+Mængde!G44 -> Fryse poser stk. | AA44: Vildand med svampe i portvin
A45: =+Mængde!A45 -> 0 | B45: =+Mængde!B45 -> 1 | C45: =ROUND(Mængde!C45*Indkøb!$G$3*$G$4/4,1) -> 14 | E45: =+Mængde!E45*$C$3 -> 8 | G45: =+Mængde!G45*Indkøb!$C$3*$G$3 -> 112 | AA45: Sydfransk vildsvinegryde
A46: =+Mængde!A46 -> 0 | B46: =+Mængde!B46 -> Æbleskiver stk. | C46: =+Mængde!C46 -> HP-Souce fl. | D46: =+Mængde!D46 -> 0 | E46: =+Mængde!E46 -> Rødkål gl | F46: =+Mængde!F46 -> 0 | G46: =+Mængde!G46 -> Grill kul 1 ps. | AA46: Gråand med svampe og grønkål
B47: =+Mængde!B47*G4 -> 24 | C47: =+Mængde!C47 -> 1 | E47: =+Mængde!E47 -> 1 | G47: =+Mængde!$G$47 -> 1 | AA47: Stegt dyreryg gourment
A48: =+Mængde!A48 -> 0 | B48: =+Mængde!B48 -> 0 | C48: =+Mængde!C48 -> Tomat ketchup fl. | D48: =+Mængde!D48 -> 0 | E48: =+Mængde!E48 -> Rødbeder gl | F48: =+Mængde!F48 -> 0 | G48: =+Mængde!G48 -> Lampe olie fl.
C49: =+Mængde!C49 -> 1 | E49: =+Mængde!E49 -> 1 | G49: =+Mængde!$G$49 -> 1 | AA49: JW's special
A50: =+Mængde!A50 -> 0 | B50: =+Mængde!B50 -> 0 | C50: =+Mængde!C50 -> Remo tube | D50: =+Mængde!D50 -> 0 | E50: =+Mængde!E50 -> Asier gl | F50: =+Mængde!F50 -> 0 | G50: =+Mængde!G50 -> Sorte sække stk | AA50: Walters Pariserbøffer
C51: =+Mængde!C51 -> 1 | E51: =+Mængde!E51 -> 1 | G51: =+Mængde!$G$51*Indkøb!$C$3 -> 8 | AA51: Walters æggekage med bacon og hot chili
A52: =+Mængde!A52 -> 0 | B52: =+Mængde!B52 -> 0 | C52: =+Mængde!C52 -> Mayo tube | D52: =+Mængde!D52 -> 0 | E52: =+Mængde!E52 -> Champignon pk | F52: =+Mængde!F52 -> 0 | G52: =+Mængde!G52 -> Tandstikker æske | AA52: Walters varm leverpostej på toast brød
C53: =+Mængde!C53 -> 1 | E53: =+Mængde!E53 -> 2 | G53: =+Mængde!G53 -> 1 | AA53: Walters hurtiggryde
A54: =+Mængde!A54 -> 0 | B54: =+Mængde!B54 -> 0 | C54: =+Mængde!C54 -> Sennep Dijon gl. | D54: =+Mængde!D54 -> 0 | E54: =+Mængde!E54 -> Laurbærblade pk | F54: =+Mængde!F54 -> 0 | G54: =+Mængde!G54 -> Servietter | AA54: Walters lys skibslabskovs
C55: =+Mængde!C55 -> 1 | E55: =+Mængde!E55 -> 1 | G55: =+Mængde!G55*Indkøb!$G$3*$G$4 -> 56 | AA55: Walters bækørred frokostret
A56: =+Mængde!A56 -> 0 | B56: =+Mængde!B56 -> 0 | C56: =+Mængde!C56 -> Sweet Chile Souce fl. | D56: =+Mængde!D56 -> 0 | E56: =+Mængde!E56 -> Peberrod ps | F56: =+Mængde!F56 -> 0 | G56: =+Mængde!G56 -> Lys | AA56: Walters Lam i salsa verde
C57: =+Mængde!C57 -> 1 | E57: =+Mængde!E57 -> 1 | G57: =+Mængde!G57*$G$3 -> 7
A58: =+Mængde!A58 -> 0 | B58: =+Mængde!B58 -> 0 | C58: =+Mængde!C58 -> Tabasco fl. | D58: =+Mængde!D58 -> 0 | E58: =+Mængde!E58 -> Blandet frugt | F58: =+Mængde!F58 -> 0 | G58: =+Mængde!G58 -> Fyrfadslys | AA58: Deserter
C59: =+Mængde!C59 -> 1 | E59: =+Mængde!E59 -> 1 | G59: =+Mængde!G59*$G$3 -> 14 | AA59: Jørgen Walters fiskekage
A60: =+Mængde!A60 -> 0 | B60: =+Mængde!B60 -> 0 | C60: =+Mængde!C60 -> Hvide sild gl. | D60: =+Mængde!D60 -> 0 | E60: =+Mængde!E60 -> Ingefær rod | F60: =+Mængde!F60 -> 0 | G60: =+Mængde!G60 -> Dug | AA60: Brændte figner
C61: =+Mængde!C61 -> 1 | E61: =+Mængde!E61 -> 1 | G61: =+Mængde!G61 -> 2 | AA61: Syltede pære
A62: =+Mængde!A62 -> 0 | B62: =+Mængde!B62 -> 0 | C62: =+Mængde!C62 -> Krydder sild gl. | D62: =+Mængde!D62 -> 0 | E62: =+Mængde!E62 -> Blegselleri | F62: =+Mængde!F62 -> 0 | G62: =+Mængde!G62 -> Mygge spray rl. | AA62: Æbleskiver
C63: =+Mængde!C63 -> 1 | E63: =+Mængde!E63 -> 1 | G63: =+Mængde!G63 -> 2 | AA63: Is med frugter
A64: =+Mængde!A64 -> 0 | B64: =+Mængde!B64 -> 0 | C64: =+Mængde!C64 -> Markrel i tomat ds. | D64: =+Mængde!D64 -> 0 | E64: =+Mængde!E64 -> Persille bdt | F64: =+Mængde!F64 -> 0 | G64: =+Mængde!G64 -> Folie rl. | AA64: Pandekager
C65: =+Mængde!C65*$G$3/2*$G$4 -> 14 | E65: =+Mængde!E65 -> 1 | G65: =+Mængde!G65 -> 3 | AA65: Irish Coffee
A66: =+Mængde!A66 -> 0 | B66: =+Mængde!B66 -> 0 | C66: =+Mængde!C66 -> Sardiner i olie ds. | D66: =+Mængde!D66 -> 0 | E66: =+Mængde!E66 -> Persillerod | F66: =+Mængde!F66 -> 0 | G66: =+Mængde!G66 -> 0
C67: =+Mængde!C67*$G$3/2*$G$4 -> 14 | E67: =+Mængde!E67 -> 1 | G67: =+Mængde!G67*Indkøb!$C$3 -> 0 | AA67: Diverse
A68: =+Mængde!A68 -> 0 | B68: =+Mængde!B68 -> 0 | C68: =+Mængde!C68 -> Kippers i olie ds. | D68: =+Mængde!D68 -> 0 | E68: =+Mængde!E68 -> Flådede tomater ds | F68: =+Mængde!F68 -> 0 | G68: =+Mængde!G68 -> 0 | AA68: Rester fra ugen
C69: =+Mængde!C69*$G$4 -> 4 | E69: =+Mængde!E69 -> 1 | AA69: Spise på Grillen
A70: =+Mængde!A70 -> 0 | B70: =+Mængde!B70 -> 0 | C70: =+Mængde!C70 -> Madkulør fl. | D70: =+Mængde!D70 -> 0 | E70: =+Mængde!E70 -> Rosmarin kvist | F70: =+Mængde!F70 -> 0 | G70: =+Mængde!G70 -> 0
C71: =+Mængde!C71 -> 1 | E71: =+Mængde!E71 -> 1
A72: =+Mængde!A72 -> 0 | B72: =+Mængde!B72 -> 0 | C72: =+Mængde!C72 -> Mintegele gl. | D72: =+Mængde!D72 -> 0 | E72: =+Mængde!E72 -> Blomkål stk | F72: =+Mængde!F72 -> 0 | G72: =+Mængde!G72 -> 0
C73: =+Mængde!C73 -> 1 | E73: =+Mængde!E73 -> 1
A74: =+Mængde!A74 -> 0 | B74: =+Mængde!B74 -> 0 | C74: =+Mængde!C74 -> Basmati ris ps. | D74: =+Mængde!D74 -> 0 | E74: =+Mængde!E74 -> 0 | F74: =+Mængde!F74 -> 0 | G74: =+Mængde!G74 -> 0
C75: =+Mængde!C75 -> 1 | E75: =+Mængde!E75 -> 0
A76: =+Mængde!A76 -> 0 | B76: =+Mængde!B76 -> 0 | C76: =+Mængde!C76 -> Tomatpure lille ds | D76: =+Mængde!D76 -> 0 | E76: =+Mængde!E76 -> 0 | F76: =+Mængde!F76 -> 0 | G76: =+Mængde!G76 -> 0
C77: =+Mængde!C77 -> 1 | E77: =+Mængde!E77 -> 0
A78: =+Mængde!A78 -> 0 | B78: =+Mængde!B78 -> 0 | C78: =+Mængde!C78 -> Kaffe 500 g | D78: =+Mængde!D78 -> 0 | E78: =+Mængde!E78 -> 0 | F78: =+Mængde!F78 -> 0 | G78: =+Mængde!G78 -> 0
C79: =ROUND(Mængde!C79*Indkøb!$G$3*$G$4/5,0) -> 6
A80: =+Mængde!A80 -> 0 | B80: =+Mængde!B80 -> 0 | C80: =+Mængde!C80 -> Bouillon ds | D80: =+Mængde!D80 -> 0 | E80: =+Mængde!E80 -> 0 | F80: =+Mængde!F80 -> 0 | G80: =+Mængde!G80 -> 0
C81: =+Mængde!C81 -> 1
A82: =+Mængde!A82 -> 0 | B82: =+Mængde!B82 -> 0 | C82: =+Mængde!C82 -> Solbærsyltetøj gl. | D82: =+Mængde!D82 -> 0 | E82: =+Mængde!E82 -> 0 | F82: =+Mængde!F82 -> 0 | G82: =+Mængde!G82 -> 0
C83: =ROUND(Mængde!C83*Indkøb!$G$3*$G$4/10,0) -> 1
A84: =+Mængde!A84 -> 0 | B84: =+Mængde!B84 -> 0 | C84: =+Mængde!C84 -> Marmelade gl. | D84: =+Mængde!D84 -> 0 | E84: =+Mængde!E84 -> 0 | F84: =+Mængde!F84 -> 0 | G84: =+Mængde!G84 -> 0
C85: =ROUND(Mængde!C85*Indkøb!$G$3*$G$4/10,0) -> 1
A86: =+Mængde!A86 -> 0 | B86: =+Mængde!B86 -> 0 | C86: =+Mængde!C86 -> Bouillon terninger | D86: =+Mængde!D86 -> 0 | E86: =+Mængde!E86 -> 0 | F86: =+Mængde!F86 -> 0 | G86: =+Mængde!G86 -> 0
C87: =ROUND(Mængde!C87*Indkøb!$G$3*$G$4/10,0) -> 6
A88: =+Mængde!A88 -> 0 | B88: =+Mængde!B88 -> 0 | C88: =+Mængde!C88 -> Brun farin | D88: =+Mængde!D88 -> 0 | E88: =+Mængde!E88 -> 0 | F88: =+Mængde!F88 -> 0 | G88: =+Mængde!G88 -> 0
C89: =+Mængde!C89 -> 1
A90: =+Mængde!A90 -> 0 | B90: =+Mængde!B90 -> 0 | C90: =+Mængde!C90 -> Honning ds. | D90: =+Mængde!D90 -> 0 | E90: =+Mængde!E90 -> 0 | F90: =+Mængde!F90 -> 0 | G90: =+Mængde!G90 -> 0
C91: =+Mængde!C91 -> 1
A92: =+Mængde!A92 -> 0 | B92: =+Mængde!B92 -> 0 | C92: =+Mængde!C92 -> Te breve pk. | D92: =+Mængde!D92 -> 0 | E92: =+Mængde!E92 -> 0 | F92: =+Mængde!F92 -> 0 | G92: =+Mængde!G92 -> 0
C93: =ROUND(Mængde!C93*Indkøb!$G$3*$G$4/5,0) -> 11
A94: =+Mængde!A94 -> 0 | B94: =+Mængde!B94 -> 0 | C94: =+Mængde!C94 -> 0 | D94: =+Mængde!D94 -> 0 | E94: =+Mængde!E94 -> 0 | F94: =+Mængde!F94 -> 0 | G94: =+Mængde!G94 -> 0
C95: =+Mængde!C95 -> 0
A96: =+Mængde!A96 -> 0 | B96: =+Mængde!B96 -> 0 | C96: =+Mængde!C96 -> 0 | D96: =+Mængde!D96 -> 0 | E96: =+Mængde!E96 -> 0 | F96: =+Mængde!F96 -> 0 | G96: =+Mængde!G96 -> 0
A98: =+Mængde!A98 -> 0 | B98: =+Mængde!B98 -> 0 | C98: =+Mængde!C98 -> 0 | D98: =+Mængde!D98 -> 0 | E98: =+Mængde!E98 -> 0 | F98: =+Mængde!F98 -> 0 | G98: =+Mængde!G98 -> 0
A100: =+Mængde!A100 -> 0 | B100: =+Mængde!B100 -> 0 | C100: =+Mængde!C100 -> 0 | D100: =+Mængde!D100 -> 0 | E100: =+Mængde!E100 -> 0 | F100: =+Mængde!F100 -> 0 | G100: =+Mængde!G100 -> 0
A102: =+Mængde!A102 -> 0 | B102: =+Mængde!B102 -> 0 | C102: =+Mængde!C102 -> 0 | D102: =+Mængde!D102 -> 0 | E102: =+Mængde!E102 -> 0 | F102: =+Mængde!F102 -> 0 | G102: =+Mængde!G102 -> 0
A104: =+Mængde!A104 -> 0 | B104: =+Mængde!B104 -> 0 | C104: =+Mængde!C104 -> 0 | D104: =+Mængde!D104 -> 0 | E104: =+Mængde!E104 -> 0 | F104: =+Mængde!F104 -> 0 | G104: =+Mængde!G104 -> 0
A106: =+Mængde!A106 -> 0 | B106: =+Mængde!B106 -> 0 | C106: =+Mængde!C106 -> 0 | D106: =+Mængde!D106 -> 0 | E106: =+Mængde!E106 -> 0 | F106: =+Mængde!F106 -> 0 | G106: =+Mængde!G106 -> 0
A108: =+Mængde!A108 -> 0 | B108: =+Mængde!B108 -> 0 | C108: =+Mængde!C108 -> 0 | D108: =+Mængde!D108 -> 0 | E108: =+Mængde!E108 -> 0 | F108: =+Mængde!F108 -> 0 | G108: =+Mængde!G108 -> 0
A110: =+Mængde!A110 -> 0 | B110: =+Mængde!B110 -> 0 | C110: =+Mængde!C110 -> 0 | D110: =+Mængde!D110 -> 0 | E110: =+Mængde!E110 -> 0 | F110: =+Mængde!F110 -> 0 | G110: =+Mængde!G110 -> 0
A112: =+Mængde!A112 -> 0 | B112: =+Mængde!B112 -> 0 | C112: =+Mængde!C112 -> 0 | D112: =+Mængde!D112 -> 0 | E112: =+Mængde!E112 -> 0 | F112: =+Mængde!F112 -> 0 | G112: =+Mængde!G112 -> 0
A114: =+Mængde!A114 -> 0 | B114: =+Mængde!B114 -> 0 | C114: =+Mængde!C114 -> 0 | D114: =+Mængde!D114 -> 0 | E114: =+Mængde!E114 -> 0 | F114: =+Mængde!F114 -> 0 | G114: =+Mængde!G114 -> 0
A116: =+Mængde!A116 -> 0 | B116: =+Mængde!B116 -> 0 | C116: =+Mængde!C116 -> 0 | D116: =+Mængde!D116 -> 0 | E116: =+Mængde!E116 -> 0 | F116: =+Mængde!F116 -> 0 | G116: =+Mængde!G116 -> 0
A118: =+Mængde!A118 -> 0 | B118: =+Mængde!B118 -> 0 | C118: =+Mængde!C118 -> 0 | D118: =+Mængde!D118 -> 0 | E118: =+Mængde!E118 -> 0 | F118: =+Mængde!F118 -> 0 | G118: =+Mængde!G118 -> 0
A120: =+Mængde!A120 -> 0 | B120: =+Mængde!B120 -> 0 | C120: =+Mængde!C120 -> 0 | D120: =+Mængde!D120 -> 0 | E120: =+Mængde!E120 -> 0 | F120: =+Mængde!F120 -> 0 | G120: =+Mængde!G120 -> 0
A122: =+Mængde!A122 -> 0 | B122: =+Mængde!B122 -> 0 | C122: =+Mængde!C122 -> 0 | D122: =+Mængde!D122 -> 0 | E122: =+Mængde!E122 -> 0 | F122: =+Mængde!F122 -> 0 | G122: =+Mængde!G122 -> 0
A124: =+Mængde!A124 -> 0 | B124: =+Mængde!B124 -> 0 | C124: =+Mængde!C124 -> 0 | D124: =+Mængde!D124 -> 0 | E124: =+Mængde!E124 -> 0 | F124: =+Mængde!F124 -> 0 | G124: =+Mængde!G124 -> 0
A126: =+Mængde!A126 -> 0 | B126: =+Mængde!B126 -> 0 | C126: =+Mængde!C126 -> 0 | D126: =+Mængde!D126 -> 0 | E126: =+Mængde!E126 -> 0 | F126: =+Mængde!F126 -> 0 | G126: =+Mængde!G126 -> 0
A128: =+Mængde!A128 -> 0 | B128: =+Mængde!B128 -> 0 | C128: =+Mængde!C128 -> 0 | D128: =+Mængde!D128 -> 0 | E128: =+Mængde!E128 -> 0 | F128: =+Mængde!F128 -> 0 | G128: =+Mængde!G128 -> 0
A130: =+Mængde!A130 -> 0 | B130: =+Mængde!B130 -> 0 | C130: =+Mængde!C130 -> 0 | D130: =+Mængde!D130 -> 0 | E130: =+Mængde!E130 -> 0 | F130: =+Mængde!F130 -> 0 | G130: =+Mængde!G130 -> 0

Sheet List
E1: Antal | F1: =+Indkøb!G4 -> 8 | G1: personer | I1: =CONCATENATE(E1,G1,F1) -> Antal personer 8
B2: Ankomst | C2: Dage | D2: Personer | E2: =+Indkøb!AA2 -> Varme retter | J2: Tast | K2: og udskriv menuen
A4: 1 | B4: Lørdag | C4: 1 | D4: 1 | E4: =+Indkøb!AA4 -> Svinekød | G4: Mængde/person | J4: =CONCATENATE($J$2,E4,$K$2) -> Tast Svinekød og udskriv menuen
A5: 2 | B5: Søndag | C5: 2 | D5: 2 | E5: =+Indkøb!AA5 -> Flæskesteg med ridset svær | F5: 1 | G5: =+I5/$F$1 -> 0.5 | H5: Kg | I5: =+Opskrifter!D4 -> 4 | J5: =CONCATENATE(I5,H5,E5) -> 4 Kg Flæskesteg med ridset svær | K5: =+Indkøb!B9 -> Flæskesteg med ridset svær
A6: 3 | B6: Mandag | C6: 3 | D6: 3 | E6: =+Indkøb!AA6 -> Koteletter med skaft | F6: 2 | G6: =+I6/$F$1 -> 1 | H6: Stk | I6: =+Opskrifter!F4 -> 8 | J6: 8 Stk Koteletter med skaft | K6: =VLOOKUP(K5,$E$4:$J$110,6,FALSE) -> 4 Kg Flæskesteg med ridset svær
A7: 4 | B7: Tirsdag | C7: 4 | D7: 4 | E7: =+Indkøb!AA7 -> Winersnitzel med ansjoser | F7: 3 | G7: 1 | H7: Stk | I7: =+Opskrifter!H4 -> 8 | J7: 8 Stk Winersnitzel med ansjoser
A8: 5 | B8: Onsdag | C8: 5 | D8: 5 | E8: =+Indkøb!AA8 -> Frikadeller med tilbehør | F8: 4 | G8: 0.25 | H8: Kg | I8: =+Opskrifter!J4 -> 2 | J8: 2 Kg Frikadeller med tilbehør | K8: =+Indkøb!B10 -> Dansk hakkebøf med bløde løg
A9: 6 | B9: Torsdag | C9: 6 | D9: 6 | E9: =+Indkøb!AA9 -> Rødvinsgryde med landbrød | F9: 5 | G9: 0.25 | H9: Kg | I9: =(+Opskrifter!L4+Opskrifter!L6+Opskrifter!L7)/1000 -> 2 | J9: 2 Kg Rødvinsgryde med landbrød | K9: =VLOOKUP(K8,$E$4:$J$110,6,FALSE) -> 2 Kg Dansk hakkebøf med bløde løg
A10: 7 | B10: Fredag | C10: 7 | D10: 7 | E10: =+Indkøb!AA10 -> Karbonader med ost/uden ost | F10: 6 | G10: 0.25 | H10: Kg | I10: =+Opskrifter!N4 -> 2 | J10: 2 Kg Karbonader med ost/uden ost
A11: 8 | B11: Lørdag | C11: 1 | D11: 8 | E11: =+Indkøb!AA11 -> Guleærter med koteletter og chili | F11: 7 | G11: 0.5 | H11: Lt | I11: =+Opskrifter!P13 -> 4 | J11: 4 Lt Guleærter med koteletter og chili | K11: =+Indkøb!B11 -> Coq au vin Bourgogne
A12: 9 | B12: Søndag | C12: 2 | K12: =VLOOKUP(K11,$E$4:$J$110,6,FALSE) -> 1 Stk Coq au vin Bourgogne
A13: 10 | B13: Mandag | C13: 3 | D13: Børn | E13: =+Indkøb!AA13 -> Oksekød | J13: =CONCATENATE($J$2,E13,$K$2) -> Tast Oksekød og udskriv menuen
A14: 11 | B14: Tirsdag | C14: 4 | E14: =+Indkøb!AA14 -> Dansk hakkebøf med bløde løg | F14: 1 | G14: =+I14/$F$1 -> 0.25 | H14: Kg | I14: =+Opskrifter!R4 -> 2 | J14: =CONCATENATE(I14,H14,E14) -> 2 Kg Dansk hakkebøf med bløde løg | K14: =+Indkøb!B12 -> Kogt ørred med fiskesauce
A15: 12 | B15: Onsdag | C15: 5 | D15: 0 | E15: =+Indkøb!AA15 -> Tournedos beef med bainase souce | F15: 2 | G15: 1 | H15: Stk | I15: =+Opskrifter!T4 -> 8 | J15: 8 Stk Tournedos beef med bainase souce | K15: =VLOOKUP(K14,$E$4:$J$110,6,FALSE) -> 4 Kg Kogt ørred med fiskesauce
A16: 13 | B16: Torsdag | C16: 6 | D16: 1 | E16: =+Indkøb!AA16 -> T-bone steak med bagte kartofler | F16: 3 | G16: 1 | H16: Stk | I16: =+Opskrifter!V4 -> 8 | J16: 8 Stk T-bone steak med bagte kartofler
A17: 14 | B17: Fredag | C17: 7 | D17: 2 | E17: =+Indkøb!AA17 -> Osso buco med grøntsager | F17: 4 | G17: 0.25 | H17: Kg | I17: =+Opskrifter!X4 -> 2 | J17: 2 Kg Osso buco med grøntsager | K17: =+Indkøb!B13 -> Haresteg eller kaninsteg
D18: 3 | E18: =+Indkøb!AA18 -> Beef Stroganoff med kartoffelmos | F18: 5 | G18: 0.25 | H18: Kg | I18: =+Opskrifter!Z4 -> 2 | J18: 2 Kg Beef Stroganoff med kartoffelmos | K18: =VLOOKUP(K17,$E$4:$J$110,6,FALSE) -> 2 Stk Haresteg eller kaninsteg
D19: 4 | E19: =+Indkøb!AA19 -> Oksekødsgryde med rodfrugter | F19: 6 | G19: 0.25 | H19: Kg | I19: =+Opskrifter!AB4 -> 2 | J19: 2 Kg Oksekødsgryde med rodfrugter
A20: =+Indkøb!G5 -> Lørdag | D20: 5 | E20: =+Indkøb!AA20 -> Engelsk bøf med svampe og løg | F20: 7 | G20: 1 | H20: Stk | I20: =+Opskrifter!AD4 -> 8 | J20: 8 Stk Engelsk bøf med svampe og løg | K20: =+Indkøb!B14 -> Walters Pariserbøffer
A21: =VLOOKUP($A$20,$B$4:$C$10,1,FALSE) -> Lørdag | B21: =VLOOKUP($A$20,$B$4:$C$10,2,FALSE) -> 1 | D21: 6 | K21: =VLOOKUP(K20,$E$4:$J$110,6,FALSE) -> 800 g Walters Pariserbøffer
A22: =INDEX($B$4:$B$17,B22) -> Søndag | B22: =VLOOKUP($A$20,$B$4:$C$10,2,FALSE)+C4 -> 2 | D22: 7 | E22: =+Indkøb!AA22 -> Fjerkræ | J22: =CONCATENATE($J$2,E22,$K$2) -> Tast Fjerkræ og udskriv menuen
A23: Mandag | B23: 3 | D23: 8 | E23: =+Indkøb!AA23 -> Coq au vin Bourgogne | F23: 1 | G23: =+I23/$F$1 -> 0.125 | H23: Stk | I23: =+Opskrifter!AF4 -> 1 | J23: =CONCATENATE(I23,H23,E23) -> 1 Stk Coq au vin Bourgogne | K23: =+Indkøb!B15 -> Jørgen Walters fiskekage
A24: Tirsdag | B24: 4 | E24: =+Indkøb!AA24 -> And med rødkål og brune kartofler | F24: 2 | G24: 0.5 | H24: Stk | I24: =ROUND(G24*$F$1,0) -> 4 | J24: 4 Stk And med rødkål og brune kartofler | K24: =VLOOKUP(K23,$E$4:$J$110,6,FALSE) -> 2 hel Jørgen Walters fiskekage
A25: Onsdag | B25: 5 | E25: =+Indkøb!AA25 -> Høne i peperrodsauce | F25: 3 | G25: 0.4 | H25: Kg | I25: =+G25*$F$1 -> 3.2 | J25: 3,2Kg Høne i peperrodsauce
A26: Torsdag | B26: 6 | E26: =+Indkøb!AA26 -> Hønsekødsuppe med boller | F26: 4 | G26: 0.3 | H26: Lt | I26: =+G26*$F$1 -> 2.4 | J26: 2,4 Lt Hønsekødsuppe med boller | K26: =+Indkøb!B16 -> Spise på Grillen
A27: Fredag | B27: 7 | E27: =+Indkøb!AA27 -> Kalkun, lynstegt med grøntsager | F27: 5 | G27: 0.25 | H27: Stk | I27: =ROUND(G27*$F$1,0) -> 2 | J27: 2 Stk Kalkun, lynstegt med grøntsager | K27: =VLOOKUP(K26,$E$4:$J$110,6,FALSE) -> Spise på Grillen
A28: Spise ude | B28: 8 | E28: =+Indkøb!AA28 -> Duer med safransauce og ris | F28: 6 | G28: =+I28/$F$1 -> 1 | H28: Stk | I28: =+Opskrifter!AP4 -> 8 | J28: 8 Stk Duer med safransauce og ris
E29: =+Indkøb!AA29 -> Stegt andebryst i rødvinssauce | F29: 7 | G29: =+I29/$F$1 -> 1 | H29: Stk | I29: =+Opskrifter!AR4 -> 8 | J29: =CONCATENATE(I29,H29,E29) -> 8 Stk Stegt andebryst i rødvinssauce
E31: =+Indkøb!AA31 -> Fisk | J31: =CONCATENATE($J$2,E31,$K$2) -> Tast Fisk og udskriv menuen
E32: =+Indkøb!AA32 -> Kogt ørred med fiskesauce | F32: 1 | G32: =+I32/$F$1 -> 0.5 | H32: Kg | I32: =+Opskrifter!AT4 -> 4 | J32: =CONCATENATE(I32,H32,E32) -> 4 Kg Kogt ørred med fiskesauce
E33: =+Indkøb!AA33 -> Ovn stegt laks eller ørred i folie | F33: 2 | G33: 0.25 | H33: Kg | I33: =+Opskrifter!AV4 -> 2 | J33: 2 Kg Ovn stegt laks eller ørred i folie
E34: =+Indkøb!AA34 -> Fiskedeller med remo | F34: 3 | G34: 200 | H34: g | I34: =+Opskrifter!AX4 -> 1600 | J34: 1600 g Fiskedeller med remo
E35: =+Indkøb!AA35 -> Fiskefillet med remo og citron | F35: 4 | G35: 2 | H35: Stk | I35: =+Opskrifter!AZ4 -> 16 | J35: 16 Stk Fiskefillet med remo og citron
E36: =+Indkøb!AA36 -> Kogt torsk med sennepsauce | F36: 5 | G36: 200 | H36: g | I36: =+Opskrifter!BB4 -> 1600 | J36: 1600 g Kogt torsk med sennepsauce
E37: =+Indkøb!AA37 -> Fiskesuppe hot chili | F37: 6 | G37: 0.5 | H37: Lt | I37: =+Opskrifter!BD12 -> 4 | J37: 4 Lt Fiskesuppe hot chili
E38: =+Indkøb!AA38 -> Stjerneskud a'la Neptun | F38: 7 | G38: 1 | H38: Stk | I38: =+Opskrifter!BF4 -> 8 | J38: 8 Stk Stjerneskud a'la Neptun
E40: =+Indkøb!AA40 -> Vildt | J40: =CONCATENATE($J$2,E40,$K$2) -> Tast Vildt og udskriv menuen
E41: =+Indkøb!AA41 -> Haresteg eller kaninsteg | F41: 1 | G41: =+I41/$F$1 -> 0.25 | H41: Stk | I41: =+Opskrifter!BH4 -> 2 | J41: =CONCATENATE(I41,H41,E41) -> 2 Stk Haresteg eller kaninsteg
E42: =+Indkøb!AA42 -> Svensk elgfars bøffer | F42: 2 | G42: 200 | H42: g | I42: =+Opskrifter!BJ4 -> 1600 | J42: 1600 g Svensk elgfars bøffer
E43: =+Indkøb!AA43 -> Meyers fasan | F43: 3 | G43: 0.25 | H43: Stk | I43: =+Opskrifter!BL4 -> 2 | J43: 2 Stk Meyers fasan
E44: =+Indkøb!AA44 -> Vildand med svampe i portvin | F44: 4 | G44: 0.5 | H44: Stk | I44: =+Opskrifter!BN4 -> 4 | J44: 4 Stk Vildand med svampe i portvin
E45: =+Indkøb!AA45 -> Sydfransk vildsvinegryde | F45: 5 | G45: 0.375 | H45: Kg | I45: =+Opskrifter!BP4 -> 3 | J45: =CONCATENATE(I45,H45,E45) -> 3 Kg Sydfransk vildsvinegryde
E46: =+Indkøb!AA46 -> Gråand med svampe og grønkål | F46: 6 | G46: 0.5 | H46: Stk | I46: =+Opskrifter!BR4 -> 4 | J46: 4 Stk Gråand med svampe og grønkål
E47: =+Indkøb!AA47 -> Stegt dyreryg gourment | F47: 7 | G47: 0.5 | H47: Kg | I47: =+Opskrifter!BT4 -> 4 | J47: 4 Kg Stegt dyreryg gourment
E49: =+Indkøb!AA49 -> JW's special | J49: =CONCATENATE($J$2,E49,$K$2) -> Tast JW's special og udskriv menuen
E50: =+Indkøb!AA50 -> Walters Pariserbøffer | F50: 1 | G50: =+I50/$F$1 -> 100 | H50: g | I50: =+Opskrifter!BV4 -> 800 | J50: =CONCATENATE(I50,H50,E50) -> 800 g Walters Pariserbøffer
E51: =+Indkøb!AA51 -> Walters æggekage med bacon og hot chili | F51: 2 | G51: 2 | H51: Stk | I51: =+G51*$F$1 -> 16 | J51: 16 Stk Walters æggekage med bacon og hot chili
E52: =+Indkøb!AA52 -> Walters varm leverpostej på toast brød | F52: 3 | G52: =+I52/$F$1 -> 100 | H52: g | I52: =+Opskrifter!BZ4 -> 800 | J52: 800 g Walters varm leverpostej på toast brød
E53: =+Indkøb!AA53 -> Walters hurtiggryde | F53: 4 | G53: =+I53/$F$1 -> 100 | H53: g | I53: =+Opskrifter!CB4 -> 800 | J53: 800 g Walters hurtiggryde
E54: =+Indkøb!AA54 -> Walters lys skibslabskovs | F54: 5 | G54: =+I54/$F$1 -> 100 | H54: g | I54: =+Opskrifter!CD4 -> 800 | J54: 800 g Walters lys skibslabskovs
E55: =+Indkøb!AA55 -> Walters bækørred frokostret | F55: 6 | G55: =+I55/$F$1 -> 200 | H55: g | I55: =+Opskrifter!CF4 -> 1600 | J55: 1600 g Walters bækørred frokostret
E56: =+Indkøb!AA56 -> Walters Lam i salsa verde | F56: 7 | G56: =+I56/$F$1 -> 0.25 | H56: Kg | I56: =+Opskrifter!CH4 -> 2 | J56: 2 Kg Walters Lam i salsa verde
E58: =+Indkøb!AA58 -> Deserter | J58: =CONCATENATE($J$2,E58,$K$2) -> Tast Deserter og udskriv menuen
E59: =+Indkøb!AA59 -> Jørgen Walters fiskekage | F59: 1 | G59: =+I59/$F$1 -> 0.25 | H59: hel | I59: =+Opskrifter!CJ4 -> 2 | J59: =CONCATENATE(I59,H59,E59) -> 2 hel Jørgen Walters fiskekage
E60: =+Indkøb!AA60 -> Brændte figner | F60: 2 | G60: =+I60/$F$1 -> 0.0375 | H60: Stk | I60: =+G60*$F$1 -> 0.3 | J60: 0,3Stk Brændte figner
E61: =+Indkøb!AA61 -> Syltede pære | F61: 3 | G61: 0.375 | H61: Stk | I61: 3 | J61: 3 Stk Syltede pære
E62: =+Indkøb!AA62 -> Æbleskiver | F62: 4 | G62: 0.0625 | H62: Kg | I62: 0.5 | J62: 0,5 Kg Æbleskiver
E63: =+Indkøb!AA63 -> Is med frugter | F63: 5 | G63: 0.0375 | H63: Kg | I63: 0.3 | J63: 0,3 Kg Is med frugter
E64: =+Indkøb!AA64 -> Pandekager | F64: 6 | J64: Pandekager
E65: =+Indkøb!AA65 -> Irish Coffee | F65: 7 | J65: Irish Coffee
E67: =+Indkøb!AA67 -> Diverse | J67: =CONCATENATE($J$2,E67,$K$2) -> Tast Diverse og udskriv menuen
E68: =+Indkøb!AA68 -> Rester fra ugen | F68: 1 | J68: =CONCATENATE(I68,H68,E68) -> Rester fra ugen
E69: =+Indkøb!AA69 -> Spise på Grillen | F69: 2 | J69: Spise på Grillen
E70: =+Indkøb!AA70 -> 0 | F70: 3 | J70: 0
E71: =+Indkøb!AA71 -> 0 | F71: 4 | J71: 0
E72: =+Indkøb!AA72 -> 0 | F72: 5 | J72: 0
E73: =+Indkøb!AA73 -> 0 | F73: 6 | J73: 0
E74: =+Indkøb!AA74 -> 0 | F74: 7 | J74: 0

Sheet Mængde
A1: Filen er beskyttet med password, som KUN oplyses af JWA.
A2: Brug af dette program kræver licens.
A3: For at opnå licens, skal man have været på fisketur med Jwa.
A10: De forskellige produkter er indsat med ca. Værdier i kg, stk, liter, genstand eller antal per dag:
A12: Skal der rettes i mængden er det her, der SKAL rettes, det er i de gule celler værdien indføres.
A14: =+Indkøb!A3 -> Indsæt antal voksne personer: | C14: =+Indkøb!C3 -> 8
A16: =+Indkøb!E3 -> 0 | C16: =+Indkøb!G3 -> 7
A19: Mejeri produkter | B19: Brød / Deserter | C19: Kolonial varer | D19: Slagter varer | E19: Grøntsager | F19: Drikke varer | G19: Køkken varer | I19: I arket her indsættes varen og mængden for 1 person i 1 dag
A20: Smør Kg | B20: Boller i stk | C20: Sukker Kg | D20: Leverpostej Kg | E20: Kartofler Kg | F20: Rødvin fl. | G20: Sulfo sæbe fl.
A21: 0.0178 | B21: 1 | C21: 0.05 | D21: 0.05 | E21: 0.1 | F21: 0.5 | G21: 1
A22: Margarine Kg | B22: Rundstykker stk | C22: Mel Kg | D22: Rullepølse skiver | E22: Små kartofler Kg | F22: Hvidvin fl. | G22: Viskestykke stk.
A23: 0.0178 | B23: 1 | C23: 0.05 | D23: 2 | E23: 0.1 | F23: 0.5 | G23: 1
A24: Let mælk lt. | B24: Franskbrød | C24: Salt kg | D24: Spegepølse skiver | E24: Gulerødder stk | F24: Hof fl. | G24: Karklude
A25: 0.25 | B25: 1 | C25: 0.05 | D25: 2 | E25: 1 | F25: 4 | G25: 1
A26: Sødmælk lt. | B26: Toastbrød | C26: Hvid peber pk. | D26: Sky pk. | E26: Porer stk | F26: Tuborg fl. | G26: Grydesvamp
A27: 0.25 | B27: 1 | C27: 1 | D27: 1 | E27: 1 | F27: 4 | G27: 1
A28: Kaffe fløde dl. | B28: Fuldkornsbrød skiver | C28: Sort peber pk. | D28: Kryder fedt pk. | E28: Tomater stk | F28: Andet øl fl. | G28: Gummibånd
A29: 0.05 | B29: 1 | C29: 1 | D29: 1 | E29: 2 | F29: 4 | G29: 1
A30: Piske fløde lt. | B30: Rugbrød skiver | C30: Paprika pk. | D30: Bacon skiver | E30: Agurker stk | F30: Juice 1 l | G30: Tændstikker stor
A31: 0.05 | B31: 1 | C31: 1 | D31: 1 | E31: 1 | F31: 0.25 | G31: 1
A32: Skrabe æg stk | B32: Snacks pose | C32: Carry pk. | D32: Pølser stk. | E32: Chili peber stk | F32: Sodavand fl. | G32: Gl. Aviser stk.
A33: 1 | B33: 1 | C33: 1 | D33: 4 | E33: 1 | F33: 2 | G33: 1
A34: Ost skiver | B34: Ostestænger pose | C34: Jomfru olivenolie fl. | D34: Grill pølser stk. | E34: Grøn peber stk | F34: Cider | G34: Toiletpapir rl.
A35: 2 | B35: 1 | C35: 1 | D35: 2 | E35: 1 | F35: 1 | G35: 1
A36: Brie ost | B36: Smørtyve pose | C36: Vineddike hvid fl. | D36: Bainase pk. | E36: Gul peber stk | F36: Gl. Dansk fl. | G36: Køkkenruller rl.
A37: 1 | B37: 1 | C37: 1 | D37: 1 | E37: 1 | F37: =8/72 -> 0.1111111111 | G37: 1
A38: Youghurt lt. | B38: Tuch kiks pk. | C38: Vineddike rød fl. | E38: Rød peber stk | F38: Whisky fl. | G38: Kaffefilter stk.
A39: 0.2477777778 | B39: 1 | C39: 1 | E39: 1 | F39: =8/72 -> 0.1111111111 | G39: 6
A40: Rygeost pk. | B40: Brændte figner ds. | C40: Eddike alm. Fl. | E40: Løg stk | F40: Dr. Nelson fl. | G40: Is poser stk.
A41: 0.5 | B41: 1 | C41: 1 | E41: 2 | F41: =8/72 -> 0.1111111111 | G41: 1
B42: Syltede pærer gl. | C42: Bønner i tomat ds. | E42: Hvidløg | G42: Affalds poser stk.
B43: 1 | C43: 1 | E43: 1 | G43: 2
B44: Rasp ps. | C44: Bønner i Chili ds. | E44: Citroner stk | G44: Fryse poser stk.
B45: 1 | C45: 1 | E45: 1 | G45: 2
B46: Æbleskiver stk. | C46: HP-Souce fl. | E46: Rødkål gl | G46: Grill kul 1 ps.
B47: 3 | C47: 1 | E47: 1 | G47: 1
C48: Tomat ketchup fl. | E48: Rødbeder gl | G48: Lampe olie fl.
C49: 1 | E49: 1 | G49: 1
C50: Remo tube | E50: Asier gl | G50: Sorte sække stk
C51: 1 | E51: 1 | G51: 1
C52: Mayo tube | E52: Champignon pk | G52: Tandstikker æske
C53: 1 | E53: 2 | G53: 1
C54: Sennep Dijon gl. | E54: Laurbærblade pk | G54: Servietter
C55: 1 | E55: 1 | G55: 1
C56: Sweet Chile Souce fl. | E56: Peberrod ps | G56: Lys
C57: 1 | E57: 1 | G57: 1
C58: Tabasco fl. | E58: Blandet frugt | G58: Fyrfadslys
C59: 1 | E59: 1 | G59: 2
C60: Hvide sild gl. | E60: Ingefær rod | G60: Dug
C61: 1 | E61: 1 | G61: 2
C62: Krydder sild gl. | E62: Blegselleri | G62: Mygge spray rl.
C63: 1 | E63: 1 | G63: 2
C64: Markrel i tomat ds. | E64: Persille bdt | G64: Folie rl.
C65: 0.5 | E65: 1 | G65: 3
C66: Sardiner i olie ds. | E66: Persillerod
C67: 0.5 | E67: 1
C68: Kippers i olie ds. | E68: Flådede tomater ds
C69: 0.5 | E69: 1
C70: Madkulør fl. | E70: Rosmarin kvist
C71: 1 | E71: 1
C72: Mintegele gl. | E72: Blomkål stk
C73: 1 | E73: 1
C74: Basmati ris ps.
C75: 1
C76: Tomatpure lille ds
C77: 1
C78: Kaffe 500 g
C79: 0.5
C80: Bouillon ds
C81: 1
C82: Solbærsyltetøj gl.
C83: 0.25
C84: Marmelade gl.
C85: 0.25
C86: Bouillon terninger
C87: 1
C88: Brun farin
C89: 1
C90: Honning ds.
C91: 1
C92: Te breve pk.
C93: 1

Sheet Opskrifter
A1: Tast se | B1: =+List!E4 -> Svinekød | C1: Tast for print out på retten | D1: 1 | F1: 2 | H1: 3 | J1: 4 | L1: 5 | N1: 6 | P1: 7 | R1: 8 | T1: 9 | V1: 10 | X1: 11 | Z1: 12 | AB1: 13 | AD1: 14 | AF1: 15 | AH1: 16 | AJ1: 17 | AL1: 18 | AN1: 19 | AP1: 20 | AR1: 21 | AT1: 22 | AV1: 23 | AX1: 24 | AZ1: 25 | BB1: 26 | BD1: 27 | BF1: 28 | BH1: 29 | BJ1: 30 | BL1: 31 | BN1: 32 | BP1: 33 | BR1: 34 | BT1: 35 | BV1: 36 | BX1: 37 | BZ1: 38 | CB1: 39 | CD1: 40 | CF1: 41 | CH1: 42 | CJ1: 43 | CL1: 44 | CN1: 45 | CP1: 46 | CR1: 47 | CT1: 48 | CV1: 49
A2: 1 | B2: =+List!E5 -> Flæskesteg med ridset svær | D2: =+B2 -> Flæskesteg med ridset svær | F2: =+B3 -> Koteletter med skaft | H2: =+B4 -> Winersnitzel med ansjoser | J2: =+B5 -> Frikadeller med tilbehør | L2: =+B6 -> Rødvinsgryde med landbrød | N2: =+B7 -> Karbonader med ost/uden ost | P2: =+B8 -> Guleærter med koteletter og chili | R2: =+B11 -> Dansk hakkebøf med bløde løg | T2: =+B12 -> Tournedos beef med bainase souce | V2: =+B13 -> T-bone steak med bagte kartofler | X2: =+B14 -> Osso buco med grøntsager | Z2: =+B15 -> Beef Stroganoff med kartoffelmos | AB2: =+B16 -> Oksekødsgryde med rodfrugter | AD2: =+B17 -> Engelsk bøf med svampe og løg | AF2: =+B20 -> Coq au vin Bourgogne | AH2: =+B21 -> And med rødkål og brune kartofler | AJ2: =+B22 -> Høne i peperrodsauce | AL2: =+B23 -> Hønsekødsuppe med boller | AN2: =+B24 -> Kalkun, lynstegt med grøntsager | AP2: =+B25 -> Duer med safransauce og ris | AR2: =+B26 -> Stegt andebryst i rødvinssauce | AT2: =+B29 -> Kogt ørred med fiskesauce | AV2: =+B30 -> Ovn stegt laks eller ørred i folie | AX2: =+B31 -> Fiskedeller med remo | AZ2: =+B32 -> Fiskefillet med remo og citron | BB2: =+B33 -> Kogt torsk med sennepsauce | BD2: =+B34 -> Fiskesuppe hot chili | BF2: =+B35 -> Stjerneskud a'la Neptun | BH2: =+B38 -> Haresteg eller kaninsteg | BJ2: =+B39 -> Svensk elgfars bøffer | BL2: =+B40 -> Meyers fasan | BN2: =+B41 -> Vildand med svampe i portvin | BP2: =+B42 -> Sydfransk vildsvinegryde | BR2: =+B43 -> Gråand med svampe og grønkål | BT2: =+B44 -> Stegt dyreryg gourment | BV2: =+B47 -> Walters Pariserbøffer | BX2: =+B48 -> Walters æggekage med bacon og hot chili | BZ2: =+B49 -> Walters varm leverpostej på toast brød | CB2: =+B50 -> Walters hurtiggryde | CD2: =+B51 -> Walters lys skibslabskovs | CF2: =+B52 -> Walters bækørred frokostret | CH2: =+B53 -> Walters Lam i salsa verde | CJ2: =+B56 -> Jørgen Walters fiskekage | CL2: =+B57 -> Brændte figner | CN2: =+B58 -> Syltede pære | CP2: =+B59 -> Æbleskiver | CR2: =+B60 -> Is med frugter | CT2: =+B61 -> Pandekager | CV2: =+B62 -> Irish Coffee
A3: 2 | B3: =+List!E6 -> Koteletter med skaft | D3: =CONCATENATE(E103,E104,E105,E106,E107,E108) -> INDKØBSLISTE TIL DENNE RET ER FOR 8 VOKSNE PERSONER | F3: =+$D$3 -> INDKØBSLISTE TIL DENNE RET ER FOR 8 VOKSNE PERSONER | H3: =+$D$3 -> INDKØBSLISTE TIL DENNE RET ER FOR 8 VOKSNE PERSONER | J3: =+$D$3 -> INDKØBSLISTE TIL DENNE RET ER FOR 8 VOKSNE PERSONER | L3: =+$D$3 -> INDKØBSLISTE TIL DENNE RET ER FOR 8 VOKSNE PERSONER | N3: =+$D$3 -> INDKØBSLISTE TIL DENNE RET ER FOR 8 VOKSNE PERSONER | P3: =+$D$3 -> INDKØBSLISTE TIL DENNE RET ER FOR 8 VOKSNE PERSONER | R3: =+$D$3 -> INDKØBSLISTE TIL DENNE RET ER FOR 8 VOKSNE PERSONER | T3: =+$D$3 -> INDKØBSLISTE TIL DENNE RET ER FOR 8 VOKSNE PERSONER | V3: =+$D$3 -> INDKØBSLISTE TIL DENNE RET ER FOR 8 VOKSNE PERSONER | X3: =+$D$3 -> INDKØBSLISTE TIL DENNE RET ER FOR 8 VOKSNE PERSONER | Z3: =+$D$3 -> INDKØBSLISTE TIL DENNE RET ER FOR 8 VOKSNE PERSONER | AB3: =+$D$3 -> INDKØBSLISTE TIL DENNE RET ER FOR 8 VOKSNE PERSONER | AD3: =+$D$3 -> INDKØBSLISTE TIL DENNE RET ER FOR 8 VOKSNE PERSONER | AF3: =+$D$3 -> INDKØBSLISTE TIL DENNE RET ER FOR 8 VOKSNE PERSONER | AH3: =+$D$3 -> INDKØBSLISTE TIL DENNE RET ER FOR 8 VOKSNE PERSONER | AJ3: =+$D$3 -> INDKØBSLISTE TIL DENNE RET ER FOR 8 VOKSNE PERSONER | AL3: =+$D$3 -> INDKØBSLISTE TIL DENNE RET ER FOR 8 VOKSNE PERSONER | AN3: =+$D$3 -> INDKØBSLISTE TIL DENNE RET ER FOR 8 VOKSNE PERSONER | AP3: =+$D$3 -> INDKØBSLISTE TIL DENNE RET ER FOR 8 VOKSNE PERSONER | AR3: =+$D$3 -> INDKØBSLISTE TIL DENNE RET ER FOR 8 VOKSNE PERSONER | AT3: =+$D$3 -> INDKØBSLISTE TIL DENNE RET ER FOR 8 VOKSNE PERSONER | AV3: =+$D$3 -> INDKØBSLISTE TIL DENNE RET ER FOR 8 VOKSNE PERSONER | AX3: =+$D$3 -> INDKØBSLISTE TIL DENNE RET ER FOR 8 VOKSNE PERSONER | AZ3: =+$D$3 -> INDKØBSLISTE TIL DENNE RET ER FOR 8 VOKSNE PERSONER | BB3: =+$D$3 -> INDKØBSLISTE TIL DENNE RET ER FOR 8 VOKSNE PERSONER | BD3: =+$D$3 -> INDKØBSLISTE TIL DENNE RET ER FOR 8 VOKSNE PERSONER | BF3: =+$D$3 -> INDKØBSLISTE TIL DENNE RET ER FOR 8 VOKSNE PERSONER | BH3: =+$D$3 -> INDKØBSLISTE TIL DENNE RET ER FOR 8 VOKSNE PERSONER | BJ3: =+$D$3 -> INDKØBSLISTE TIL DENNE RET ER FOR 8 VOKSNE PERSONER | BL3: =+$D$3 -> INDKØBSLISTE TIL DENNE RET ER FOR 8 VOKSNE PERSONER | BN3: =+$D$3 -> INDKØBSLISTE TIL DENNE RET ER FOR 8 VOKSNE PERSONER | BP3: =+$D$3 -> INDKØBSLISTE TIL DENNE RET ER FOR 8 VOKSNE PERSONER | BR3: =+$D$3 -> INDKØBSLISTE TIL DENNE RET ER FOR 8 VOKSNE PERSONER | BT3: =+$D$3 -> INDKØBSLISTE TIL DENNE RET ER FOR 8 VOKSNE PERSONER | BV3: =+$D$3 -> INDKØBSLISTE TIL DENNE RET ER FOR 8 VOKSNE PERSONER | BX3: =+$D$3 -> INDKØBSLISTE TIL DENNE RET ER FOR 8 VOKSNE PERSONER | BZ3: =+$D$3 -> INDKØBSLISTE TIL DENNE RET ER FOR 8 VOKSNE PERSONER | CB3: =+$D$3 -> INDKØBSLISTE TIL DENNE RET ER FOR 8 VOKSNE PERSONER | CD3: =+$D$3 -> INDKØBSLISTE TIL DENNE RET ER FOR 8 VOKSNE PERSONER | CF3: =+$D$3 -> INDKØBSLISTE TIL DENNE RET ER FOR 8 VOKSNE PERSONER | CH3: =+$D$3 -> INDKØBSLISTE TIL DENNE RET ER FOR 8 VOKSNE PERSONER | CJ3: =+$D$3 -> INDKØBSLISTE TIL DENNE RET ER FOR 8 VOKSNE PERSONER | CL3: =+$D$3 -> INDKØBSLISTE TIL DENNE RET ER FOR 8 VOKSNE PERSONER | CN3: =+$D$3 -> INDKØBSLISTE TIL DENNE RET ER FOR 8 VOKSNE PERSONER | CP3: =+$D$3 -> INDKØBSLISTE TIL DENNE RET ER FOR 8 VOKSNE PERSONER | CR3: =+$D$3 -> INDKØBSLISTE TIL DENNE RET ER FOR 8 VOKSNE PERSONER | CT3: =+$D$3 -> INDKØBSLISTE TIL DENNE RET ER FOR 8 VOKSNE PERSONER | CV3: =+$D$3 -> INDKØBSLISTE TIL DENNE RET ER FOR 8 VOKSNE PERSONER
A4: 3 | B4: =+List!E7 -> Winersnitzel med ansjoser | D4: =+D47/4*Indkøb!$C$4 -> 4 | E4: =+E47 -> kg flæskesteg med ben og ridset svær af god kvalitet | F4: =+F47/4*Indkøb!$C$4 -> 8 | G4: =+G47 -> stk koteletter med skaft ca. 200 g per stk | H4: =+H47/4*Indkøb!$C$4 -> 8 | I4: =+I47 -> stk pæne svineskinkekød eller kalveskinkekød eller kalkunskinkekød efter behag | J4: =+J47/4*Indkøb!$C$4 -> 2 | K4: =+K47 -> kg hakket svinekød og kalvekød | L4: =+L47/4*Indkøb!$C$4 -> 400 | M4: =+M47 -> g røget spæk | N4: =+N47/4*Indkøb!$C$4 -> 2 | O4: =+O47 -> kg hakket svinesmåkød | P4: =+P47/4*Indkøb!$C$4 -> 8 | Q4: =+Q47 -> pæne nakkekotletter ca. 150 - 200 g pr. stk | R4: =+R47/4*Indkøb!$C$4 -> 2 | S4: =+S47 -> kg hakket oksekød af god kvalitet (fedt % efter behag, men for lidt fedt giver tørre bøffer) | T4: =+T47/4*Indkøb!$C$4 -> 8 | U4: =+U47 -> oksetournedos i mesterkvalitet a 175 - 200 g pr. stk med bacon om | V4: =+V47/4*Indkøb!$C$4 -> 8 | W4: =+W47 -> T-bone steak i mesterkvalitet a 175 - 200 g pr. stk | X4: =+X47/4*Indkøb!$C$4 -> 2 | Y4: =+Y47 -> kg okse- eller kalveskank | Z4: =+Z47/4*Indkøb!$C$4 -> 2 | AA4: =+AA47 -> kg oksekød i strimler | AB4: =+AB47/4*Indkøb!$C$4 -> 2 | AC4: =+AC47 -> kg skært oksekød i store tern (bov, tykkam, inderlår, yderlår eller klump) | AD4: =+AD47/4*Indkøb!$C$4 -> 8 | AE4: =+AE47 -> stk engelske bøffer af velhængt oksefilet ca. 200 g stykket | AF4: =+AF47 -> 1 | AG4: =+AG47 -> stor ung hane op til 2 kg | AH4: =+AH47/4*Indkøb!$C$4 -> 2 | AI4: =+AI47 -> and på ca. 3 kg til højest 4 personer | AJ4: =+AJ47/4*Indkøb!$C$4 -> 3.2 | AK4: =+AK47 -> kg fersk høne | AL4: =+AL47/4*Indkøb!$C$4 -> 0 | AM4: =+AM47 -> 0 | AN4: =+AN47/4*Indkøb!$C$4 -> 0 | AO4: =+AO47 -> 0 | AP4: =+AP47/4*Indkøb!$C$4 -> 8 | AQ4: =+AQ47 -> stk unge duer eller 8 stk poussinere | AR4: =+AR47/4*Indkøb!$C$4 -> 8 | AS4: =+AS47 -> dybfrosne andebryster a ca. 300 g pr. stk eller dobbelt mindre andebryster | AT4: =+AT47/4*Indkøb!$C$4 -> 4 | AU4: =+AU47 -> ørred ( fisken skal være på mindst 2 kg i levende vægt ) | AV4: =+AV47/4*Indkøb!$C$4 -> 2 | AW4: =+AW47 -> laks eller ørred delt i to fileter ( fisken skal være på mindst 1 kg i levende vægt ) | AX4: =+AX47/4*Indkøb!$C$4 -> 1600 | AY4: =+AY47 -> g fiskefars ( kan købes færdiglavet eller bedst lav det selv ) | AZ4: =+AZ47/4*Indkøb!$C$4 -> 16 | BA4: =+BA47 -> stk vælg selv fiskefileter: torsk, sej, brosme, lange, havkat eller fladfisk ca. 600 g | BB4: =+BB47/4*Indkøb!$C$4 -> 1600 | BC4: =+BC47 -> g torskefilet | BD4: =+BD47/4*Indkøb!$C$4 -> 200 | BE4: =+BE47 -> g filet af torsk, lange, brosme eller havkat ( skæres i mundrette stykker ) | BF4: =+BF47/4*Indkøb!$C$4 -> 8 | BG4: =+BG47 -> skiver ristet franskbrød | BH4: =+BH47/4*Indkøb!$C$4 -> 2 | BI4: =+BI47 -> Hare eller kanin ( til 4 personer vægt lidt over 1 kg ) | BJ4: =+BJ47/4*Indkøb!$C$4 -> 1600 | BK4: =+BK47 -> g hakket elgkød | BL4: =+BL47/4*Indkøb!$C$4 -> 2 | BM4: =+BM47 -> stor fasankok eller 2 fasanhøner | BN4: =+BN47/4*Indkøb!$C$4 -> 4 | BO4: =+BO47 -> vildænder | BP4: =+BP47/4*Indkøb!$C$4 -> 3 | BQ4: =+BQ47 -> kg vildsvinesmåkød | BR4: =+BR47/4*Indkøb!$C$4 -> 4 | BS4: =+BS47 -> gråænder | BT4: =+BT47/4*Indkøb!$C$4 -> 4 | BU4: =+BU47 -> kg dyreryg af god kvalitet | BV4: =+BV47/4*Indkøb!$C$4 -> 800 | BW4: =+BW47 -> g oksesmåkød af mesterkvalitet | BX4: =+BX47/4*Indkøb!$C$4 -> 0 | BZ4: =+BZ47/4*Indkøb!$C$4 -> 800 | CA4: =+CA47 -> g grofthakket vel krydret leverpostej ( eller brug den du bedst kan lide ) | CB4: =+CB47/4*Indkøb!$C$4 -> 800 | CC4: =+CC47 -> g oksekød | CD4: =+CD47/4*Indkøb!$C$4 -> 800 | CE4: =+CE47 -> g mellemskært oksekød | CF4: =+CF47/4*Indkøb!$C$4 -> 1600 | CG4: =+CG47 -> g bækørred ( 1 stor eller 2 små ). Mindstemålet for bækørred er 30 cm. | CH4: =+CH47/4*Indkøb!$C$4 -> 2 | CI4: =+CI47 -> kg lammekølle der er udbenet | CJ4: =+CJ47/4*$Z$46 -> 2 | CK4: =+CK47 -> Til kagen | CL4: =+CL47/4*$Z$46 -> 0 | CM4: =+CM47 -> 0 | CN4: =+CN47/4*$Z$46 -> 0 | CO4: =+CO47 -> 0 | CP4: =+CP47/4*$Z$46 -> 0 | CQ4: =+CQ47 -> 0 | CR4: =+CR47/4*$Z$46 -> 0 | CS4: =+CS47 -> 0 | CT4: =+CT47/4*$Z$46 -> 0 | CU4: =+CU47 -> 0 | CV4: =+CV47/4*$Z$46 -> 0 | CW4: =+CW47 -> 0
A5: 4 | B5: =+List!E8 -> Frikadeller med tilbehør | D5: =+D48/4*Indkøb!$C$4 -> 2 | E5: kg kartofler store | F5: =+F48/4*Indkøb!$C$4 -> 2 | G5: kg kartofler store | H5: =+H48/4*Indkøb!$C$4 -> 4 | I5: kg kartofler | J5: =+J48/4*Indkøb!$C$4 -> 2 | K5: kg kartofler | L5: =+L48/4*Indkøb!$C$4 -> 60 | M5: g smør | N5: =+N48/4*Indkøb!$C$4 -> 150 | O5: g smør til stegning | P5: =+P48/4*Indkøb!$C$4 -> 40 | Q5: g smør | R5: =+R48/4*Indkøb!$C$4 -> 2 | S5: kg kartofler | T5: =+T48/4*Indkøb!$C$4 -> 2 | U5: kg kartofler | V5: =+V48/4*Indkøb!$C$4 -> 8 | W5: store bage kartofler eller dobbelt af de små kartofler | X5: =+X48/4*Indkøb!$C$4 -> 2 | Y5: kg kartofler | Z5: =+Z48/4*Indkøb!$C$4 -> 2 | AA5: kg kartofler til mos | AB5: =+AB48/4*Indkøb!$C$4 -> 2 | AC5: tsk. Salt | AD5: =+AD48/4*Indkøb!$C$4 -> 20 | AE5: skalotteløg | AF5: =+AF48*Indkøb!$C$4 -> 8 | AG5: =+AG48 -> flaske rødvin Bourgogne | AH5: =+AH48/4*Indkøb!$C$4 -> 2 | AI5: =+AI48 -> kg kartofler store til at skrælle | AJ5: =+AJ48/4*Indkøb!$C$4 -> 4 | AK5: =+AK48 -> kg kartofler | AL5: =+AL48/4*Indkøb!$C$4 -> 0 | AM5: =+AM48 -> 0 | AN5: =+AN48/4*Indkøb!$C$4 -> 0 | AO5: =+AO48 -> 0 | AP5: =+AP48/4*Indkøb!$C$4 -> 2 | AQ5: =+AQ48 -> tsk salt | AR5: =+AR48/4*Indkøb!$C$4 -> 400 | AS5: =+AS48 -> g østershatte | AT5: =+AT48/4*Indkøb!$C$4 -> 500 | AU5: =+AU48 -> g grønsager: gulerod, løg, broccoli, persille, kørvel, dild, estragon, hvidløg, rød chili og fenikkel | AV5: =+AV48/4*Indkøb!$C$4 -> 500 | AW5: g grønsager: gulerod, løg, broccoli, persille, kørvel, dild, estragon, hvidløg, rød chili og fenikkel | AX5: =+AX48/4*Indkøb!$C$4 -> 40 | AY5: g smør til stegning | AZ5: =+AZ48/4*Indkøb!$C$4 -> 2 | BA5: dl rasp | BB5: =+BB48/4*Indkøb!$C$4 -> 2 | BC5: =+BC48 -> tsk salt til drys | BD5: =+BD48/4*Indkøb!$C$4 -> 200 | BE5: g filet af anden mager fisk - aborre eller gedde ( skæres i mundrette stykker ) | BF5: =+BF48/4*Indkøb!$C$4 -> 8 | BG5: =+BG48 -> paneret fiskefilet rødspætte eller tunge | BH5: =+BH48/4*Indkøb!$C$4 -> 300 | BI5: g spæk | BJ5: =+BJ48/4*Indkøb!$C$4 -> 6 | BK5: dl mælk | BL5: =+BL48/4*Indkøb!$C$4 -> 400 | BM5: g skalotteløg | BN5: =+BN48/4*Indkøb!$C$4 -> 2 | BO5: porre | BP5: =+BP48/4*Indkøb!$C$4 -> 8 | BQ5: skiver spæk | BR5: =+BR48/4*Indkøb!$C$4 -> 500 | BS5: g smør til stegning, saucen, svampene og de bagte kartofler | BT5: =+BT48/4*Indkøb!$C$4 -> 200 | BU5: g smør | BV5: =+BV48/4*Indkøb!$C$4 -> 8 | BW5: skiver formfranskbrød ( ca. 1,5 til 2 cm tykke ) | BX5: =+BX48/4*Indkøb!$C$4 -> 0 | BZ5: =+BZ48/4*Indkøb!$C$4 -> 8 | CA5: =+CA48 -> skiver formfranskbrød ( ca. 1,5 til 2 cm tykke ) | CB5: =+CB48/4*Indkøb!$C$4 -> 8 | CC5: =+CC48 -> kopper ris ( køb den du bedst kan lide ) | CD5: =+CD48/4*Indkøb!$C$4 -> 2 | CE5: =+CE48 -> kg kartofler der let koger ud | CF5: =+CF48/4*Indkøb!$C$4 -> 2 | CG5: =+CG48 -> dl rasp | CH5: =+CH48/4*Indkøb!$C$4 -> 2 | CI5: kg nye kartofler | CJ5: 400 | CK5: g mel | CL5: 0 | CM5: 0 | CN5: 0 | CO5: 0 | CP5: 0 | CQ5: 0 | CR5: 0 | CS5: 0 | CT5: 0 | CU5: 0 | CV5: 0 | CW5: 0
A6: 5 | B6: =+List!E9 -> Rødvinsgryde med landbrød | D6: =+D49/4*Indkøb!$C$4 -> 1000 | E6: g små kartofler til bruning (eller tilsvarende i glas - de er færdig til brug) | F6: =+F49/4*Indkøb!$C$4 -> 2 | G6: stort blomkål eller 2 små | H6: =+H49/4*Indkøb!$C$4 -> 200 | I6: g smør til stegning | J6: =+J49/4*Indkøb!$C$4 -> 200 | K6: g smør til stegning | L6: =+L49/4*Indkøb!$C$4 -> 800 | M6: g svinekød | N6: =+N49/4*Indkøb!$C$4 -> 16 | O6: tykke skiver emmentaler ost | P6: =+P49/4*Indkøb!$C$4 -> 2 | Q6: spsk jomfru olivenolie | R6: =+R49/4*Indkøb!$C$4 -> 8 | S6: store løg | T6: =+T49/4*Indkøb!$C$4 -> 2 | U6: tsk salt | V6: =+V49/4*Indkøb!$C$4 -> 2 | W6: spsk. smør | X6: =+X49/4*Indkøb!$C$4 -> 4 | Y6: gulerod | Z6: =+Z49/4*Indkøb!$C$4 -> 120 | AA6: g smør eller jomfru olivenolie | AB6: =+AB49/4*Indkøb!$C$4 -> 2 | AC6: tsk. Peber eller brug en rød chili peber | AD6: =+AD49/4*Indkøb!$C$4 -> 800 | AE6: g svampe efter eget valg | AF6: =+AF49 -> 2 | AG6: dl kraftig hønsebouillon | AH6: =+AH49/4*Indkøb!$C$4 -> 2 | AI6: kg kartofler små til bruning | AJ6: =+AJ49/4*Indkøb!$C$4 -> 4 | AK6: gulerødder | AL6: =+AL49/4*Indkøb!$C$4 -> 0 | AM6: 0 | AN6: =+AN49/4*Indkøb!$C$4 -> 0 | AO6: 0 | AP6: =+AP49/4*Indkøb!$C$4 -> 2 | AQ6: lille tsk hvid peber | AR6: =+AR49/4*Indkøb!$C$4 -> 400 | AS6: g champignoner | AT6: =+AT49/4*Indkøb!$C$4 -> 200 | AU6: g smør | AV6: =+AV49/4*Indkøb!$C$4 -> 40 | AW6: g smør | AX6: =+AX49/4*Indkøb!$C$4 -> 4 | AY6: spsk jomfru olivenolie til stegning | AZ6: =+AZ49/4*Indkøb!$C$4 -> 40 | BA6: g smeltet smør til pensling af fisken | BB6: =+BB49/4*Indkøb!$C$4 -> 2 | BC6: lille tsk hvid peber til drys | BD6: =+BD49/4*Indkøb!$C$4 -> 200 | BE6: g filet af anden mager fisk - fladfisk ( skæres i mundrette stykker ) | BF6: =+BF49/4*Indkøb!$C$4 -> 8 | BG6: dampet fiskefilet rødspætte eller tunge | BH6: =+BH49/4*Indkøb!$C$4 -> 60 | BI6: g smør | BJ6: =+BJ49/4*Indkøb!$C$4 -> 2 | BK6: spsk kartoffelmel | BL6: =+BL49/4*Indkøb!$C$4 -> 400 | BM6: g druer | BN6: =+BN49/4*Indkøb!$C$4 -> 2 | BO6: gulerod | BP6: =+BP49/4*Indkøb!$C$4 -> 2 | BQ6: lille dåse koncentreret tomatpure | BR6: =+BR49/4*Indkøb!$C$4 -> 6 | BS6: spsk jomfru olivenolie | BT6: =+BT49/4*Indkøb!$C$4 -> 8 | BU6: dl rødvin | BV6: =+BV49/4*Indkøb!$C$4 -> 2 | BW6: æg | BX6: =+BX49/4*Indkøb!$C$4 -> 0 | BZ6: =+BZ49/4*Indkøb!$C$4 -> 2 | CA6: lille tsk salt | CB6: =+CB49/4*Indkøb!$C$4 -> 10 | CC6: kopper vand | CD6: =+CD49/4*Indkøb!$C$4 -> 8 | CE6: løg | CF6: =+CF49/4*Indkøb!$C$4 -> 150 | CG6: g smør | CH6: =+CH49/4*Indkøb!$C$4 -> 4 | CI6: store løg | CJ6: 6 | CK6: hele æg | CL6: 0 | CM6: 0 | CN6: 0 | CO6: 0 | CP6: 0 | CQ6: 0 | CR6: 0 | CS6: 0 | CT6: 0 | CU6: 0 | CV6: 0 | CW6: 0
A7: 6 | B7: =+List!E10 -> Karbonader med ost/uden ost | D7: =+D50/4*Indkøb!$C$4 -> 2 | E7: hel rød chili peber | F7: =+F50/4*Indkøb!$C$4 -> 100 | G7: g smør til stegning | H7: =+H50/4*Indkøb!$C$4 -> 2 | I7: brev eller dåse revet peberrod | J7: =+J50/4*Indkøb!$C$4 -> 4 | K7: store løg | L7: =+L50/4*Indkøb!$C$4 -> 800 | M7: g oksekød | N7: =+N50/4*Indkøb!$C$4 -> 32 | O7: skiver bacon | P7: =+P50/4*Indkøb!$C$4 -> 4 | Q7: løg | R7: =+R50/4*Indkøb!$C$4 -> 200 | S7: g smør til stegning af bøffer og løg | T7: =+T50/4*Indkøb!$C$4 -> 2 | U7: lille tsk hvid peber | V7: =+V50/4*Indkøb!$C$4 -> 2 | W7: tsk. salt | X7: =+X50/4*Indkøb!$C$4 -> 4 | Y7: stilke blegselleri | Z7: =+Z50/4*Indkøb!$C$4 -> 4 | AA7: løg | AB7: =+AB50/4*Indkøb!$C$4 -> 4 | AC7: spsk. Smør til bruning | AD7: =+AD50/4*Indkøb!$C$4 -> 100 | AE7: g smør | AF7: 2 | AG7: grofthakkede løg | AH7: =+AH50/4*Indkøb!$C$4 -> 2 | AI7: ds herregårdsrødkål ( den i den hvide plastdåse ) | AJ7: =+AJ50/4*Indkøb!$C$4 -> 4 | AK7: porer | AL7: =+AL50/4*Indkøb!$C$4 -> 0 | AM7: 0 | AN7: =+AN50/4*Indkøb!$C$4 -> 0 | AO7: 0 | AP7: =+AP50/4*Indkøb!$C$4 -> 8 | AQ7: kviste persille til duerne | AR7: =+AR50/4*Indkøb!$C$4 -> 2 | AS7: bdt forårsløg - spring onion | AT7: =+AT50/4*Indkøb!$C$4 -> 2 | AU7: lille tsk salt | AV7: =+AV50/4*Indkøb!$C$4 -> 2 | AW7: lille tsk salt | AX7: =+AX50/4*Indkøb!$C$4 -> 0 | AY7: Hvis du laver farsen selv, skal du bruge flg.: | AZ7: =+AZ50/4*Indkøb!$C$4 -> 8 | BA7: spsk fint hakket persille ( 2 til panering 2 til drys ) | BB7: =+BB50/4*Indkøb!$C$4 -> 2 | BC7: citron ( citronsaft af den halve, resten i skiver til pynt ) | BD7: =+BD50/4*Indkøb!$C$4 -> 400 | BE7: g blå muslinger - dybfrosne | BF7: =+BF50/4*Indkøb!$C$4 -> 8 | BG7: skiver røget laks | BH7: =+BH50/4*Indkøb!$C$4 -> 100 | BI7: g sauce af fedtstof ( til saucen ) | BJ7: =+BJ50/4*Indkøb!$C$4 -> 4 | BK7: spsk revet peberrod | BL7: =+BL50/4*Indkøb!$C$4 -> 4 | BM7: dl hvidvin ( eller rødvin hvis man kun har det ) | BN7: =+BN50/4*Indkøb!$C$4 -> 4 | BO7: skalotteløg | BP7: =+BP50/4*Indkøb!$C$4 -> 0 | BQ7: Marinade: | BR7: =+BR50/4*Indkøb!$C$4 -> 2 | BS7: gulerod | BT7: =+BT50/4*Indkøb!$C$4 -> 10 | BU7: dl vildtbouillon | BV7: =+BV50/4*Indkøb!$C$4 -> 4 | BW7: spsk vand | BX7: =+BX50/4*Indkøb!$C$4 -> 0 | BZ7: =+BZ50/4*Indkøb!$C$4 -> 2 | CA7: lille tsk hvid peber | CB7: =+CB50/4*Indkøb!$C$4 -> 800 | CC7: g grøntsagblanding efter behag | CD7: =+CD50/4*Indkøb!$C$4 -> 8 | CE7: laurbærblade | CF7: =+CF50/4*Indkøb!$C$4 -> 2 | CG7: spsk hakket persille | CH7: =+CH50/4*Indkøb!$C$4 -> 8 | CI7: fed hvidløg | CJ7: 400 | CK7: g finhakket hasselnødder | CL7: 0 | CM7: 0 | CN7: 0 | CO7: 0 | CP7: 0 | CQ7: 0 | CR7: 0 | CS7: 0 | CT7: 0 | CU7: 0 | CV7: 0 | CW7: 0
A8: 7 | B8: =+List!E11 -> Guleærter med koteletter og chili | D8: =+D51/4*Indkøb!$C$4 -> 2 | E8: hel løg | F8: =+F51/4*Indkøb!$C$4 -> 2 | G8: tsk salt | H8: =+H51/4*Indkøb!$C$4 -> 2 | I8: glas capers | J8: =+J51/4*Indkøb!$C$4 -> 2 | K8: fed hvidløg | L8: =+L51/4*Indkøb!$C$4 -> 8 | M8: store løg | N8: =+N51/4*Indkøb!$C$4 -> 2 | O8: tsk salt | P8: =+P51/4*Indkøb!$C$4 -> 4 | Q8: porre | R8: =+R51/4*Indkøb!$C$4 -> 2 | S8: tsk salt | T8: =+T51/4*Indkøb!$C$4 -> 80 | U8: g smør til bruning af bøffer, løg og champignon | V8: =+V51/4*Indkøb!$C$4 -> 2 | W8: tsk. peber | X8: =+X51/4*Indkøb!$C$4 -> 4 | Y8: løg | Z8: =+Z51/4*Indkøb!$C$4 -> 500 | AA8: g champignons | AB8: =+AB51/4*Indkøb!$C$4 -> 4 | AC8: store løg | AD8: =+AD51/4*Indkøb!$C$4 -> 2 | AE8: tsk. Salt | AF8: 5 | AG8: fed hvidløg | AH8: =+AH51/4*Indkøb!$C$4 -> 0 | AI8: 0 | AJ8: =+AJ51/4*Indkøb!$C$4 -> 2 | AK8: løg | AL8: =+AL51/4*Indkøb!$C$4 -> 0 | AM8: 0 | AN8: =+AN51/4*Indkøb!$C$4 -> 0 | AO8: 0 | AP8: =+AP51/4*Indkøb!$C$4 -> 8 | AQ8: kviste pebermynte til duerne | AR8: =+AR51/4*Indkøb!$C$4 -> 2 | AS8: spsk smør til stegning af svampene | AT8: =+AT51/4*Indkøb!$C$4 -> 2 | AU8: lille spsk hvid peber | AV8: =+AV51/4*Indkøb!$C$4 -> 2 | AW8: lille spsk hvid peber | AX8: =+AX51/4*Indkøb!$C$4 -> 4 | AY8: kg friskfanget torsk eller anden hvid, mager fisk. Se nedenfor. | AZ8: =+AZ51/4*Indkøb!$C$4 -> 2 | BA8: tsk salt | BB8: =+BB51/4*Indkøb!$C$4 -> 12 | BC8: dl mælk eller letmælk til soucen | BD8: =+BD51/4*Indkøb!$C$4 -> 200 | BE8: g kæmpe rejer - dybfrosne ( med skal giver den bedste smag ) | BF8: =+BF51/4*Indkøb!$C$4 -> 2 | BG8: pakke rejer dybfrosne | BH8: =+BH51/4*Indkøb!$C$4 -> 150 | BI8: g mel ( til saucen ) | BJ8: =+BJ51/4*Indkøb!$C$4 -> 2 | BK8: tsk salt | BL8: =+BL51/4*Indkøb!$C$4 -> 200 | BM8: g smør | BN8: =+BN51/4*Indkøb!$C$4 -> 100 | BO8: g enebær | BP8: =+BP51/4*Indkøb!$C$4 -> 2 | BQ8: flaske god rødvin - gerne den du drikker til maden | BR8: =+BR51/4*Indkøb!$C$4 -> 2 | BS8: porre | BT8: =+BT51/4*Indkøb!$C$4 -> 2 | BU8: laurbærblad | BV8: =+BV51/4*Indkøb!$C$4 -> 2 | BW8: lille revet løg | BX8: =+BX51/4*Indkøb!$C$4 -> 0 | BZ8: =+BZ51/4*Indkøb!$C$4 -> 8 | CA8: æg | CB8: =+CB51/4*Indkøb!$C$4 -> 4 | CC8: spsk jomfru olivenolie | CD8: =+CD51/4*Indkøb!$C$4 -> 16 | CE8: peberkorn | CF8: =+CF51/4*Indkøb!$C$4 -> 2 | CG8: spsk fint hakket purløg | CH8: =+CH51/4*Indkøb!$C$4 -> 4 | CI8: røde peberfrugter | CJ8: 2 | CK8: tsk bagepulver | CL8: 0 | CM8: 0 | CN8: 0 | CO8: 0 | CP8: 0 | CQ8: 0 | CR8: 0 | CS8: 0 | CT8: 0 | CU8: 0 | CV8: 0 | CW8: 0
D9: =+D52/4*Indkøb!$C$4 -> 4 | E9: fed hvidløg | F9: =+F52/4*Indkøb!$C$4 -> 2 | G9: lille tsk hvid peber | H9: =+H52/4*Indkøb!$C$4 -> 2 | I9: lille glas rødbeder | J9: =+J52/4*Indkøb!$C$4 -> 4 | K9: æg (hvide og blomme) | L9: =+L52/4*Indkøb!$C$4 -> 4 | M9: laurbærblade | N9: =+N52/4*Indkøb!$C$4 -> 2 | O9: lille tsk hvid peber | P9: =+P52/4*Indkøb!$C$4 -> 4 | Q9: gulerødder | R9: =+R52/4*Indkøb!$C$4 -> 2 | S9: lille tsk hvid peber | T9: =+T52/4*Indkøb!$C$4 -> 4 | U9: store løg | V9: =+V52/4*Indkøb!$C$4 -> 16 | W9: små/mellem store tomater | X9: =+X52/4*Indkøb!$C$4 -> 4 | Y9: fed hvidløg | Z9: =+Z52/4*Indkøb!$C$4 -> 2 | AA9: tsk paprika | AB9: =+AB52/4*Indkøb!$C$4 -> 8 | AC9: gulerødder | AD9: =+AD52/4*Indkøb!$C$4 -> 2 | AE9: tsk. Peber | AF9: 2 | AG9: gulerødder | AH9: =+AH52/4*Indkøb!$C$4 -> 0 | AI9: 0 | AJ9: =+AJ52/4*Indkøb!$C$4 -> 4 | AK9: fed hvidløg | AL9: =+AL52/4*Indkøb!$C$4 -> 0 | AM9: 0 | AN9: =+AN52/4*Indkøb!$C$4 -> 0 | AO9: 0 | AP9: =+AP52/4*Indkøb!$C$4 -> 4 | AQ9: spsk hakket persille til drys | AR9: =+AR52/4*Indkøb!$C$4 -> 2 | AS9: dl fløde | AT9: =+AT52/4*Indkøb!$C$4 -> 2 | AU9: citron | AV9: =+AV52/4*Indkøb!$C$4 -> 2 | AW9: citron | AX9: =+AX52/4*Indkøb!$C$4 -> 2 | AY9: løg | AZ9: =+AZ52/4*Indkøb!$C$4 -> 2 | BA9: lille tsk hvid peber | BB9: =+BB52/4*Indkøb!$C$4 -> 40 | BC9: g smør ( 15 g til soucen, 5 g til fadet ) | BD9: =+BD52/4*Indkøb!$C$4 -> 2 | BE9: stort løg i tern | BF9: =+BF52/4*Indkøb!$C$4 -> 2 | BG9: glas sort kaviar | BH9: =+BH52/4*Indkøb!$C$4 -> 16 | BI9: dl mælk ( til saucen ) | BJ9: =+BJ52/4*Indkøb!$C$4 -> 2 | BK9: lille tsk hvid peber | BL9: =+BL52/4*Indkøb!$C$4 -> 600 | BM9: g rosenkål | BN9: =+BN52/4*Indkøb!$C$4 -> 2 | BO9: fed hvidløg | BP9: =+BP52/4*Indkøb!$C$4 -> 8 | BQ9: løg | BR9: =+BR52/4*Indkøb!$C$4 -> 2 | BS9: lille stykke frisk knoldselleri ( eller tørret ) | BT9: =+BT52/4*Indkøb!$C$4 -> 6 | BU9: kviste timian | BV9: =+BV52/4*Indkøb!$C$4 -> 2 | BW9: spsk hakket kapers | BX9: =+BX52/4*Indkøb!$C$4 -> 0 | BZ9: =+BZ52/4*Indkøb!$C$4 -> 2 | CA9: lille glas asier, agurker eller rødbeder | CB9: =+CB52/4*Indkøb!$C$4 -> 1 | CC9: dl soya | CD9: =+CD52/4*Indkøb!$C$4 -> 2 | CE9: tsk salt | CF9: =+CF52/4*Indkøb!$C$4 -> 2 | CG9: tsk timianblade ( uden stilke ) | CH9: =+CH52/4*Indkøb!$C$4 -> 30 | CI9: tråde safran | CJ9: 2 | CK9: Til chokolademousse | CL9: 0 | CM9: 0 | CN9: 0 | CO9: 0 | CP9: 0 | CQ9: 0 | CR9: 0 | CS9: 0 | CT9: 0 | CU9: 0 | CV9: 0 | CW9: 0
A10: =+$A$1 -> Tast se | B10: =+List!E13 -> Oksekød | C10: =+$C$1 -> Tast for print out på retten | D10: =+D53/4*Indkøb!$C$4 -> 4 | E10: blade laurbærblade | F10: =+F53/4*Indkøb!$C$4 -> 2 | G10: dåse bouillon eller vand og terning | H10: =+H53/4*Indkøb!$C$4 -> 2 | I10: lille glas ansjoser til dem der kan lide dette, ellers små sild i dild | J10: =+J53/4*Indkøb!$C$4 -> 6 | K10: spsk mel | L10: =+L53/4*Indkøb!$C$4 -> 4 | M10: nelliker | N10: =+N53/4*Indkøb!$C$4 -> 2 | O10: lille tsk paprika | P10: =+P53/4*Indkøb!$C$4 -> 2 | Q10: lille knoldselleri | R10: =+R53/4*Indkøb!$C$4 -> 2 | S10: lille fløde 13 til saucen | T10: =+T53/4*Indkøb!$C$4 -> 2 | U10: stor pakke champignon | V10: =+V53/4*Indkøb!$C$4 -> 2 | W10: agurk evnt. Skrællet | X10: =+X53/4*Indkøb!$C$4 -> 4 | Y10: porre | Z10: =+Z53/4*Indkøb!$C$4 -> 4 | AA10: dl bouillon eller vand og terning | AB10: =+AB53/4*Indkøb!$C$4 -> 4 | AC10: porrer | AD10: =+AD53/4*Indkøb!$C$4 -> 4 | AE10: tsk. Olie | AF10: 2 | AG10: stængler bladselleri | AH10: =+AH53/4*Indkøb!$C$4 -> 0 | AI10: 0 | AJ10: =+AJ53/4*Indkøb!$C$4 -> 2 | AK10: bdt suppevisk | AL10: =+AL53/4*Indkøb!$C$4 -> 0 | AM10: 0 | AN10: =+AN53/4*Indkøb!$C$4 -> 0 | AO10: 0 | AP10: =+AP53/4*Indkøb!$C$4 -> 2 | AQ10: spsk snittet mynte til drys | AR10: =+AR53/4*Indkøb!$C$4 -> 2 | AS10: dl rødvin | AT10: =+AT53/4*Indkøb!$C$4 -> 4 | AU10: spsk kapers | AV10: =+AV53/4*Indkøb!$C$4 -> 4 | AW10: spsk kapers | AX10: =+AX53/4*Indkøb!$C$4 -> 2 | AY10: fed hvidløg | AZ10: =+AZ53/4*Indkøb!$C$4 -> 2 | BA10: glas remo eller pickles efter behag | BB10: =+BB53/4*Indkøb!$C$4 -> 6 | BC10: spsk hvedemel | BD10: =+BD53/4*Indkøb!$C$4 -> 2 | BE10: fennikelknold i store tern | BF10: =+BF53/4*Indkøb!$C$4 -> 2 | BG10: bdt dild fint hakket | BH10: =+BH53/4*Indkøb!$C$4 -> 4 | BI10: tsk mad kulør | BJ10: =+BJ53/4*Indkøb!$C$4 -> 160 | BK10: g smør | BL10: =+BL53/4*Indkøb!$C$4 -> 4 | BM10: spsk citronsaft ca. 1/2 citron samt citronskal | BN10: =+BN53/4*Indkøb!$C$4 -> 10 | BO10: dl kalvefond ( eller bouillonterninger og vand ) | BP10: =+BP53/4*Indkøb!$C$4 -> 6 | BQ10: fed hvidløg | BR10: =+BR53/4*Indkøb!$C$4 -> 2 | BS10: lille bundt persille 3 stilke til soucen og hakket persille til pynt | BT10: =+BT53/4*Indkøb!$C$4 -> 6 | BU10: dl vand | BV10: =+BV53/4*Indkøb!$C$4 -> 4 | BW10: spsk hakket rødbeder | BX10: =+BX53/4*Indkøb!$C$4 -> 0 | BZ10: =+BZ53/4*Indkøb!$C$4 -> 8 | CA10: stænk Tabasco på spejleægget | CB10: =+CB53/4*Indkøb!$C$4 -> 4 | CC10: spsk kartoffelmel | CD10: =+CD53/4*Indkøb!$C$4 -> 2 | CE10: bundt persille | CF10: =+CF53/4*Indkøb!$C$4 -> 2 | CG10: lille tsk salt | CH10: =+CH53/4*Indkøb!$C$4 -> 100 | CI10: g smuttede hakkede mandler | CJ10: 8 | CK10: hele æg | CL10: 0 | CM10: 0 | CN10: 0 | CO10: 0 | CP10: 0 | CQ10: 0 | CR10: 0 | CS10: 0 | CT10: 0 | CU10: 0 | CV10: 0 | CW10: 0
A11: 8 | B11: =+List!E14 -> Dansk hakkebøf med bløde løg | D11: =+D54/4*Indkøb!$C$4 -> 4 | E11: skiver ingefær | F11: =+F54/4*Indkøb!$C$4 -> 6 | G11: spsk mel | H11: =+H54/4*Indkøb!$C$4 -> 2 | I11: lille glas pickles | J11: =+J54/4*Indkøb!$C$4 -> 2 | K11: tsk salt | L11: =+L54/4*Indkøb!$C$4 -> 500 | M11: g tomater | N11: =+N54/4*Indkøb!$C$4 -> 2 | O11: lille pakke frosne bønner eller friske efter behag | P11: =+P54/4*Indkøb!$C$4 -> 2 | Q11: persillerod | R11: =+R54/4*Indkøb!$C$4 -> 2 | S11: agurk | T11: =+T54/4*Indkøb!$C$4 -> 4 | U11: pakker færdiglavet bainase souce | V11: =+V54/4*Indkøb!$C$4 -> 2 | W11: stor salathoved | X11: =+X54/4*Indkøb!$C$4 -> 2 | Y11: lille persillerod | Z11: =+Z54/4*Indkøb!$C$4 -> 4 | AA11: dl piskefløde | AB11: =+AB54/4*Indkøb!$C$4 -> 2 | AC11: kg kartofler | AD11: =+AD54/4*Indkøb!$C$4 -> 4 | AE11: dl. Bouillon | AF11: 4 | AG11: nelliker | AH11: =+AH54/4*Indkøb!$C$4 -> 0 | AI11: 0 | AJ11: =+AJ54/4*Indkøb!$C$4 -> 20 | AK11: cm peberrod eller 2 ds færdig revet peberrod | AL11: =+AL54/4*Indkøb!$C$4 -> 0 | AM11: 0 | AN11: =+AN54/4*Indkøb!$C$4 -> 0 | AO11: 0 | AP11: =+AP54/4*Indkøb!$C$4 -> 40 | AQ11: g smør til stegning af duerne | AR11: =+AR54/4*Indkøb!$C$4 -> 2 | AS11: tsk salt | AT11: =+AT54/4*Indkøb!$C$4 -> 2 | AU11: spsk Dijon sennep | AV11: =+AV54/4*Indkøb!$C$4 -> 2 | AW11: spsk Dijon sennep | AX11: =+AX54/4*Indkøb!$C$4 -> 160 | AY11: g spæk | AZ11: =+AZ54/4*Indkøb!$C$4 -> 2 | BA11: fed hvidløg | BB11: =+BB54/4*Indkøb!$C$4 -> 4 | BC11: spsk fiskesennep | BD11: =+BD54/4*Indkøb!$C$4 -> 6 | BE11: spsk jomfru olivenolie | BF11: =+BF54/4*Indkøb!$C$4 -> 8 | BG11: pæne salatblade | BH11: =+BH54/4*Indkøb!$C$4 -> 2 | BI11: lille glas ribsgele | BJ11: =+BJ54/4*Indkøb!$C$4 -> 4 | BK11: dl bouillon ( terninger og vand ) | BL11: =+BL54/4*Indkøb!$C$4 -> 20 | BM11: fed hvidløg | BN11: =+BN54/4*Indkøb!$C$4 -> 4 | BO11: dl portvin | BP11: =+BP54/4*Indkøb!$C$4 -> 2 | BQ11: strimmel appelsinskræl | BR11: =+BR54/4*Indkøb!$C$4 -> 4 | BS11: spsk maizenamel ( eller hvedemel ) | BT11: =+BT54/4*Indkøb!$C$4 -> 8 | BU11: skiver spæk | BV11: =+BV54/4*Indkøb!$C$4 -> 2 | BW11: lille tsk salt | BX11: =+BX54/4*Indkøb!$C$4 -> 0 | BZ11: =+BZ54/4*Indkøb!$C$4 -> 32 | CA11: bacon skiver godt ristet | CB11: =+CB54/4*Indkøb!$C$4 -> 4 | CC11: spsk amerikansk grillkrydderi | CD11: =+CD54/4*Indkøb!$C$4 -> 2 | CE11: groft rugbrød | CF11: =+CF54/4*Indkøb!$C$4 -> 2 | CG11: meget lille tsk hvid peber | CH11: =+CH54/4*Indkøb!$C$4 -> 4 | CI11: salathoveder | CJ11: 8 | CK11: spsk flormelis | CL11: 0 | CM11: 0 | CN11: 0 | CO11: 0 | CP11: 0 | CQ11: 0 | CR11: 0 | CS11: 0 | CT11: 0 | CU11: 0 | CV11: 0 | CW11: 0
A12: 9 | B12: =+List!E15 -> Tournedos beef med bainase souce | D12: =+D55/4*Indkøb!$C$4 -> 2 | E12: tsk salt | F12: =+F55/4*Indkøb!$C$4 -> 2 | G12: tsk paprika | H12: =+H55/4*Indkøb!$C$4 -> 2 | I12: spsk salt | J12: =+J55/4*Indkøb!$C$4 -> 2 | K12: lille tsk hvid peber | L12: =+L55/4*Indkøb!$C$4 -> 1000 | M12: g frosne bønner | N12: =+N55/4*Indkøb!$C$4 -> 8 | O12: pæne tomater | P12: =+P55/4*Indkøb!$C$4 -> 16 | Q12: kartofler | R12: =+R55/4*Indkøb!$C$4 -> 2 | S12: glas asier eller små agurker | T12: =+T55/4*Indkøb!$C$4 -> 8 | U12: røde chili peber (skal være friske) | V12: =+V55/4*Indkøb!$C$4 -> 16 | W12: forårsløg | X12: =+X55/4*Indkøb!$C$4 -> 2 | Y12: dåse flådede tomater | Z12: =+Z55/4*Indkøb!$C$4 -> 2 | AA12: lille dåse tomatpure | AB12: =+AB55/4*Indkøb!$C$4 -> 8 | AC12: kviste timian | AF12: 1 | AG12: spsk. Hele peberkorn | AH12: =+AH55/4*Indkøb!$C$4 -> 0 | AI12: 0 | AJ12: =+AJ55/4*Indkøb!$C$4 -> 0 | AK12: 0 | AL12: =+AL55/4*Indkøb!$C$4 -> 0 | AM12: 0 | AN12: =+AN55/4*Indkøb!$C$4 -> 0 | AO12: 0 | AP12: =+AP55/4*Indkøb!$C$4 -> 6 | AQ12: stk løg i tern | AR12: =+AR55/4*Indkøb!$C$4 -> 2 | AS12: lille tsk hvid peber | AT12: =+AT55/4*Indkøb!$C$4 -> 2 | AU12: vineddike eller hvidvin | AV12: =+AV55/4*Indkøb!$C$4 -> 2 | AW12: groft landbrøg ( Goslarbrød ) | AX12: =+AX55/4*Indkøb!$C$4 -> 2 | AY12: tsk salt | AZ12: =+AZ55/4*Indkøb!$C$4 -> 4 | BA12: skiver ingefær | BB12: =+BB55/4*Indkøb!$C$4 -> 2 | BC12: spsk hvidvins eddike | BD12: =+BD55/4*Indkøb!$C$4 -> 4 | BE12: liter lys bouillon ( fiske- eller hønsebouillon ) se opskriften nedenfor | BF12: =+BF55/4*Indkøb!$C$4 -> 2 | BG12: lille glas asparges | BH12: =+BH55/4*Indkøb!$C$4 -> 2 | BI12: dl piskefløde til flødeskum | BJ12: =+BJ55/4*Indkøb!$C$4 -> 2 | BK12: spsk knust enebær | BL12: =+BL55/4*Indkøb!$C$4 -> 2 | BM12: bdt persille | BN12: =+BN55/4*Indkøb!$C$4 -> 200 | BO12: g smør | BP12: =+BP55/4*Indkøb!$C$4 -> 300 | BQ12: g sorte oliven | BR12: =+BR55/4*Indkøb!$C$4 -> 1 | BS12: kg frisk grønkål eller en pose drybfrosne grønkål | BT12: =+BT55/4*Indkøb!$C$4 -> 2 | BU12: dl piskefløde ( eller fløde 13 ) | BV12: =+BV55/4*Indkøb!$C$4 -> 2 | BW12: lille tsk hvid peber | BX12: =+BX55/4*Indkøb!$C$4 -> 0 | BZ12: =+BZ55/4*Indkøb!$C$4 -> 4 | CA12: tsk. Smør til spejleæggene | CB12: =+CB55/4*Indkøb!$C$4 -> 4 | CC12: fed hvidløg | CD12: =+CD55/4*Indkøb!$C$4 -> 2 | CE12: lille glas rødbeder | CF12: =+CF55/4*Indkøb!$C$4 -> 32 | CG12: sherrytomater | CH12: =+CH55/4*Indkøb!$C$4 -> 4 | CI12: tsk paprika ( 1 rosen og 1 hot paprika ) | CJ12: 5 | CK12: dl piskefløde | CL12: 0 | CM12: 0 | CN12: 0 | CO12: 0 | CP12: 0 | CQ12: 0 | CR12: 0 | CS12: 0 | CT12: 0 | CU12: 0 | CV12: 0 | CW12: 0
A13: 10 | B13: =+List!E16 -> T-bone steak med bagte kartofler | D13: =+D56/4*Indkøb!$C$4 -> 2 | E13: lille tsk hvid peber | F13: =+F56/4*Indkøb!$C$4 -> 2 | G13: bdt persille | H13: =+H56/4*Indkøb!$C$4 -> 2 | I13: lille spsk hvid peber | J13: =+J56/4*Indkøb!$C$4 -> 2 | K13: lille fløde 13 | L13: =+L56/4*Indkøb!$C$4 -> 4 | M13: gulerødder | N13: =+N56/4*Indkøb!$C$4 -> 2 | O13: lidt hvidvinseddike | P13: =+P56/4*Indkøb!$C$4 -> 4 | Q13: l bouillonsuppe | R13: =+R56/4*Indkøb!$C$4 -> 2 | S13: lille flaske eddike | T13: =+T56/4*Indkøb!$C$4 -> 6 | U13: røde, gule og grønne peber frugter ( en af hver ) | V13: =+V56/4*Indkøb!$C$4 -> 2 | W13: bundt persille | X13: =+X56/4*Indkøb!$C$4 -> 4 | Y13: laurbærblade | Z13: =+Z56/4*Indkøb!$C$4 -> 2 | AA13: glas rødvin | AB13: =+AB56/4*Indkøb!$C$4 -> 16 | AC13: laurbærblade | AD13: =+AD56/4*Indkøb!$C$4 -> 1600 | AE13: g. Pomes frites | AF13: 100 | AG13: g koldt smør ( til montering af saucen ) | AH13: =+AH56/4*Indkøb!$C$4 -> 0 | AI13: 0 | AJ13: =+AJ56/4*Indkøb!$C$4 -> 0 | AK13: 0 | AL13: =+AL56/4*Indkøb!$C$4 -> 0 | AM13: 0 | AN13: =+AN56/4*Indkøb!$C$4 -> 0 | AO13: 0 | AP13: =+AP56/4*Indkøb!$C$4 -> 2 | AQ13: stk citron ( kun saften af denne ) | AR13: =+AR56/4*Indkøb!$C$4 -> 16 | AS13: store kartofler til Hasselback kartofler | AT13: =+AT56/4*Indkøb!$C$4 -> 2 | AU13: peberrod | AX13: =+AX56/4*Indkøb!$C$4 -> 2 | AY13: lille tsk hvid peber | AZ13: =+AZ56/4*Indkøb!$C$4 -> 2 | BA13: rød chili peber | BB13: =+BB56/4*Indkøb!$C$4 -> 2 | BC13: tsk salt | BD13: =+BD56/4*Indkøb!$C$4 -> 8 | BE13: store kartofler i skiver | BF13: =+BF56/4*Indkøb!$C$4 -> 0 | BG13: Rød dressing: | BH13: =+BH56/4*Indkøb!$C$4 -> 2 | BI13: tsk salt | BJ13: =+BJ56/4*Indkøb!$C$4 -> 2 | BK13: kg kartofler | BL13: =+BL56/4*Indkøb!$C$4 -> 2 | BM13: kg kartofler | BN13: =+BN56/4*Indkøb!$C$4 -> 200 | BO13: g karljohansvampe ( findes disse ikke brug champignon ) | BP13: =+BP56/4*Indkøb!$C$4 -> 2 | BQ13: dl jomfru olivenolie | BR13: =+BR56/4*Indkøb!$C$4 -> 4 | BS13: dl fløde | BT13: =+BT56/4*Indkøb!$C$4 -> 2 | BU13: tsk mad kulør hvis det er nødvendigt | BV13: =+BV56/4*Indkøb!$C$4 -> 8 | BW13: store rå løgringe | BX13: =+BX56/4*Indkøb!$C$4 -> 0 | CB13: =+CB56/4*Indkøb!$C$4 -> 2 | CC13: lille tsk salt | CD13: =+CD56/4*Indkøb!$C$4 -> 0 | CE13: salt og hvid peber | CF13: =+CF56/4*Indkøb!$C$4 -> 2 | CG13: dl jomfru olivenolie | CH13: =+CH56/4*Indkøb!$C$4 -> 4 | CI13: dl snittede krydderurter: dild, kørvel, estragon, persille og løvstikke | CJ13: 300 | CK13: g mørk chokolade | CL13: 0 | CM13: 0 | CN13: 0 | CO13: 0 | CP13: 0 | CQ13: 0 | CR13: 0 | CS13: 0 | CT13: 0 | CU13: 0 | CV13: 0 | CW13: 0
A14: 11 | B14: =+List!E17 -> Osso buco med grøntsager | D14: =+D57/4*Indkøb!$C$4 -> 10 | E14: dl rødvin | F14: =+F57/4*Indkøb!$C$4 -> 2 | G14: dl piskefløde | J14: =+J57/4*Indkøb!$C$4 -> 2 | K14: tsk allehånde | L14: =+L57/4*Indkøb!$C$4 -> 4 | M14: bayerske pølser | N14: =+N57/4*Indkøb!$C$4 -> 2 | O14: lidt jomfru olivenolie | P14: =+P57/4*Indkøb!$C$4 -> 2 | Q14: kvist frisk timian | R14: =+R57/4*Indkøb!$C$4 -> 200 | S14: g sukker | T14: =+T57/4*Indkøb!$C$4 -> 32 | U14: fed hvidløg | V14: =+V57/4*Indkøb!$C$4 -> 4 | W14: røde chili peber | X14: =+X57/4*Indkøb!$C$4 -> 2 | Y14: kvist rosmarin | Z14: =+Z57/4*Indkøb!$C$4 -> 2 | AA14: dl cremefraiche | AB14: =+AB57/4*Indkøb!$C$4 -> 2 | AC14: porter | AF14: 1 | AG14: suppevisk timian, persille og laurbærblade (løvstikke, salvie) | AH14: =+AH57/4*Indkøb!$C$4 -> 0 | AI14: 0 | AJ14: =+AJ57/4*Indkøb!$C$4 -> 0 | AK14: 0 | AL14: =+AL57/4*Indkøb!$C$4 -> 0 | AM14: 0 | AN14: =+AN57/4*Indkøb!$C$4 -> 0 | AO14: 0 | AP14: =+AP57/4*Indkøb!$C$4 -> 30 | AQ14: tråde safran | AR14: =+AR57/4*Indkøb!$C$4 -> 4 | AS14: spsk smør/olie til pensling af kartoflerne | AT14: =+AT57/4*Indkøb!$C$4 -> 4 | AU14: kg små pille kartofler | AX14: =+AX57/4*Indkøb!$C$4 -> 2 | AY14: æg | AZ14: =+AZ57/4*Indkøb!$C$4 -> 2 | BA14: citron | BB14: =+BB57/4*Indkøb!$C$4 -> 2 | BC14: tsk sukker | BD14: =+BD57/4*Indkøb!$C$4 -> 2 | BE14: appelsin ( skal af den halve appelsin ) | BF14: =+BF57/4*Indkøb!$C$4 -> 150 | BG14: g mayonaise | BH14: =+BH57/4*Indkøb!$C$4 -> 2 | BI14: lille tsk hvid peber | BJ14: =+BJ57/4*Indkøb!$C$4 -> 2 | BK14: groft landbrød | BL14: =+BL57/4*Indkøb!$C$4 -> 2 | BM14: kvist rosmarin | BN14: =+BN57/4*Indkøb!$C$4 -> 200 | BO14: kantareller | BP14: =+BP57/4*Indkøb!$C$4 -> 2 | BQ14: lille glas cognac | BR14: =+BR57/4*Indkøb!$C$4 -> 800 | BS14: g vilde svampe ( karljohan, kantareller. Almindelige svampe kan også anvendes ) | BT14: =+BT57/4*Indkøb!$C$4 -> 2 | BU14: kg gode kartofler | BV14: =+BV57/4*Indkøb!$C$4 -> 8 | BW14: rå æggeblommer | BX14: =+BX57/4*Indkøb!$C$4 -> 0 | CB14: =+CB57/4*Indkøb!$C$4 -> 2 | CC14: lille tsk hvid peber | CD14: =+CD57/4*Indkøb!$C$4 -> 10 | CE14: dl vand til kogning af kødet | CF14: =+CF57/4*Indkøb!$C$4 -> 4 | CG14: spsk pinjekerner | CH14: =+CH57/4*Indkøb!$C$4 -> 4 | CI14: spsk jomfru olivenolie | CJ14: 200 | CK14: g nougat | CL14: 0 | CM14: 0 | CN14: 0 | CO14: 0 | CP14: 0 | CQ14: 0 | CR14: 0 | CS14: 0 | CT14: 0 | CU14: 0 | CV14: 0 | CW14: 0
A15: 12 | B15: =+List!E18 -> Beef Stroganoff med kartoffelmos | D15: =+D58/4*Indkøb!$C$4 -> 10 | E15: dl vand | L15: =+L58/4*Indkøb!$C$4 -> 2 | M15: tsk salt | N15: =+N58/4*Indkøb!$C$4 -> 2 | O15: spsk sukker eller honning | P15: =+P58/4*Indkøb!$C$4 -> 2 | Q15: hel frisk chili peber eller tørret | R15: =+R58/4*Indkøb!$C$4 -> 2 | S15: tsk salt | T15: =+T58/4*Indkøb!$C$4 -> 2 | U15: dl hvidvinseddike | V15: =+V58/4*Indkøb!$C$4 -> 800 | W15: g fåreost | X15: =+X58/4*Indkøb!$C$4 -> 2 | Y15: lille dåse koncentreret tomatpure | Z15: =+Z58/4*Indkøb!$C$4 -> 2 | AA15: tsk salt | AB15: =+AB58/4*Indkøb!$C$4 -> 4 | AC15: dl. Bouillon | AF15: 200 | AG15: g bacon | AH15: =+AH58/4*Indkøb!$C$4 -> 0 | AI15: 0 | AJ15: =+AJ58/4*Indkøb!$C$4 -> 0 | AK15: 0 | AL15: =+AL58/4*Indkøb!$C$4 -> 0 | AM15: 0 | AN15: =+AN58/4*Indkøb!$C$4 -> 0 | AO15: 0 | AP15: =+AP58/4*Indkøb!$C$4 -> 8 | AQ15: dl lys boullion ( evnt. terninger og vand ) | AX15: =+AX58/4*Indkøb!$C$4 -> 2 | AY15: fl god remolade | AZ15: =+AZ58/4*Indkøb!$C$4 -> 2 | BA15: kg nye danske kartofler | BB15: =+BB58/4*Indkøb!$C$4 -> 2 | BC15: dl revet peberrod | BD15: =+BD58/4*Indkøb!$C$4 -> 20 | BE15: tråde safran ( eller 1 tsk gurkemeje pulver ) | BF15: =+BF58/4*Indkøb!$C$4 -> 2 | BG15: dl cremefraise | BH15: =+BH58/4*Indkøb!$C$4 -> 2 | BI15: kg kartofler | BJ15: =+BJ58/4*Indkøb!$C$4 -> 2 | BK15: agurk | BL15: =+BL58/4*Indkøb!$C$4 -> 4 | BM15: spsk andefedt eller afklaret smør | BN15: =+BN58/4*Indkøb!$C$4 -> 80 | BO15: g smør til stegning af svampene (20g) og smør ristede aspargeskartofler (20 g) | BP15: =+BP58/4*Indkøb!$C$4 -> 2 | BQ15: tsk salt | BR15: =+BR58/4*Indkøb!$C$4 -> 8 | BS15: store bagekartofler ( eller dobbelt så mange, hvis de er små ) | BT15: =+BT58/4*Indkøb!$C$4 -> 2 | BU15: tsk salt | BV15: =+BV58/4*Indkøb!$C$4 -> 100 | BW15: g smør til stegning | BX15: =+BX58/4*Indkøb!$C$4 -> 0 | CB15: =+CB58/4*Indkøb!$C$4 -> 0 | CF15: =+CF58/4*Indkøb!$C$4 -> 2 | CG15: fed hvidløg | CH15: =+CH58/4*Indkøb!$C$4 -> 4 | CI15: spsk hvedemel | CJ15: 2 | CK15: Til chokoladecreme på toppen | CL15: 0 | CM15: 0 | CN15: 0 | CO15: 0 | CP15: 0 | CQ15: 0 | CR15: 0 | CS15: 0 | CT15: 0 | CU15: 0 | CV15: 0 | CW15: 0
A16: 13 | B16: =+List!E19 -> Oksekødsgryde med rodfrugter | D16: =+D59/4*Indkøb!$C$4 -> 6 | E16: spsk mel til soucen | L16: =+L59/4*Indkøb!$C$4 -> 2 | M16: lille tsk hvid peber | N16: =+N59/4*Indkøb!$C$4 -> 2 | O16: løg | P16: =+P59/4*Indkøb!$C$4 -> 12 | Q16: dl Møllerens Gule Ærter ( 3/4 pakke ) Tykkelsen justeres af mængden | T16: =+T59/4*Indkøb!$C$4 -> 2 | U16: dl jomfru olivenolie | V16: =+V59/4*Indkøb!$C$4 -> 2 | W16: tsk. salt | X16: =+X59/4*Indkøb!$C$4 -> 2 | Y16: spsk mel | Z16: =+Z59/4*Indkøb!$C$4 -> 2 | AA16: lille tsk hvid peber | AB16: =+AB59/4*Indkøb!$C$4 -> 2 | AC16: bdt. Persille | AF16: 250 | AG16: g champignon | AH16: =+AH59/4*Indkøb!$C$4 -> 0 | AI16: 0 | AJ16: =+AJ59/4*Indkøb!$C$4 -> 0 | AK16: 0 | AL16: =+AL59/4*Indkøb!$C$4 -> 0 | AM16: 0 | AN16: =+AN59/4*Indkøb!$C$4 -> 0 | AO16: 0 | AP16: =+AP59/4*Indkøb!$C$4 -> 600 | AQ16: g jorbær- eller vinrabarber | AX16: =+AX59/4*Indkøb!$C$4 -> 16 | AY16: skiver groft rugbrød | AZ16: =+AZ59/4*Indkøb!$C$4 -> 0 | BA16: eller | BB16: =+BB59/4*Indkøb!$C$4 -> 4 | BC16: æg | BD16: =+BD59/4*Indkøb!$C$4 -> 8 | BE16: kviste persille ( stilkene bruges i suppen, resten hakkes og bruges som drys ) | BF16: =+BF59/4*Indkøb!$C$4 -> 2 | BG16: spsk tomatkoncentrat | BH16: =+BH59/4*Indkøb!$C$4 -> 2 | BI16: glas syltede grønne tomater | BJ16: =+BJ59/4*Indkøb!$C$4 -> 2 | BK16: dl eddike | BL16: =+BL59/4*Indkøb!$C$4 -> 10 | BM16: dl vand til fond med en suppevisk ( se opskriften og ingridienserne nedenfor ) | BN16: =+BN59/4*Indkøb!$C$4 -> 40 | BO16: g jomfu olivenolie til stegning af svampene | BP16: =+BP59/4*Indkøb!$C$4 -> 2 | BQ16: lille tsk hvid peber | BR16: =+BR59/4*Indkøb!$C$4 -> 2 | BS16: bdt frisk rosmarin | BT16: =+BT59/4*Indkøb!$C$4 -> 2 | BU16: lille tsk hvid peber | BX16: =+BX59/4*Indkøb!$C$4 -> 0 | CB16: =+CB59/4*Indkøb!$C$4 -> 2 | CC16: lille glas syltede røde chili peber | CF16: =+CF59/4*Indkøb!$C$4 -> 2 | CG16: bundt basilikum (gem nogle blade til pynt) | CH16: =+CH59/4*Indkøb!$C$4 -> 4 | CI16: dl hvidvin eller 1 1/2 dl hvidvin og 1/2 dl cognac | CJ16: 200 | CK16: g mørk chokolade | CL16: 0 | CM16: 0 | CN16: 0 | CO16: 0 | CP16: 0 | CQ16: 0 | CR16: 0 | CS16: 0 | CT16: 0 | CU16: 0 | CV16: 0 | CW16: 0
A17: 14 | B17: =+List!E20 -> Engelsk bøf med svampe og løg | D17: =+D60/4*Indkøb!$C$4 -> 2 | E17: glas rødkål | L17: =+L60/4*Indkøb!$C$4 -> 10 | M17: dl rødvin | N17: =+N60/4*Indkøb!$C$4 -> 2 | O17: chilipeber | P17: =+P60/4*Indkøb!$C$4 -> 2 | Q17: tsk salt | T17: =+T60/4*Indkøb!$C$4 -> 8 | U17: spsk sukker eller honning | V17: =+V60/4*Indkøb!$C$4 -> 2 | W17: lille glas oliven grønne eller sorte uden sten | X17: =+X60/4*Indkøb!$C$4 -> 40 | Y17: g smør eller jomfru olivenolie | Z17: =+Z60/4*Indkøb!$C$4 -> 0 | AA17: Kartoffelmos: | AF17: 1 | AG17: glas perleløg | AH17: =+AH60/4*Indkøb!$C$4 -> 0 | AI17: 0 | AJ17: =+AJ60/4*Indkøb!$C$4 -> 0 | AK17: 0 | AL17: =+AL60/4*Indkøb!$C$4 -> 0 | AM17: 0 | AN17: =+AN60/4*Indkøb!$C$4 -> 0 | AO17: 0 | AP17: =+AP60/4*Indkøb!$C$4 -> 4 | AQ17: tsk rørsukker eller honning | AX17: =+AX60/4*Indkøb!$C$4 -> 40 | AY17: g smør til brødet | AZ17: =+AZ60/4*Indkøb!$C$4 -> 16 | BA17: stk groft rugbrød | BB17: =+BB60/4*Indkøb!$C$4 -> 2 | BC17: lille glas syltede rødbeder | BD17: =+BD60/4*Indkøb!$C$4 -> 8 | BE17: stk modne tomater i både ( eller en lille dåse tomatpure så undgår du tomatskind i suppen ) | BF17: =+BF60/4*Indkøb!$C$4 -> 2 | BG17: tsk paprika - rosen/edelsüss | BJ17: =+BJ60/4*Indkøb!$C$4 -> 0.4 | BK17: dl vand | BL17: =+BL60/4*Indkøb!$C$4 -> 4 | BM17: gulerødder | BN17: =+BN60/4*Indkøb!$C$4 -> 2 | BO17: lille tsk salt | BP17: =+BP60/4*Indkøb!$C$4 -> 2 | BQ17: drys muskatnød | BR17: =+BR60/4*Indkøb!$C$4 -> 4 | BS17: tsk salt | BT17: =+BT60/4*Indkøb!$C$4 -> 0 | BU17: gode grøntsager efter behag | BX17: =+BX60/4*Indkøb!$C$4 -> 0 | CJ17: 200 | CK17: g smør | CL17: 0 | CM17: 0 | CN17: 0 | CO17: 0 | CP17: 0 | CQ17: 0 | CR17: 0 | CS17: 0 | CT17: 0 | CU17: 0 | CV17: 0 | CW17: 0
D18: =+D61/4*Indkøb!$C$4 -> 2 | E18: glas asier eller små agurker | L18: =+L61/4*Indkøb!$C$4 -> 2 | M18: bdt persille | N18: =+N61/4*Indkøb!$C$4 -> 2 | O18: fed hvidløg | P18: =+P61/4*Indkøb!$C$4 -> 2 | Q18: lille tsk hvid peber | V18: =+V61/4*Indkøb!$C$4 -> 4 | W18: spsk. olivenolie | X18: =+X61/4*Indkøb!$C$4 -> 2 | Y18: rød chili peber | Z18: =+Z61/4*Indkøb!$C$4 -> 2 | AA18: dl mælk | AF18: 4 | AG18: spsk. Olivenolie | AH18: =+AH61/4*Indkøb!$C$4 -> 0 | AI18: 0 | AJ18: =+AJ61/4*Indkøb!$C$4 -> 0 | AK18: 0 | AL18: =+AL61/4*Indkøb!$C$4 -> 0 | AM18: 0 | AN18: =+AN61/4*Indkøb!$C$4 -> 0 | AO18: 0 | AP18: =+AP61/4*Indkøb!$C$4 -> 8 | AQ18: dl jasminris eller basmatiris | AX18: =+AX61/4*Indkøb!$C$4 -> 2 | AY18: citron | AZ18: =+AZ61/4*Indkøb!$C$4 -> 400 | BA18: g kold smør | BB18: =+BB61/4*Indkøb!$C$4 -> 2 | BC18: kg pille kartofler | BD18: =+BD61/4*Indkøb!$C$4 -> 8 | BE18: fed hvidløg ( hakkes ) | BF18: =+BF61/4*Indkøb!$C$4 -> 2 | BG18: tsk citronsaft | BJ18: =+BJ61/4*Indkøb!$C$4 -> 2 | BK18: tsk salt til udtræk af vandet i agurken | BL18: =+BL61/4*Indkøb!$C$4 -> 2 | BM18: lille knoldselleri eller 1/4 stor | BN18: =+BN61/4*Indkøb!$C$4 -> 2 | BO18: lille tsk hvid peber | BP18: =+BP61/4*Indkøb!$C$4 -> 2 | BQ18: lille kvist timian | BR18: =+BR61/4*Indkøb!$C$4 -> 2 | BS18: tsk hvid peber | BX18: =+BX61/4*Indkøb!$C$4 -> 0 | CG18: Hjemmebagt brød til 4 personer: | CJ18: 200 | CK18: g sukker | CL18: 0 | CM18: 0 | CN18: 0 | CO18: 0 | CP18: 0 | CQ18: 0 | CR18: 0 | CS18: 0 | CT18: 0 | CU18: 0 | CV18: 0 | CW18: 0
A19: =+$A$1 -> Tast se | B19: =+List!E22 -> Fjerkræ | C19: =+$C$1 -> Tast for print out på retten | D19: =+D62/4*Indkøb!$C$4 -> 2 | E19: spsk honning til rødkålen | L19: =+L62/4*Indkøb!$C$4 -> 2 | M19: stort groft landbrød efter eget ønske | N19: =+N62/4*Indkøb!$C$4 -> 2 | O19: groft landbrød | P19: =+P62/4*Indkøb!$C$4 -> 2 | Q19: glas Dijon sennep | V19: =+V62/4*Indkøb!$C$4 -> 4 | W19: spsk. eddike | X19: =+X62/4*Indkøb!$C$4 -> 2 | Y19: tsk salt | Z19: =+Z62/4*Indkøb!$C$4 -> 20 | AA19: g smør | AF19: 100 | AG19: g smør | AH19: =+AH62/4*Indkøb!$C$4 -> 0 | AI19: 0 | AJ19: =+AJ62/4*Indkøb!$C$4 -> 0 | AK19: 0 | AL19: =+AL62/4*Indkøb!$C$4 -> 0 | AM19: 0 | AN19: =+AN62/4*Indkøb!$C$4 -> 0 | AO19: 0 | AP19: =+AP62/4*Indkøb!$C$4 -> 12 | AQ19: dl vand til risene | AX19: =+AX62/4*Indkøb!$C$4 -> 2 | AY19: bdt brøndkarse til pynt | AZ19: =+AZ62/4*Indkøb!$C$4 -> 0 | BB19: =+BB62/4*Indkøb!$C$4 -> 8 | BC19: stilke persille til pynt | BD19: =+BD62/4*Indkøb!$C$4 -> 4 | BE19: hot røde chili peber ( skæres i tynde skiver - pas på ) | BF19: =+BF62/4*Indkøb!$C$4 -> 2 | BG19: fed hvidløg fint hakket | BJ19: =+BJ62/4*Indkøb!$C$4 -> 6 | BK19: spsk sukker | BL19: =+BL62/4*Indkøb!$C$4 -> 2 | BM19: porre | BN19: =+BN62/4*Indkøb!$C$4 -> 2 | BO19: lille glas tyttebær eller ribs | BP19: =+BP62/4*Indkøb!$C$4 -> 4 | BQ19: laurbærblade | BX19: =+BX62/4*Indkøb!$C$4 -> 0 | CG19: 850 g hvedemel, 50 g grahamsmel og 1 dl hvedekerner | CJ19: 2 | CK19: tsk vanillesukker | CL19: 0 | CM19: 0 | CN19: 0 | CO19: 0 | CP19: 0 | CQ19: 0 | CR19: 0 | CS19: 0 | CT19: 0 | CU19: 0 | CV19: 0 | CW19: 0
A20: 15 | B20: =+List!E23 -> Coq au vin Bourgogne | D20: =+D63/4*Indkøb!$C$4 -> 60 | E20: g smør til de brune kartofler | P20: =+P63/4*Indkøb!$C$4 -> 2 | Q20: groft rugbrød | X20: =+X63/4*Indkøb!$C$4 -> 2 | Y20: lille tsk hvid peber | AA20: Smag til med salt og hvid peber | AF20: 2 | AG20: spsk. Mel eller jævning | AH20: =+AH63/4*Indkøb!$C$4 -> 0 | AI20: 0 | AJ20: =+AJ63/4*Indkøb!$C$4 -> 0 | AK20: 0 | AL20: =+AL63/4*Indkøb!$C$4 -> 0 | AM20: 0 | AN20: =+AN63/4*Indkøb!$C$4 -> 0 | AO20: 0 | AP20: =+AP63/4*Indkøb!$C$4 -> 2 | AQ20: tsk salt til risene | AX20: =+AX63/4*Indkøb!$C$4 -> 2 | AY20: bdt basilikum til pynt | AZ20: =+AZ63/4*Indkøb!$C$4 -> 0 | BD20: =+BD63/4*Indkøb!$C$4 -> 2 | BE20: stk rød peberfrugt i tern ( ikke hot ) | BF20: =+BF63/4*Indkøb!$C$4 -> 2 | BG20: spsk asparges vand | BJ20: =+BJ63/4*Indkøb!$C$4 -> 2 | BK20: lille drys hvid peber | BL20: =+BL63/4*Indkøb!$C$4 -> 2 | BM20: løg | BN20: =+BN63/4*Indkøb!$C$4 -> 800 | BO20: g aspargeskartofler | BP20: =+BP63/4*Indkøb!$C$4 -> 2 | BQ20: lille bundt persille | BX20: =+BX63/4*Indkøb!$C$4 -> 0 | CG20: 1/2 l tykmælk, 2 spsk honning, 2 spsk olie, 1 tsk salt og 25 g gær | CJ20: 2 | CK20: tsk kaffepulver | CL20: 0 | CM20: 0 | CN20: 0 | CO20: 0 | CP20: 0 | CQ20: 0 | CR20: 0 | CS20: 0 | CT20: 0 | CU20: 0 | CV20: 0 | CW20: 0
A21: 16 | B21: =+List!E24 -> And med rødkål og brune kartofler | D21: =+D64/4*Indkøb!$C$4 -> 200 | E21: g sukker til de brune kartofler | P21: =+P64/4*Indkøb!$C$4 -> 2 | Q21: glas rødbeder | X21: =+X64/4*Indkøb!$C$4 -> 6 | Y21: dl rødvin | AF21: 1 | AG21: salt og peber | AH21: =+AH64/4*Indkøb!$C$4 -> 0 | AI21: 0 | AJ21: =+AJ64/4*Indkøb!$C$4 -> 0 | AK21: 0 | AL21: =+AL64/4*Indkøb!$C$4 -> 0 | AM21: 0 | AN21: =+AN64/4*Indkøb!$C$4 -> 0 | AO21: 0 | AP21: =+AP64/4*Indkøb!$C$4 -> 20 | AQ21: g smør til risene | AX21: =+AX64/4*Indkøb!$C$4 -> 2 | AY21: bdt persille til pynt | AZ21: =+AZ64/4*Indkøb!$C$4 -> 0 | BD21: =+BD64/4*Indkøb!$C$4 -> 2 | BE21: smag til med salt, hvid peber og cayennepeber | BG21: =+BG64 -> smages til med salt og hvid peber | BL21: =+BL64/4*Indkøb!$C$4 -> 16 | BM21: peberkorn | BN21: =+BN64/4*Indkøb!$C$4 -> 40 | BO21: g smør | BP21: =+BP64/4*Indkøb!$C$4 -> 2 | BQ21: pose pasta efter egen smag | BX21: =+BX64/4*Indkøb!$C$4 -> 0 | CL21: 0 | CM21: 0 | CN21: 0 | CO21: 0 | CP21: 0 | CQ21: 0 | CR21: 0 | CS21: 0 | CT21: 0 | CU21: 0 | CV21: 0 | CW21: 0
A22: 17 | B22: =+List!E25 -> Høne i peperrodsauce | X22: =+X65/4*Indkøb!$C$4 -> 8 | Y22: dl vand | AH22: =+AH65/4*Indkøb!$C$4 -> 0 | AJ22: =+AJ65/4*Indkøb!$C$4 -> 0 | AK22: 0 | AL22: =+AL65/4*Indkøb!$C$4 -> 0 | AM22: 0 | AN22: =+AN65/4*Indkøb!$C$4 -> 0 | AO22: 0 | AX22: =+AX65/4*Indkøb!$C$4 -> 2 | AY22: bdt purløg til pynt | AZ22: =+AZ65/4*Indkøb!$C$4 -> 0 | BD22: =+BD65/4*Indkøb!$C$4 -> 24 | BE22: skiver ristet brød af god kvalitet | BL22: =+BL65/4*Indkøb!$C$4 -> 16 | BM22: enebær | BN22: =+BN65/4*Indkøb!$C$4 -> 4 | BO22: spsk sukker eller honning | BX22: =+BX65/4*Indkøb!$C$4 -> 0 | CG22: NB: Hvis du fanger en lille regnbueørred, kan denne også bruges til denne ret. ( Ingen mindstemål ) | CL22: 0 | CM22: 0
A23: 18 | B23: =+List!E26 -> Hønsekødsuppe med boller | D23: FREMGANGS MÅDE UDEN ANSVAR | F23: =+$D$23 -> FREMGANGS MÅDE UDEN ANSVAR | H23: =+$D$23 -> FREMGANGS MÅDE UDEN ANSVAR | J23: =+$D$23 -> FREMGANGS MÅDE UDEN ANSVAR | L23: =+$D$23 -> FREMGANGS MÅDE UDEN ANSVAR | N23: =+$D$23 -> FREMGANGS MÅDE UDEN ANSVAR | P23: =+$D$23 -> FREMGANGS MÅDE UDEN ANSVAR | R23: =+$D$23 -> FREMGANGS MÅDE UDEN ANSVAR | T23: =+$D$23 -> FREMGANGS MÅDE UDEN ANSVAR | V23: =+$D$23 -> FREMGANGS MÅDE UDEN ANSVAR | X23: =+$D$23 -> FREMGANGS MÅDE UDEN ANSVAR | Z23: =+$D$23 -> FREMGANGS MÅDE UDEN ANSVAR | AB23: =+$D$23 -> FREMGANGS MÅDE UDEN ANSVAR | AD23: =+$D$23 -> FREMGANGS MÅDE UDEN ANSVAR | AG23: =+$D$23 -> FREMGANGS MÅDE UDEN ANSVAR | AI23: FREMGANGS MÅDE UDEN ANSVAR | AK23: FREMGANGS MÅDE UDEN ANSVAR | AM23: FREMGANGS MÅDE UDEN ANSVAR | AO23: FREMGANGS MÅDE UDEN ANSVAR | AQ23: FREMGANGS MÅDE UDEN ANSVAR | AS23: FREMGANGS MÅDE UDEN ANSVAR | AU23: FREMGANGS MÅDE UDEN ANSVAR | AW23: FREMGANGS MÅDE UDEN ANSVAR | AY23: FREMGANGS MÅDE UDEN ANSVAR | BA23: FREMGANGS MÅDE UDEN ANSVAR | BC23: FREMGANGS MÅDE UDEN ANSVAR | BE23: FREMGANGS MÅDE UDEN ANSVAR | BG23: FREMGANGS MÅDE UDEN ANSVAR | BH23: FREMGANGS MÅDE UDEN ANSVAR | BJ23: FREMGANGS MÅDE UDEN ANSVAR | BL23: FREMGANGS MÅDE UDEN ANSVAR | BN23: FREMGANGS MÅDE UDEN ANSVAR | BP23: FREMGANGS MÅDE UDEN ANSVAR | BR23: FREMGANGS MÅDE UDEN ANSVAR | BT23: FREMGANGS MÅDE UDEN ANSVAR | BW23: FREMGANGS MÅDE UDEN ANSVAR | BY23: FREMGANGS MÅDE UDEN ANSVAR | CA23: FREMGANGS MÅDE UDEN ANSVAR | CC23: FREMGANGS MÅDE UDEN ANSVAR | CE23: FREMGANGS MÅDE UDEN ANSVAR | CG23: FREMGANGS MÅDE UDEN ANSVAR | CI23: FREMGANGS MÅDE UDEN ANSVAR | CK23: FREMGANGS MÅDE UDEN ANSVAR | CM23: FREMGANGS MÅDE UDEN ANSVAR | CO23: FREMGANGS MÅDE UDEN ANSVAR | CQ23: FREMGANGS MÅDE UDEN ANSVAR | CS23: FREMGANGS MÅDE UDEN ANSVAR | CU23: FREMGANGS MÅDE UDEN ANSVAR | CW23: FREMGANGS MÅDE UDEN ANSVAR
A24: 19 | B24: =+List!E27 -> Kalkun, lynstegt med grøntsager | E24: Gnid flæskestegen med salt i ridserne. Læg flæskestegen i en bradepande med sværet nedad. Hæld vand samt | G24: Skyl blomkålen og del den i buketter, der koges i saltet vand i 10 minutter. Lad blomkålen dryppe af | I24: Kog kartoflerne med skral på i god tid, gerne om morgenen, lad dem køle helt af inden de pilles. | K24: Kødet skæres i småstykker, der køres 2 gange gennem kødmaskinen. Eller køb kødet færdig hakket. | M24: Skær spækket i terninger og svits det i smør i en gryde. Skær kødet i terninger, pil og hak løgene. | O24: Form det hakkede kød til 8 runde flade "bøffer". Drys dem på begge sider med salt og hvid peber. | Q24: Krydr kødet med salt og hvid peber og brun det i en stegegryde med smør og olie. | S24: Form de antal bøffer som svarer til antal personer af kødet. | U24: Læg tournedoserne på en hed pande i ca. 10 sec. på hver side. | W24: Giv fedtkanten nogle snit. Smelt smørret i panden og steg T-bonesteakene heri ca. 3 til 4 minutter på hver side. | Y24: Hak løgene og skær de andre grøntsager i fine stykker - skiver eller tern - efter eget valg. | AA24: Brun kødet i halvdelen af fedtstoffet. Tag det op. Brun løgene og champignonerne i den anden halvdel | AC24: Smelt smøret i en tykbundet gryde og brun kødet heri, drys med salt og peber. Tag kødet op. | AE24: Bank bøfferne med bunden af en ren flaske, så de har samme tykkelse. Gnid panden med en god olie og varm den op | AG24: Hanen deles i fire stykker - 2 lår og 2 bryst. Krydr hønsestykkerne med salt og peber og brun dem i en gryde i olivenolie | AI24: Den frosne and skal optøs i køleskab i ca. 2 døgn. Aldrig på køkkenbordet. | AQ24: Rens og skyl duerne indvendigt. Gnid dem med lidt salt og hvid peber indvendigt og læg en persillekvist | AS24: Tø andebrysterne langsomt op i køleskab. Rens svampene - brug kun lidt vand - og skær dem i mindre stykker. | AW24: Tør fisken af med køkkenrulle fra hoved mod hale på begge sider. Hvis skællene skrabes af kan man spise | AY24: Vi begynder med en selvfanget fisk: Rens fisken ved at skære den op fra gattet til hovedet og tag indvoldene ud. | BA24: Dup fiskestykkerne i køkkenrulle og pensl dem med smør og drys salt og hvid peber på. Kom fiskestykkerne | BC24: Skær torskefileterne i 6 cm store stykker, og læg dem i et ovnfast fad, der er smurt med lidt smør. | BE24: Sauter løg, hvidløg, rød peberfrugt og fennikel i en meget stor suppegryde i olien til løgene er klare ca. 8 min. | BG24: På det ristede franskbrød lægges et salatblad, de to fiskefileter side om side. Herover en sammenrullet skive | BI24: Haren eller kaninen gøres i stand, hvis du selv er jægeren. Ellers købes den færdig til brug. | BK24: Bland mælk, kartoffelmel, peberrod, salt og hvid peber i elgkødet. Form farsen til 12 bøffer, ca 1 cm tykke. | BM24: Skær fasanbrysterne fra, men lad kødet blive på brystbenet. Del herefter fasanen i ryg, overlår og underlår. | BO24: Vildænderne: skæres ud i bryster og lår. Skrog og andet afpuds gemmes. Brysterne befries for skind. Steges i | BQ24: Bland marinaden dagen før du skal servere retten og læg kødet i og stil det i køleskab natten over. | BS24: Gråænder: Parter gråænderne i brystfileter, lår og skrog. Læg brystfileterne på køl. Når du har tilberedt det meste | BU24: Læg ryggen på en bradepande. Gnid med salt og peber. Barder ryggen med spæk. Brug rigeligt med smør | BW24: Oksekødet skal være af en god mesterkvalitet (Tatar kød) og kun være hakket en gang. | CA24: Rist først bacon på panden. Smør derefter franskbrødet godt med leverpostej og varm det op på panden, | CC24: Oksekødet skæres i tynde strimler og marineres 1 time i soyaen, der er tilsat hakket hvidløg. | CE24: Kødet skæres i meget små stykker ( mundrette stykker ) og lægges i en tykbundet gryde. Vand, løgene, som er | CG24: Fjern blomsten på sherrytomaterne og læg dem på bagepapir på en bageplade. Gør plads så ørredfileterne kan | CK24: Kagen: Bland mel, æg (et af gangen), hasselnødder og bagepulver i en skål. Kom dejen i en bradepande
A25: 20 | B25: =+List!E28 -> Duer med safransauce og ris | E25: rødvin i bradepanden. Tilsæt alle krydderier klippet groft i bradepanden. Sættes ind i en 220 grader varm ovn i ca. | G25: og hold den varm. | I25: Skær kartoflerne i 1 cm skiver og bras dem efter kødet er stegt. | K25: Rør kødet med hakket løg, hvidløg, salt og peber og drys melet i. Bland det godt. ( lidt vand tilsættes ) | M25: Tag et løg fra til senere brug. Kom kødet i gryden og brun det. Tilsæt de hakkede løg. Lad det snurre | O25: Lad smørret brune på en stor pande og steg karbonaderne 7-8 min på hver side. | Q25: Tilsæt fintsnittet løg og porre og groftsnittede gulerødder, seleri, persillerod og kartofler. | U25: Brun tournedoserne i smør 4 minutter på hver side. Drys med salt og peber. | W25: Drys med salt og peber efter stegningen. | Y25: Skær ridser i ydersiden af osso buco stykkerne, således de ikke buer, når de brunes. | AA25: af fedtstoffet. Kom kød, løg, champignons, paprika, bouillon og fløde i gryden. | AC25: Svits herefter de delte løg til de bliver klare, kom kødet tilbage i gryden med gulerodsskiver og porrerskiver | AE25: til den er glohed. Læg bøfferne på og brun dem hurtigt ved kraftig varme til kødporrerne er lukket. Det tager 30 sekunder | AG25: og 50 g smør. Tag hønsestykkerne op og sæt dem til side. Sauter løg, hvidløg, gulerødder og blegselleri i samme gryde til | AQ25: samt en pebermyntekvist i hver. | AS25: Rens og skyl løgene. Skær fedtsiden på andebrysterne i rudemønster og steg dem på en tør pande med | AW25: skindet. Det gøres med en ske fra hale mod hovedet. Smør kødsiden af fisken med Dijon sennep og drys med | AY25: Skyl fisken i koldt vand. Læg den på et skærebrædt med hovedet t.v. og med rygsiden ind mod dig selv. | BA25: i en plastpose med rasp og persille og ryst det let. | BC25: Drys med salt og hvid peber. Dryb få enkelte dråber citronsaft på hvert enkelt filet. | BE25: Tilsæt bouillon, kartofler, røde chili peber, skal af appelsin, safran og stilkene af persillen. | BG25: røget laks, rød dressing, pynt med rejer og kaviar. Slut af med dild og citron. | BI25: Haren eller kaninen gnides med salt og hvid peber, spækkes og lægges i bradepanden. Smør fordeles under | BK25: Formes evnt. Efterhånden som de lægges på panden, husk at trykke bøfferne flade. | BM25: Skær kødet fra overlår og skær det så i strimler. Gør urterne til fonden i stand. Skær urterne groft og brun dem i en | BO25: 4 min på hver side. Tages af panden og trækker yderligere i 10 min. Holdes lune. | BQ25: Lad kødet dryppe af og steg det langsomt gyldenbrunt i jomfru olivenolie. Når kødet et brunt lægger du spækket | BS25: af tilbehøret brunes brystfileterne af og steges ca. 10 i ovn ved 210 grader. Trækker 10 min før udskæring. | BU25: i bradepanden. Sæt den i ovnen med god varme ca. 230 grader i 10 min. Tag den ud og sænk temperaturen til | BW25: Farsen lægges i en skål og alt det hakkede kommes i, kom vand og æg i og rør det hele igennem. | CA25: først med leverpostejen ned ad, derefter vendes brødet så det opsuger noget fedt. Spejl nogle æg i lidt smør. | CC25: Risen sættes over i en rigelig stor gryde, kog 10 min og hæld så grønsagsblandingen i. | CE25: skåret i skiver og laurbærblade tilsættes. Giv det et opkog og fjern skummet, som dannes derved. | CG25: være der senere. Bag dem i ovnen i 1 time ved 110 grader. Tag bagepladen ud og læg ørredfileterne på. | CK25: eller en springform og bag ca. 40 min ved 175 grader. Kagen flækkes når den er afkølet.
A26: 21 | B26: =+List!E29 -> Stegt andebryst i rødvinssauce | E26: 1 time, hvis stegen er over 2 kg. Ellers mindre tid. Kontroller at der er væde nok, tilsæt kogende vand, hvis der | G26: Steg koteletterne i smør 5 til 6 minutter på hver side. Sæt koteletterne på højkant med benet nedad og | I26: Brug smør resten, tilsæt evnt. mere smør, hvis det er nødvendigt. | K26: Rør ægget i og tilsæt fløden lidt efter lidt. Farsen skal være temmelig fast til frikadeller. | M26: i ca. 5 min. Stik nellikerne og lauerbladene ind i det hele løg og læg det i gryden. | O26: Ikke for stærk varme, så bliver karbonaderne brankede udenpå uden at være gennemstegte. | Q26: Vend godt rundt og spæd med bouillon. Læg en kvist timian og en hel chili peber i gryden og lad | U26: Læg tournedoserne på en tildækket tallerken og hold dem varme indtil resten er færdiglavet. | W26: Eller som jeg foretrækker med tykke "Bøffer" | Y26: Vend osso buco i mel med salt og peber. Brun kødet for kraftig varme i smør - olie. Tag kødet op. | AA26: Kom låg på og lad retten simre i 30-45 min. afhængig af kødet. | AC26: samt med skrællede kartofler skåret i skiver. | AE26: på hver side. Tag bøfferne af panden og brun halvdelen af smøret på panden. Læg bøfferne på panden igen og steg dem | AG26: de er bløde men ikke brune. Tilsæt evt. mere smør/olivenolie hvis det bliver for tørt. Drys melet over grøntsagerne | AQ26: Snit løgene og steg dem ved jævn varme i en stegegryde til de har taget farve. Tag løgene op og brun duerne | AS26: skindsiden nedad, til fedtet er smeltet af og skindet er gyldent. Vend kødet og fortsæt stegningen ca. 15 min. | AW26: salt og hvid peber. | AY26: Læg et snit bag finnerne ved hovedet ned til benet og drej kniven således, at denne følger benet, og skær | BA26: Man kan vælge flg. for stegning: | BC26: Sæt fisken i en 180 grader varm ovn i ca. 10 min. Hvis fileterne er meget tykke er stege tiden måske 15 min. | BE26: Bring suppen i kog og kog 5 min. Tilsæt tomater og kog yderligere 10 min. | BG26: Salt og hvid peber sættes på bordet, så kan man krydrer selv. | BI26: "dyret" i bradepanden. Indsættes i varm ovn, midterste ribbe og åben ventil. Brunes ved stærk varme 225 grader | BK26: Brun fedtstoffet, læg bøfferne på og steg dem på en ikke for hed pande i 2 - 3 min på hver side. | BM26: tykbundet gryde sammen med lårben og rygben samt evnt. afpuds. Kom suppevisk og krydderier ved. Kom koldt | BO26: Sauce: Skroget knuses og brunes i en gryde med den ituskårne porre, gulerod, skalotteløg, hvidløg og knuste | BQ26: rundt i kanten af gryden, hælder marinaden og tomatpure ved og lader det koge i 10 min. Læg så låg på og skru | BS26: Låret sættes i ovnen til skindet brunes, ca. 15 min ved 210 grader. | BU26: 180 grader. Hæld rødvin, bouillon, laurbærblade og timian ved. Steg kødet videre i ca. 30 - 40 min. | BW26: Men ikke så det bliver sejt. | CA26: Læg spejleæg på brødet, stænk med noget Tabasco og drys med salt. | CC26: Medens risen koger vendes kartoffelmelen i kødet og det hele hældes på en pande og brunes af ved stor varme | CE26: Skru ned for varmen og lad kødet småkoge i 1 1/2 time. | CG26: Men inden gøres flg.: | CK26: Chokolademousse: De 4 æggehvider piskes stive. Fløden piskes til flødeskum. Æggeblommer og flormelis
E27: mangler noget. Efter ca. 1 time sættes stegen på en rist med sværet opad. Skru ned til ca. 160 gr. Stegen steger | G27: steg ca. 3 minutter mere på denne måde. Drys med salt og peber. Læg koteletterne på et stort fad, | I27: Steg snitzlerne i smør ca. 3 til 4 min på hver side. Tiden afhænger af hvilket kød der bruges. | K27: Brun fedtstoffet på en stor pande. Dyp en spiseske i fedtstoffet og form en frikadelle af farsen. | M27: Skyl tomaterne og skær dem i mindre stykker. Kom dem i sammen med bønnerne. Skrab | O27: Læg de færdigstegte karbonader i et ovnfast fad og hæld fedtstoffet over. | Q27: suppen simre til urterne er næsten møre, ca. 12 min. | U27: Champignon renses - brug meget lidt vand - skæres i skiver og brunes i smør. | W27: Giv fedtkanten nogle snit så kødet ikke krøller sammen på panden. Panden varmes op til den er gloende hed, | Y27: Svits grøntsagerne i smør - olie for god varme til de bliver klare, ca. 5 minutter. | AA27: Når kødet er mørt kommes cremefraiche i og retten koges igennem. | AC27: Kom timian i sammen med laurbærblade. Hæld porteren og bouillon ved og lad retten simre under låg i 90 minutter, | AE27: ca. 2 til 3 minutter på hver side. De skal helst være rosa i midten. Kog panden af med halvdelen af bouillon. | AG27: og lad det stege med et øjeblik under omrøring. Hvis man har marineret hanestykkerne hældes marinaden over, ellers | AQ27: på alle sider uden brug af yderligere fedtstof. Drys med lidt salt og hvid peber, tilsæt løg, safran og citronsaft. | AS27: Stegetiden afhænger af kødets tykkelse. Mærk efter med en finger. Kødet må ikke virke hårdt, men skal være | AW27: Læg kraftig staniol på bordet og placer fisken i midten med skindsiden nedad. Læg de friske grønsager ovenpå | AY27: helt ned til halen. Nu har du den ene filet. Vend fisken og gør det samme med den anden side. Nu er begge | BA27: Pande: Kom lidt smør på panden og steg fiskestykkerne heri. Tiden afhænger af tykkelsen, men ca. 3 min på | BC27: Prøv at stikke i fisken med en gaffel. | BE27: Hvis der bruges tomatpure, tilsættes det sammen med de før nævnte ting og der koges i 15 min. | BI27: i 10 - 15 min. Når "dyret" er brun hældes saucen over og videresteger med lukket ventil i 1 1/2 time ved 160 grader. | BK27: Kog panden af med 1 - 2 dl bouillon eller vand og smag til med salt og hvid peber. | BM27: vand ved så det dækker. Kog op, skum grundigt og lad fonden simre 5 kvarter ved svag varme. Sigt og kog ind til | BO27: enebær. Tilsæt 1/2 l vand og 1/2 l kalvefond. Fonden skal stå og simre i 2 timer. Sigtes og reduceres til det halve. | BQ27: ned for varmen, så det kan småsimre i 2 - 2 1/2 time. 20 min inden retten er færdig, hælder du de udstenede | BS27: Sauce: Brun skrog og lår af i en gryde i jomfru olivenolie. Tag det op, skær gulerod, porre og selleri i små stykker | BU27: Dryp dyreryggen mange gange under stegningen. Hæld 3 dl vand ved under stegningen - lidt af gangen. | BW27: Form så det antal bøffer, som opskriften viser, direkte på brødskiverne og steg dem med kødsiden | CC27: i lidt jomfru olivenolie. | CE27: Skræl kartoflerne, skær dem i tern og læg dem ned ved kødet sammen med peberkorn og salt. Hæld evnt. mere | CG27: Fileter ørrederne. Bland rasp, smør, krydderurter, salt og hvid peber. Læg et tyndt lag på kødsiden af fileterne. | CK27: piskes sammen og chokoladen og nougat piskes i. Nu vendes flødeskum og chokoladeblandingen
A28: =+$A$1 -> Tast se | B28: =+List!E31 -> Fisk | C28: =+$C$1 -> Tast for print out på retten | E28: videre i ca. 1 time. Husk at se efter væde og smag på rødvinen. Efter ca. 1 1/2 times stegning for 2 kg svinekød | G28: som holdes varmt. | I28: Tag kødet af panden og drys lidt salt på. Hold kødet varmt i ovnen indtil servering. | K28: Sæt frikadellerne tæt ved siden af hinanden på panden og steg dem ved jævn varme 5 til 6 minutter | M28: gulerødderne og skær dem i skiver. Kom dem i retten og drys med salt og hvid peber. | O28: Tør panden af med køkkenrulle og læg bacon på. Steg det ganske let. | Q28: Tilsæt Møllerens Gule Ærter og lad det koge yderligere 5 min. Smag til med salt og hvid peber. | U28: Løg renses og skæres i skiver og brunes i smør. | W28: uden fedtstof. Kødstykkerne brunes på begge sider hurtigt, uden salt og peber. Derefter kommes smør på panden. | Y28: Brug den samme gryde til kød og grøntsager, så sparer du på opvasken. | AA28: Smag til med salt, peber og rødvin. | AC28: eller til kødet er godt mørt. | AG28: tilsættes en flaske rødvin samt krydderbuketten, peber og nelliker. | AQ28: Lad det lige koge lidt ind. Tilsæt halvdelen af boullionen og steg duerne under låg i 20 min. | AS28: elastisk. Gør et snit med en spids kniv på den tykkeste del af kødet. Kødsaften skal være gylden og absolut ikke | AW28: sammen med klatter af smør. Dryp citronsaft på. Læg det andet stykke fisk over. | AY28: filetstykker skåret fra. Disse renses igen med kniven for sideben ved at føre kniven ind under disse, og skær | BA28: hver side. Smørret må ikke branke. Fif kom et overskåret hvidløg, skiver af ingefær og små stykker chili peber | BC28: Sennepssoucen: Soucen tilberedes medens fisk og kartofler steger og koger. Hæld mælk, smør og mel i en | BE28: Persillestilkene tages op og blå muslinger kommes i. Gryden går af kog, så vent et øjeblik med at komme de | BG28: Tips til panering: | BI28: Soucen sies, koges op, krydres, og lige inden anretningen tilsættes et par spsk flødeskum og lidt ribsgele. | BM28: 3-4 dl. Skrub kartoflerne grundigt og bag dem ca. 45 min ved 175 grader i et fad smurt med lidt fedtstof i bunden. | BO28: Monteres til sidst med smørret (100 g). | BQ28: oliven ned i, og så kan du så småt begynde at lægge an til at koge pastaen. | BS28: og brun det af. Kom skrog og lår i og dæk med vand, tilsæt persillekviste. Lad det koge - simre - i 3 timer. | BU28: Tag kødet ud og lad det hvile lunt i 20 min. Si fondenog lav en god sauce til dyreryggen - det fortjener den. | BW28: nedad i 25 g smør. Kom lidt mere smør på og vend bøfferne. Bøfferne drysses med salt og hvid peber | CC28: Når risen er færdig efter ca. 18 min hældes pandens indhold i risen som vendes rundt og serveres. | CE28: vand ved, så kartoflerne netop dækkes. | CG28: Sæt grill eller høj varme på ovnen ( 220 grader ), og sæt ørredfileterne ind, indtil de er gyldne ovenpå ca. 7 - 8 min. | CK28: forsigtig i æggehviderne. Stilles koldt i 1 time.
A29: 22 | B29: =+List!E32 -> Kogt ørred med fiskesauce | E29: tages stegen ud og væden hældes over i en skål. Stegen sættes ind i ovnen igen, og der skrues op på 220 gr. | G29: Kog panden af med bouillon. Jævn saucen med mel, der er udrørt i lidt vand. Kom piskefløde i. | I29: Bras nu kartoflerne indtil de tager farve. | K29: på hver side. Husk, hvis varmen bliver for stærk bliver frikadellerne brankede på ydersiden uden | M29: Hæld rødvin ved og lad retten snurre under låg 1 time og 10 min. | O29: Dæk hver karbonade med en skive ost og læg 2 stykker bacon over. Drys med paprika og hvid peber. | U29: Chili peber, prikkes med en gaffel, og steges meget let i olivenolie sammen med strimler af | W29: Varmes op til det er lysebrun, kødet drysses med salt og peber, og steges 3 minutter på hver side. | Y29: Kom osso buco stykkerne tilbage i gryden og kom resten af ingredienserne i gryden. | AC29: Smag til med salt og peber | AE29: Pil løgene og rens svampene. Brun først løgene og derefter svampene på samme pande i resten af smøret. | AG29: Kom hanestykkerne tilbage i gryden og tilsæt hønsebouillon, så det dækker kødet. Læg låg på og lad det simre i 1 time. | AQ29: Vend dem efter 10 min. Kom de snittede rabarber, sukker og resten af boullionen i og steg yderligere 15 min. | AS29: blodig. Tag kødet af panden, drys med salt, pak det i folie og lad det ligge toldækket i ca. 15 min før det skæres ud. | AW29: Pak folie godt omkring fisken og læg pakken på en grillrist over gløderne eller i en 220 grader varm ovn. | AY29: ud mod bugen. Halen vender t.v. stik en spids gaffel ned i denne, så den holdes fast i skærebrædtet. | BA29: i smørret inden fiskestykkerne steges. | BC29: tykbundet gryde, og pisk det sammen under opvarmning. Kog soucen igennem, og smag til med salt, hvid | BE29: mundrette fiskestykker i. Lad suppen simre for svag varme i 5 min efter fiskestykkerne er kommet i. | BG29: Dup fiskestykkerne i køkkenrulle og pensl dem med smør og drys salt og hvid peber på. Kom fiskestykkerne | BK29: Variation: Byt peberroden ud med 1 spsk knust enebær. | BM29: Del kartoflerne på langs, så de får den størst mulige snitflade. Giv dem et lille snit i alle "verdenshjørner" af denne | BO29: Andelår: Lårene kommes i stegepose med portvin og steges i forvarmet ovn i 1 time ved 180 grader. | BS29: Tag dog lårene op når de er møre ca. 45 min. Sigt fonden, skum fedtet af - ikke det hele - og lad det koge ind til | BU29: Tilsæt evnt. Lidt piskefløde for at jævne saucen og juster farven med mad kulør. | BW29: efter behag. Læg bøfferne på varme tallerkner så snart brødsiden er sprød og gylden. | CE29: Lad det hele koge endnu 30 min. Rør i gryden en gang i mellem, så kartoflerne moses let og jævner retten. | CG29: Et lækkert hjemmebagt brød: | CK29: Chokoladecreme til toppen: Smelt chokoladen i et vandbad. Rør smør og sukker godt sammen tilsæt
A30: 23 | B30: =+List!E33 -> Ovn stegt laks eller ørred i folie | E30: med lågen på klem. Al vanddamp forsvinder fra ovnen, og sværen begynder at brunes. Tag et glas rødvin. | G30: Smag saucen til med salt, peber og paprika. | I30: Anret kødet og kartoflerne på en tallerken. | K30: at være gennemstegte. | M30: Tilsæt pølserne 10 min før retten er færdig. Tag løget med nellikerne og laurbærbladene op og | O30: Stil fadet i ovnen ved 225 grader, til osten begynder at smelte, og baconskiverne er sprøde. | U30: rød, gul og grøn peber samt hele fed hvidløg. Må ikke tag brun farve. Der hældes vineddike på panden. | W30: Serveres med bagte kartofler og flutes samt en shopska salat. | Y30: Lad gryden simre for svag varme i 2 til 2 1/2 time. | AE30: Tag løgene og svampene af panden og hold dem varme. Kog panden af med resten af bouillon. | AG30: Bacon skæres ud i tern og steges sprøde på en pande og gemmes lidt. | AQ30: Vend duerne efter 7 min. Tag duerne op og lad dem køle lidt af inden de halveres. Skum saucen for fedt og | AS30: Kom en spsk smør på panden, rist løg og svampe og hold dem varme på et fad. Kog stegeskyen sammen med | AW30: Bemærk: hvis grill bruges skal folie være af den kraftige type og fisken vendes jævnlig ( hver 10 min ) | AY30: Skær med kniven gennem kødet ned til skindet, drej kniven og skær op til hovedet. Nu har du de færdige | BA30: Ovn: Læg fiskestykkerne på bagepapir og sæt dem i en varm ovn i 6 - 8 min ved 180 grader. | BC30: peber, fiskesennep, vineddike og lidt sukker. | BE30: Kom de optøede kæmperejer i, og så snart suppen begynder at koge, SKAL der slukkes for varmen, | BG30: i en plastpose med rasp og fint hakket dild og ryst det let. | BI30: Saucen opbages med fedtstoffet: Hæld fedtstoffet i en gryde og drys mel i under konstant omrøring. Må ikke | BM30: snitflade. Pres så bagpå så kartoffelkødet trykkes lidt udad. Steg kartoflerne færdig og gyldne på en pande, hvor | BO30: Svampe: Svampene skæres i mindre stykker og sauteres af på en varm pande i lige dele olie/smør. | BQ30: Pasta: Følg anvisningen på posen. | BS30: ca. 1 - 2 dl. Fonden koges op, jævnes med lidt maizenamel udrørt i lidt koldt vand og piskes op med 50 g smør. | BU30: Kødet udbenes fra ryggen og kan derefter skæres i skiver som en filet. | BW30: Pynt med løgringe og rå æggeblomme. | CC30: Nem, billig og lynhurtig hverdagsret der fylder noget. | CE30: Pas på at det ikke brænder på. Derfor en tykbundet gryde. | CG30: Kog hvedekærnerne i 5 min. Rør gæren ud i den håndvarme tykmælk ( 24 grader ), tilsæt grahamsmel, og ca. | CK30: vanillesukker og kaffepulver. Dette blandes med den smeltede chokolade.
A31: 24 | B31: =+List!E34 -> Fiskedeller med remo | E31: Si saucen og hæld den i en gryde. Saucen jævnes med mel rystet med vand. Kort opkog 2 min. Tilsmag saucen | G31: Læg blomkålen ved siden af kødet. Drys med finthakket persille. | I31: Over kødet pyntes med peberrod, hakket rødbeder, capers, ansjoser og pickles. | K31: Server frikadellerne på et varmt fad. | M31: drys med hakket persille. | O31: Tilbehør: Groft landbrød. | Q31: Tips: Bouillon kan laves af 3 til 4 blokke klarsuppe bouillon terninger og 2 l vand. | U31: Giv et kort opkog og tilsæt honning. Rør rundt. Anrettes i et fad. | W31: Shopska salat: | Y31: Eller indtil kødet er mørt og falder fra benet. | AG31: De rensede og halverede champignoner sauteres på panden med baconfedtet og gemmes lidt sammen med bacon. | AQ31: kog den lidt ind. Smag til med salt, peber og sukker/honning. | AS31: fløde og rødvin og smag til med salt og hvid peber. | AW31: Det tager mellem 30 - 60 min at bage en stor laks/ørred på denne måde. I ovnen ca. 40 min. | AY31: filetstykker skåret fra. Disse skæres i passende stykker, så de kan komme i kødhakkeren. Hak først spæk en gang. | BA31: Tiden afhænger også af tykkelsen på fisken. Skær en filet over for at se om den er stegt nok. | BC31: Tilbehør: Kog ægene i 7 min. (hårdkogt). De afkølede æg hakkes og serveres med de hakkede rødbeder og | BE31: for ellers bliver rejerne seje. | BG31: Man kan vælge flg. for stegning: | BI31: branke, hæld mælk i også under konstant omrøring. Juster farven med lidt mad kulør. | BK31: Serveres med hvide kartofler eller groft landbrød. | BM31: knust hvidløgsfed og en rosmarinkvist syder i andefedt eller afklaret smør. Blancher rosenkålen og dyp dem i | BO31: Krydr med salt og hvid peber. Svampene steges pænt gyldenbrune. | BS31: Grønkål: Frisk grønkål ribbes og blancheres i vand med rigeligt salt. Vrides for vand og skæres med en kniv i | CE31: Tag laurbærbladene op og smag til med salt og hvid peber. | CG31: halvdelen af hvedemelet, salt, olie og honning æltes i. Tilsæt de lune hvedekærner og resten af hvedemelet.
A32: 25 | B32: =+List!E35 -> Fiskefillet med remo og citron | E32: med salt, hvid peber, rødvin og honning. Nu er der gået 15 min. Tænd for grillen og åbn lågen helt. Sæt dig på | I32: Krydres med hvid peber. | K32: Frikadellerne kan serveres med meget andet end hvide kartofler og brun sauce. | O32: Til salaten: Skær bønnerne i passende stykker ( 1 cm ) og del tomaterne i 4 stykker. | Q32: Eller købes færdig i frosne blokke af 1 l. | U32: Bainasen varmes forsigtig op i en gryde. | W32: Alle grøntsagerne skæres i tern og kommes i en skål - eller på portions tallerkner. Der drysses salt på efter behov. | AE32: Læg bøfferne på et fad fordel løgene og svampene over og hæld pandeskyen over bøfferne. | AG32: I en gryde kommes 30 g smør, perleløg, lidt sukker, salt og vand så det lige dækker løgene. | AQ32: Retten serveres med sprøde ris: Skyl risene og bring dem i kog for svag varme i vandet tilsat salt og under | AS32: Skær kødet i tynde skiver og anret det med svampe og løg på varme tallerkner, sammen med saucen. | AW32: Fisken er stegt, hvis kødets farve er ens gennem hele fiskens tværsnit. ( Må ikke være glasagtig ) | AY32: Fiskestykkerne hakkes med løg, hvidløg og spæk en gang til. Fiskefarsen blandes nu med et helt æg, salt, hvid | BC32: revet peberrod. Anret tilbehøret i skåle ved siden af fisken, når retten serveres. | BE32: Server suppen med hakket persille og ristet brød. | BG32: Pande: Kom lidt smør på panden og steg fiskestykkerne heri. Tiden afhænger af tykkelsen, men ca. 3 min på | BM32: meget koldt vand. Skær dem i kvarte. Skær citronskallen fint og pres saften ud. Hak hvidløget og persillen. Sauter | BO32: Andebrysterne skæres i skiver og anrettes på en varm tallerken med de ristede svampe, portvinslår samt | BS32: passende stykker. 2 dl fløde koges op og heri lunes grønkålen. Smages til med salt og hvid peber. | BU32: Serveres med gode kartofler vendt i smør og timian samt grøntsager efter behag. | CG32: Der skal så meget hvedemel i så dejen slipper skålen. Lad dejen hæve 1 time på et lunt sted overdækket med | CK32: Chokolademousse smørres på den ene flade af kagen og den anden lægges ovenpå.
A33: 26 | B33: =+List!E36 -> Kogt torsk med sennepsauce | E33: gulvet med et glas rødvin og se på stegen - den i ovnen - pas på du ikke brænder sværen. Se efter afstanden til | K33: Prøv et af disse forslag. Ristede champignon i flødesauce. | O33: Kom lige dele jomfru olivenolie og hvidvinseddike i en skål. Ca. 1 dl i alt. | Q33: I stedet for nakkekotletter kan man selv koge et stykke sprængt nakkekam sammen med | W33: Fåreosten rives groft henover salaten. Olivenolie og eddike hældes på efter behov. | AG33: Kog løgene uden låg til vandet er væk og løgene begynder at karamellisere. Tag løgene op og gem dem til senere. | AQ33: tætsluttende låg. Lad dem koge for meget svag varme i 20 min uden at lette på låget. Læg et rent viskestykke | AW33: Hvis der er ben i fisken, skal man kunne tage i haleroden og trække hele benet op til hovedet, uden at der | AY33: peber. Form små fiskedeller med en ske, der dyppes i vand mellem hver fiskedelle, og steg dem ca. 3 min på | BC33: Kartoflerne koges med skrald i 20 min. i let saltet vand og pilles. | BE33: Tips: Hvis man ønsker en mere cremet suppe, kan man justere med piskefløde, men pas på ikke at røre for | BG33: hver side. Smørret må ikke branke. Fif kom et overskåret hvidløg, skiver af ingefær og små stykker chili peber | BI33: Server med "skrallekartofler" der kan optage den gode sauce. | BK33: Agurkesalat: Snit en agurk, drys salt på og lad det trække i 1 time. Vrid stykkerne godt for vand og kom dem i | BM33: lårkødet i strimler og kom citronskal og hvidløg ved. Kom rosenkålen på panden og kog til til sidst panden af med | BO33: tyttebær/ribs. Til sidst kommes saucen på. | BS33: Svampe: Svampene renses - brug kun lidt vand - og ristes på en tør pande, tilsæt 25 g smør samt salt og | CE33: Tips: Kog retten med en rød chili peber, det giver en god smag. Tag den op før serveringen. | CG33: et viskestykke. Slå dejen op til 2 brød, lad dem hæve 1 time på en bageplade med bagepapir overdækket med | CK33: Chokoladecreme smørres på toppen og siderne.
A34: 27 | B34: =+List!E37 -> Fiskesuppe hot chili | E34: grillelementerne er ens for hele overfladen. Brug folie til at klodse op med. Når sværen begynder at poppe-up er | K34: Råstegte kartofler, smørdampede majs og tomatsalat. | M34: Serveres med: | O34: Kom sukker/honning og hakket løg, hakket hvidløg og små skiver af rød chili peber i, og rør rundt. | Q34: medisterpølse, grisehaler og røget flæsk. Så har man også en bouillon til suppen. | U34: Server tournedoserne med kartofler og tilbehøret, champignon, bløde løg og den meget stærke | Y34: Serveres med kartoffelmos: | AA34: Serveres med kartoffelmos: | AE34: Server bøfferne med dit favorit tilbehør. Måske fritter? | AG34: Hanestykkerne tages op af gryden efter 1 time og saucen koges lidt ind, hvorefter den sies. Kasser indholdet i sien. | AQ34: (køkkenrulle kan også bruges) mellem låg og gryde og lad dem trække yderligere 10 min. Rør i risen med en | AS34: Hasselback kartofler: | AW34: sidder fiskekød på benet. Så er fisken gennemstegt. | AY34: hver side i gyldent smør tilsat jomfru olivenolie. Stegetiden afhænger af størrelsen på fiskedellerne. Det er vigtig, | BC34: Tip: I stedet for torsk kan man bruge filet af mørk- eller lyssej, kuller, kulmule, lange og havkat. | BE34: kraftig i suppen, for så bliver fiskestykkerne til "plukfisk". | BG34: i smørret inden fiskestykkerne steges. | BK34: blandingen af eddike, vand, sukker og hvid peber. Lad det trække endnu 1 time før brug. | BM34: citronsaft. Smag til med salt og hvid peber og vend persillen i. Hak skalotteløgene fint. Pres saften fra druerne. | BO34: Aspargeskartofler: Rens kartoflerne med en stiv børste. Kog dem i let saltet vand i 20 min. Gerne nogen tid før | BS34: hvid peber. | CG34: et viskestykke. Bages 40 - 45 min ved 180 grader. | CK34: Pyntes med ristede mandler og orangekugler.
A35: 28 | B35: =+List!E38 -> Stjerneskud a'la Neptun | E35: er den klar. Tag flæskestegen ud af ovnen og lad den hvile i ca. 20. min inden du skærer for. I de 20 min laver du | K35: Smørdampet spinat med hvidløg. | M35: Groft landbrød efter eget ønske | O35: Hæld dette over bønnerne og tomaterne, lad det trække i en time før brug. | U35: chile og peber salat samt bainase souce. | Y35: Kog kartoflerne uden salt. Når de er kogt, moses de og justeres med mælk og smør. | AA35: Kog kartoflerne uden salt. Når de er kogt, moses de og justeres med mælk og smør. | AG35: Vurder saucens konsistens - for tynd jævn med en smørbolle - for tyk tilsæt rødvin/hønsebouillon. | AQ35: gaffel. Gnid en teflonpande med smørret og tryk risene sammen i panden. Varm den for svag varme i 10-15 min. | AS35: Vask kartoflerne og skrub dem med børsten. Læg en kartoffel på skærebrættet og læg skaftet af grydeskeen | AY35: at de ikke branker, for så bliver de hårde på ydersiden og ikke stegt inden i. | BC35: Brug væden fra fisken til at komme i soucen. | BE35: Fiskebouillon: Fanger man selv sine fisk, så bruges al fiskeafpuds - dog ikke gælder og indvolde - til at lave denne. | BG35: Ovn: Læg fiskestykkerne på bagepapir og sæt dem i en varm ovn i 6 - 8 min ved 180 grader. | BM35: Sauter skalotteløgene i smør. Hæld hvidvin i og kog ind til det halve. Hæld druesaft i og kog igen ind til det halve. | BO35: de skal brunes, så de er kolde, når de skal pilles. Smelt smør på panden og tilsæt sukker eller honning. Må ikke | BS35: Bagekartofler: Forkog kartoflerne i 10 min, pak dem i folie og sæt dem i ovnen ved 180 grader i 30 - 40 min. | CG35: Pesto dressing:
E36: de brune kartofler. Sukker på en tør pande, vær klar med smør, når sukkeret er smeltet. Rør godt rundt og kom de | K36: Hvidkål i hvid sauce | M36: Rødvin naturligvis "ad libitum" det er et kendt mærke. | Y36: Smag til med salt og hvid peber. | AA36: Smag til med salt og hvid peber. | AG36: Kom hanestykkerne tilbage i gryden og tilsæt baconstykkerne, champignon og perleløg. | AQ36: Vend risene ud på et fad, så den sprøde og brune side vender op. | AS36: bag kartoflen. Så undgår du at komme til at skære hele vejen gennem kartoflen. Skær nu tynde skiver | BC36: Når du bruger torskefileter er det en børnevenlig ret: "Det er der ingen ben i", som man siger. | BE36: Hæld ovenfor mængde vand i en gryde og tilsæt al fiskeafpuds samt 1 tsk salt, 2 laurbærblade klippet i stykker, | BG36: Tiden afhænger også af tykkelsen på fisken. Skær en filet over for at se om den er stegt nok. | BM36: Hæld fonden i gryden og kog saucen ind til en passende konsistens. Smaf til med salt og hvid peber. | BO36: brankes. Tilsæt kartoflerne og rør rundt så kartoflerne tager farve på alle sider. Simre i ca. 5 min så de bliver | CG36: Jomfru olivenolie, pinjekærner, hvidløg, basilikum og lidt salt bledes.
A37: =+$A$1 -> Tast se | B37: =+List!E40 -> Vildt | C37: =+$C$1 -> Tast for print out på retten | E37: kogte, kolde små kartofler i. Rør rundt hele tiden så de bliver ens brune. Et glas rødkål bliver bedre, hvis du tilsætter | K37: Rosenkål smørdampede med hvidløg. | AG37: Varm retten op og smag til med salt og peber. Drys retten med friskhakket persille. | AQ37: Duerne og risen drysses med hakket persille og snittet mynte. | AS37: ned gennem kartoflen til du støder på grydeskeen. Læg kartoflerne på en bageplade med bagepapir. | AY37: Forslag til mager, hvid fisk: | BC37: Fanger du selv dine fisk, kan du skære dem i pæne stykker og koge dem 20 min. i vand tilsat forskellige | BE37: et 4-delt løg, 2-delt fed hvidløg, toppen af fennikelknolden, det grønne af en porre, snittet gulerod. Kort sagt, hvad | BG37: Rød dressing: Paprika røres i asparges vandet, dernæst røres de øvrige ingredienser i. Hvidløg hakkes eller | BM37: Steg fasanbrysterne 4-5 min på hver side ( eller brun dem og steg dem færdig i ovnen ved 200 grader ). | BO37: gennemvarme. | BS37: Servering: Lav en top af grønkål på tallerkenen, sæt et lår på toppen, skær brystet i skiver og anret det foran. | CG37: Tips: Har man ikke en blender, knuses pinjekærnerne og hvidløg samt basilikum snittes fint og blandes med
A38: 29 | B38: =+List!E41 -> Haresteg eller kaninsteg | E38: lidt rødvin og en spsk honning under svag opvarmning. | AQ38: Tips: Hvis duerne leveres med indmad, laver man sin egen boullion af dette. Kog hjerter, kråser, halse og | AS38: Kartoflerne pensles med smør/olie og drysses med salt. Sættes i en 200 grader varm ovn i ca. 1 time. | AY38: Saltvand: Torsk, hvilling, mørk- eller lyssej, kuller, kulmule eller lange. | BC38: kryderier: løg, hvidløg, laurbærblade, gulerødder, porer, salt, peberkorn, sukker, eddike og persillestilke. | BE38: du har for hånden af gode sager. Det hele koges i nøjagtig 20 min, hvorefter det sies. Lad bouillonen stå og | BG38: presses og tilsættes. Smag til med salt og hvid peber. | BM38: Krydr med salt og hvid peber. Lad brysterne trække i 5 min. | BS38: Læg svampe på tallerkenen samt sauce. Ved siden af serveres den bagte kartoffel med kold smør og | CG38: Jomfru olivenolieen og lidt salt. Skal så stå og trække i længere tid inden brug.
A39: 30 | B39: =+List!E42 -> Svensk elgfars bøffer | E39: Du har nu en herrer ret, hvor der drikkes rødvin til, hvis du har købt tilstrækkeligt med flasker. | AQ39: vingespidserne med lidt vin ( 1 dl ) og lidt hønseboullion ( terninger og 4 dl vand ), så der bliver 4 dl boullion. | AS39: Se til kartoflerne undervejs og pensel evnt. Lidt mere med smør/olie. | AY39: Ferskvand: Gedde, aborre, sandart, karpe eller karusse | BC39: Så kan soucen laves af fiskevandet i stedet for mælken. | BE39: bundfælde i en halv time. Afmål mængden som angivet ovenfor, men undgå at få bundfaldet med. | BM39: Server på varme tallerkner med de øvrige tilberedninger. | BS39: persilledrys og blade af rosmarin. | CG39: Anret ørredfileterne på tallerknernen med sherrytomater omkring samt lidt pesto, pynt med basilikum.
A40: 31 | B40: =+List!E43 -> Meyers fasan | E40: =+$E$70 -> Salat, pynt eller grønt drys der serveres til retten: | G40: =+$E$70 -> Salat, pynt eller grønt drys der serveres til retten: | I40: =+$E$70 -> Salat, pynt eller grønt drys der serveres til retten: | K40: =+$E$70 -> Salat, pynt eller grønt drys der serveres til retten: | M40: =+$E$70 -> Salat, pynt eller grønt drys der serveres til retten: | O40: =+$E$70 -> Salat, pynt eller grønt drys der serveres til retten: | Q40: =+$E$70 -> Salat, pynt eller grønt drys der serveres til retten: | S40: =+$E$70 -> Salat, pynt eller grønt drys der serveres til retten: | U40: =+$E$70 -> Salat, pynt eller grønt drys der serveres til retten: | W40: =+$E$70 -> Salat, pynt eller grønt drys der serveres til retten: | Y40: =+$E$70 -> Salat, pynt eller grønt drys der serveres til retten: | AA40: =+$E$70 -> Salat, pynt eller grønt drys der serveres til retten: | AC40: =+$E$70 -> Salat, pynt eller grønt drys der serveres til retten: | AE40: =+$E$70 -> Salat, pynt eller grønt drys der serveres til retten: | AG40: =+$E$70 -> Salat, pynt eller grønt drys der serveres til retten: | AI40: =+$E$70 -> Salat, pynt eller grønt drys der serveres til retten: | AK40: =+$E$70 -> Salat, pynt eller grønt drys der serveres til retten: | AM40: =+$E$70 -> Salat, pynt eller grønt drys der serveres til retten: | AO40: =+$E$70 -> Salat, pynt eller grønt drys der serveres til retten: | AQ40: =+$E$70 -> Salat, pynt eller grønt drys der serveres til retten: | AS40: =+$E$70 -> Salat, pynt eller grønt drys der serveres til retten: | AU40: =+$E$70 -> Salat, pynt eller grønt drys der serveres til retten: | AW40: =+$E$70 -> Salat, pynt eller grønt drys der serveres til retten: | AY40: =+$E$70 -> Salat, pynt eller grønt drys der serveres til retten: | BA40: =+$E$70 -> Salat, pynt eller grønt drys der serveres til retten: | BC40: =+$E$70 -> Salat, pynt eller grønt drys der serveres til retten: | BE40: =+$E$70 -> Salat, pynt eller grønt drys der serveres til retten: | BG40: =+$E$70 -> Salat, pynt eller grønt drys der serveres til retten: | BI40: =+$E$70 -> Salat, pynt eller grønt drys der serveres til retten: | BK40: =+$E$70 -> Salat, pynt eller grønt drys der serveres til retten: | BM40: =+$E$70 -> Salat, pynt eller grønt drys der serveres til retten: | BO40: =+$E$70 -> Salat, pynt eller grønt drys der serveres til retten: | BQ40: =+$E$70 -> Salat, pynt eller grønt drys der serveres til retten: | BS40: =+$E$70 -> Salat, pynt eller grønt drys der serveres til retten: | BU40: =+$E$70 -> Salat, pynt eller grønt drys der serveres til retten: | BW40: =+$E$70 -> Salat, pynt eller grønt drys der serveres til retten: | BY40: =+$E$70 -> Salat, pynt eller grønt drys der serveres til retten: | CA40: =+$E$70 -> Salat, pynt eller grønt drys der serveres til retten: | CC40: =+$E$70 -> Salat, pynt eller grønt drys der serveres til retten: | CE40: =+$E$70 -> Salat, pynt eller grønt drys der serveres til retten: | CG40: =+$E$70 -> Salat, pynt eller grønt drys der serveres til retten: | CI40: =+$E$70 -> Salat, pynt eller grønt drys der serveres til retten: | CK40: =+$E$70 -> Salat, pynt eller grønt drys der serveres til retten: | CM40: =+$E$70 -> Salat, pynt eller grønt drys der serveres til retten: | CO40: =+$E$70 -> Salat, pynt eller grønt drys der serveres til retten: | CQ40: =+$E$70 -> Salat, pynt eller grønt drys der serveres til retten: | CS40: =+$E$70 -> Salat, pynt eller grønt drys der serveres til retten: | CU40: =+$E$70 -> Salat, pynt eller grønt drys der serveres til retten: | CW40: =+$E$70 -> Salat, pynt eller grønt drys der serveres til retten:
A41: 32 | B41: =+List!E44 -> Vildand med svampe i portvin | F41: =+F71 -> 1 | G41: =+G71 -> bdt finhakket persille | I41: =+I71 -> Server din egen grøn salat til retten, gerne med fetaost, sort oliven og syltede hvidløg. | K41: =+K71 -> Dijon sennep kan serveres til. | L41: =+L71 -> 1 | M41: =+M71 -> bdt hakket persille | O41: =+O71 -> Hertil serveres grønne bønner og en tomatsalat | Q41: =+Q71 -> Hertil serveres Dijon sennep og groft rugbrød med en dram og en kold øl | R41: 1 | S41: glas asier eller små agurker serveres hertil | U41: =+U71 -> Jwa's hjemmelavet chili tilbehør | W41: =+W71 -> De hele oliven uden sten grønne/sorte lægges over salaten. | X41: =+X71 -> 1 | Y41: =+Y71 -> bdt finthakket persille | Z41: =+Z71 -> 1 | AA41: Frisk salat efter ønske | AC41: =+AC71 -> Drys retten med rigeligt persille ved serveringen. | AE41: =+AE71 -> En god sommersalat kunne være passende. | AG41: =+AG71 -> Serveres med hjerteformede, smørristede brødcroutons eller lune hvidløgs flutes. | AK41: =+AK71 -> 0 | AQ41: =+AQ71 -> Hvis man ikke ønsker ris, er duerne meget velegnet til nye kartofler. | AS41: =+AS71 -> Server Hasselback kartofler dertil | AW41: =+AW71 -> Serveres med en god salat og groft landbrød: | AY41: =+AY71 -> Pynt med noget grønt vælg selv af ovnnævnte forslag. | BA41: =+BA71 -> Serveres enten med groft rugbrød/smør eller nye, pillede, danske kartofler og kold smør. | BC41: =+BC71 -> Citronskiver anrettes ved siden af fisken. | BE41: =+BE71 -> Hakket persille | BG41: =+BG71 -> Pynt tallerknerne med asparges, når du nu har købt disse for at bruge noget aspargesvand til dressingen. | BI41: =+BI71 -> Prøv at serverer syltede grønne tomater hertil. | BK41: =+BK71 -> Lav en dejlig agurkesalat hertil. | BM41: =+BM71 -> Waldorf - salat passer godt hertil: | BO41: =+BO71 -> Waldorf - salat passer godt hertil: | BQ41: =+BQ71 -> Du kan også serverer lune flutes til denne ret, men husk en god kraftig rødvin. | BS41: =+BS71 -> Hertil serveres en god rødvin. Prøv en Merlot rødvin fra Italien: Bolla Merlot delle Venezia IGT 1996 | BU41: =+BU71 -> Waldorf - salat passer godt hertil: | BW41: =+BW71 -> Der kan pyntes lidt mere efter behag: Hakket rødbeder, kapers og peberrod. | CA41: =+CA71 -> Salatblade eller persille | CC41: =+CC71 -> Prøv de syltede røde chili peber hertil med en kold øl. | CE41: =+CE71 -> Drys hakket persille over retten og server den varm med groft rugbrød og rødbeder. | CG41: =+CG71 -> Lækkert hjemmebagt brød. | CI41: =+CI71 -> server friske grønne asparges til. Disse overhældes med afklaret smør og drysses med ost, salt og hvid peber | CK41: =+CK71 -> Pynt med ristede mandelflager og orangekugler | CM41: =+CM71 -> 0
A42: 33 | B42: =+List!E45 -> Sydfransk vildsvinegryde | K42: =+K72 -> Prøv et af ovennævnte forslag. | O42: =+O72 -> Karbonaderne kan naturligvis også serveres uden ost | Q42: Rødbeder kan også bruges som tilbehør | R42: 1 | S42: skål frisklavet agurkesalat kan også bruges | X42: =+X72 -> 1 | Y42: =+Y72 -> reven skal af en halv citron | AG42: =+AG72 -> Server samme rødvin hertil som bruges i retten. | AK42: =+AK72 -> 0 | AQ42: =+AQ72 -> Prøv evnt. at serverer myntegele hertil. | AW42: =+AW72 -> 0 | AY42: =+AY72 -> Citron skal der til. | BA42: =+BA72 -> Hvis kartofler, så drys med persille. | BC42: =+BC72 -> Pynt med persille | BG42: =+BG72 -> Serveres med et koldt glas hvidvin: Gewurtztraminer | BM42: =+BM72 -> Æbler, bladselleri og valnødder blandet op med mayonnaise | BO42: =+BO72 -> Æbler, bladselleri og valnødder blandet op med mayonnaise | BU42: =+BU72 -> Æbler, bladselleri og valnødder blandet op med mayonnaise | BW42: =+BW72 -> Kan kun anbefales | CE42: =+CE72 -> En kold øl og en porse snaps er god hertil | CG42: =+CG72 -> Pesto dressing. | CK42: =+CK72 -> Kaffe og cognac passer godt til kagen.
A43: 34 | B43: =+List!E46 -> Gråand med svampe og grønkål | AW43: =+AW73 -> 0 | AY43: =+AY73 -> 0 | BA43: =+BA73 -> Serveres med kold hvidvin eller en kold øl og en dram. | BM43: =+BM73 -> Opskrifter stammer fra Hotel Waldorf-Astoria New York | BO43: =+BO73 -> Opskrifter stammer fra Hotel Waldorf-Astoria New York | BU43: =+BU73 -> Opskrifter stammer fra Hotel Waldorf-Astoria New York | CG43: =+CG73 -> Basilikumblade
A44: 35 | B44: =+List!E47 -> Stegt dyreryg gourment | CG44: =+CG74 -> Serveres med en god Alsacevin: Gewurtztraminer.
A46: =+$A$1 -> Tast se | B46: =+List!E49 -> JW's special | C46: =+$C$1 -> Tast for print out på retten | E46: Ingredienser for 4 personer: | G46: =+$E$46 -> Ingredienser for 4 personer: | I46: =+$E$46 -> Ingredienser for 4 personer: | K46: =+$E$46 -> Ingredienser for 4 personer: | M46: =+$E$46 -> Ingredienser for 4 personer: | O46: =+$E$46 -> Ingredienser for 4 personer: | Q46: =+$E$46 -> Ingredienser for 4 personer: | S46: =+$E$46 -> Ingredienser for 4 personer: | U46: =+$E$46 -> Ingredienser for 4 personer: | W46: =+$E$46 -> Ingredienser for 4 personer: | X46: =+Indkøb!$C$3 -> 8 | Y46: =+$E$46 -> Ingredienser for 4 personer: | Z46: =+Indkøb!$C$3 -> 8 | AA46: =+$E$46 -> Ingredienser for 4 personer: | AC46: =+$E$46 -> Ingredienser for 4 personer: | AE46: =+$E$46 -> Ingredienser for 4 personer: | AG46: =+$E$46 -> Ingredienser for 4 personer: | AI46: =+$E$46 -> Ingredienser for 4 personer: | AK46: =+$E$46 -> Ingredienser for 4 personer: | AM46: =+$E$46 -> Ingredienser for 4 personer: | AO46: =+$E$46 -> Ingredienser for 4 personer: | AQ46: =+$E$46 -> Ingredienser for 4 personer: | AS46: =+$E$46 -> Ingredienser for 4 personer: | AU46: =+$E$46 -> Ingredienser for 4 personer: | AW46: =+$E$46 -> Ingredienser for 4 personer: | AY46: =+$E$46 -> Ingredienser for 4 personer: | BA46: =+$E$46 -> Ingredienser for 4 personer: | BC46: =+$E$46 -> Ingredienser for 4 personer: | BE46: =+$E$46 -> Ingredienser for 4 personer: | BG46: =+$E$46 -> Ingredienser for 4 personer: | BI46: =+$E$46 -> Ingredienser for 4 personer: | BK46: =+$E$46 -> Ingredienser for 4 personer: | BM46: =+$E$46 -> Ingredienser for 4 personer: | BO46: =+$E$46 -> Ingredienser for 4 personer: | BQ46: =+$E$46 -> Ingredienser for 4 personer: | BS46: =+$E$46 -> Ingredienser for 4 personer: | BU46: =+$E$46 -> Ingredienser for 4 personer: | BW46: =+$E$46 -> Ingredienser for 4 personer: | BY46: =+$E$46 -> Ingredienser for 4 personer: | CA46: =+$E$46 -> Ingredienser for 4 personer: | CC46: =+$E$46 -> Ingredienser for 4 personer: | CE46: =+$E$46 -> Ingredienser for 4 personer: | CG46: =+$E$46 -> Ingredienser for 4 personer: | CI46: =+$E$46 -> Ingredienser for 4 personer: | CK46: =+$E$46 -> Ingredienser for 4 personer: | CM46: =+$E$46 -> Ingredienser for 4 personer: | CO46: =+$E$46 -> Ingredienser for 4 personer: | CQ46: =+$E$46 -> Ingredienser for 4 personer: | CS46: =+$E$46 -> Ingredienser for 4 personer: | CU46: =+$E$46 -> Ingredienser for 4 personer: | CW46: =+$E$46 -> Ingredienser for 4 personer:
A47: 36 | B47: =+List!E50 -> Walters Pariserbøffer | D47: 2 | E47: kg flæskesteg med ben og ridset svær af god kvalitet | F47: 4 | G47: stk koteletter med skaft ca. 200 g per stk | H47: 4 | I47: stk pæne svineskinkekød eller kalveskinkekød eller kalkunskinkekød efter behag | J47: 1 | K47: kg hakket svinekød og kalvekød | L47: 200 | M47: g røget spæk | N47: 1 | O47: kg hakket svinesmåkød | P47: 4 | Q47: pæne nakkekotletter ca. 150 - 200 g pr. stk | R47: 1 | S47: kg hakket oksekød af god kvalitet (fedt % efter behag, men for lidt fedt giver tørre bøffer) | T47: 4 | U47: oksetournedos i mesterkvalitet a 175 - 200 g pr. stk med bacon om | V47: 4 | W47: T-bone steak i mesterkvalitet a 175 - 200 g pr. stk | X47: 1 | Y47: kg okse- eller kalveskank | Z47: 1 | AA47: kg oksekød i strimler | AB47: 1 | AC47: kg skært oksekød i store tern (bov, tykkam, inderlår, yderlår eller klump) | AD47: 4 | AE47: stk engelske bøffer af velhængt oksefilet ca. 200 g stykket | AF47: 1 | AG47: stor ung hane op til 2 kg | AH47: 1 | AI47: and på ca. 3 kg til højest 4 personer | AJ47: 1.6 | AK47: kg fersk høne | AP47: 4 | AQ47: stk unge duer eller 8 stk poussinere | AR47: 4 | AS47: dybfrosne andebryster a ca. 300 g pr. stk eller dobbelt mindre andebryster | AT47: 2 | AU47: ørred ( fisken skal være på mindst 2 kg i levende vægt ) | AV47: 1 | AW47: laks eller ørred delt i to fileter ( fisken skal være på mindst 1 kg i levende vægt ) | AX47: 800 | AY47: g fiskefars ( kan købes færdiglavet eller bedst lav det selv ) | AZ47: 8 | BA47: stk vælg selv fiskefileter: torsk, sej, brosme, lange, havkat eller fladfisk ca. 600 g | BB47: 800 | BC47: g torskefilet | BD47: 100 | BE47: g filet af torsk, lange, brosme eller havkat ( skæres i mundrette stykker ) | BF47: 4 | BG47: skiver ristet franskbrød | BH47: 1 | BI47: Hare eller kanin ( til 4 personer vægt lidt over 1 kg ) | BJ47: 800 | BK47: g hakket elgkød | BL47: 1 | BM47: stor fasankok eller 2 fasanhøner | BN47: 2 | BO47: vildænder | BP47: 1.5 | BQ47: kg vildsvinesmåkød | BR47: 2 | BS47: gråænder | BT47: 2 | BU47: kg dyreryg af god kvalitet | BV47: 400 | BW47: g oksesmåkød af mesterkvalitet | BZ47: 400 | CA47: g grofthakket vel krydret leverpostej ( eller brug den du bedst kan lide ) | CB47: 400 | CC47: g oksekød | CD47: 400 | CE47: g mellemskært oksekød | CF47: 800 | CG47: g bækørred ( 1 stor eller 2 små ). Mindstemålet for bækørred er 30 cm. | CH47: 1 | CI47: kg lammekølle der er udbenet | CJ47: 1 | CK47: Til kagen
A48: 37 | B48: =+List!E51 -> Walters æggekage med bacon og hot chili | D48: 1 | E48: kg kartofler store | F48: 1 | G48: kg kartofler store | H48: 2 | I48: kg kartofler | J48: 1 | K48: kg kartofler | L48: 30 | M48: g smør | N48: 75 | O48: g smør til stegning | P48: 20 | Q48: g smør | R48: 1 | S48: kg kartofler | T48: 1 | U48: kg kartofler | V48: 4 | W48: store bage kartofler eller dobbelt af de små kartofler | X48: 1 | Y48: kg kartofler | Z48: 1 | AA48: kg kartofler til mos | AB48: 1 | AC48: tsk. Salt | AD48: 10 | AE48: skalotteløg | AF48: 1 | AG48: flaske rødvin Bourgogne | AH48: 1 | AI48: kg kartofler store til at skrælle | AJ48: 2 | AK48: kg kartofler | AP48: 1 | AQ48: tsk salt | AR48: 200 | AS48: g østershatte | AT48: 250 | AU48: g grønsager: gulerod, løg, broccoli, persille, kørvel, dild, estragon, hvidløg, rød chili og fenikkel | AV48: 250 | AW48: g grønsager: gulerod, løg, broccoli, persille, kørvel, dild, estragon, hvidløg, rød chili og fenikkel | AX48: 20 | AY48: g smør til stegning | AZ48: 1 | BA48: dl rasp | BB48: 1 | BC48: tsk salt til drys | BD48: 100 | BE48: g filet af anden mager fisk - aborre eller gedde ( skæres i mundrette stykker ) | BF48: 4 | BG48: paneret fiskefilet rødspætte eller tunge | BH48: 150 | BI48: g spæk | BJ48: 3 | BK48: dl mælk | BL48: 200 | BM48: g skalotteløg | BN48: 1 | BO48: porre | BP48: 4 | BQ48: skiver spæk | BR48: 250 | BS48: g smør til stegning, saucen, svampene og de bagte kartofler | BT48: 100 | BU48: g smør | BV48: 4 | BW48: skiver formfranskbrød ( ca. 1,5 til 2 cm tykke ) | BZ48: 4 | CA48: skiver formfranskbrød ( ca. 1,5 til 2 cm tykke ) | CB48: 4 | CC48: kopper ris ( køb den du bedst kan lide ) | CD48: 1 | CE48: kg kartofler der let koger ud | CF48: 1 | CG48: dl rasp | CH48: 1 | CI48: kg nye kartofler | CJ48: 200 | CK48: g mel
A49: 38 | B49: =+List!E52 -> Walters varm leverpostej på toast brød | D49: 500 | E49: g små kartofler til bruning (eller tilsvarende i glas - de er færdig til brug) | F49: 1 | G49: stort blomkål eller 2 små | H49: 100 | I49: g smør til stegning | J49: 100 | K49: g smør til stegning | L49: 400 | M49: g svinekød | N49: 8 | O49: tykke skiver emmentaler ost | P49: 1 | Q49: spsk jomfru olivenolie | R49: 4 | S49: store løg | T49: 1 | U49: tsk salt | V49: 1 | W49: spsk. smør | X49: 2 | Y49: gulerod | Z49: 60 | AA49: g smør eller jomfru olivenolie | AB49: 1 | AC49: tsk. Peber eller brug en rød chili peber | AD49: 400 | AE49: g svampe efter eget valg | AF49: 2 | AG49: dl kraftig hønsebouillon | AH49: 1 | AI49: kg kartofler små til bruning | AJ49: 2 | AK49: gulerødder | AP49: 1 | AQ49: lille tsk hvid peber | AR49: 200 | AS49: g champignoner | AT49: 100 | AU49: g smør | AV49: 20 | AW49: g smør | AX49: 2 | AY49: spsk jomfru olivenolie til stegning | AZ49: 20 | BA49: g smeltet smør til pensling af fisken | BB49: 1 | BC49: lille tsk hvid peber til drys | BD49: 100 | BE49: g filet af anden mager fisk - fladfisk ( skæres i mundrette stykker ) | BF49: 4 | BG49: dampet fiskefilet rødspætte eller tunge | BH49: 30 | BI49: g smør | BJ49: 1 | BK49: spsk kartoffelmel | BL49: 200 | BM49: g druer | BN49: 1 | BO49: gulerod | BP49: 1 | BQ49: lille dåse koncentreret tomatpure | BR49: 3 | BS49: spsk jomfru olivenolie | BT49: 4 | BU49: dl rødvin | BV49: 1 | BW49: æg | BZ49: 1 | CA49: lille tsk salt | CB49: 5 | CC49: kopper vand | CD49: 4 | CE49: løg | CF49: 75 | CG49: g smør | CH49: 2 | CI49: store løg | CJ49: 3 | CK49: hele æg
A50: 39 | B50: =+List!E53 -> Walters hurtiggryde | D50: 1 | E50: hel rød chili peber | F50: 50 | G50: g smør til stegning | H50: 1 | I50: brev eller dåse revet peberrod | J50: 2 | K50: store løg | L50: 400 | M50: g oksekød | N50: 16 | O50: skiver bacon | P50: 2 | Q50: løg | R50: 100 | S50: g smør til stegning af bøffer og løg | T50: 1 | U50: lille tsk hvid peber | V50: 1 | W50: tsk. salt | X50: 2 | Y50: stilke blegselleri | Z50: 2 | AA50: løg | AB50: 2 | AC50: spsk. Smør til bruning | AD50: 50 | AE50: g smør | AF50: 2 | AG50: grofthakkede løg | AH50: 1 | AI50: ds herregårdsrødkål ( den i den hvide plastdåse ) | AJ50: 2 | AK50: porer | AP50: 4 | AQ50: kviste persille til duerne | AR50: 1 | AS50: bdt forårsløg - spring onion | AT50: 1 | AU50: lille tsk salt | AV50: 1 | AW50: lille tsk salt | AY50: Hvis du laver farsen selv, skal du bruge flg.: | AZ50: 4 | BA50: spsk fint hakket persille ( 2 til panering 2 til drys ) | BB50: 1 | BC50: citron ( citronsaft af den halve, resten i skiver til pynt ) | BD50: 200 | BE50: g blå muslinger - dybfrosne | BF50: 4 | BG50: skiver røget laks | BH50: 50 | BI50: g sauce af fedtstof ( til saucen ) | BJ50: 2 | BK50: spsk revet peberrod | BL50: 2 | BM50: dl hvidvin ( eller rødvin hvis man kun har det ) | BN50: 2 | BO50: skalotteløg | BQ50: Marinade: | BR50: 1 | BS50: gulerod | BT50: 5 | BU50: dl vildtbouillon | BV50: 2 | BW50: spsk vand | BZ50: 1 | CA50: lille tsk hvid peber | CB50: 400 | CC50: g grøntsagblanding efter behag | CD50: 4 | CE50: laurbærblade | CF50: 1 | CG50: spsk hakket persille | CH50: 4 | CI50: fed hvidløg | CJ50: 200 | CK50: g finhakket hasselnødder
A51: 40 | B51: =+List!E54 -> Walters lys skibslabskovs | D51: 1 | E51: hel løg | F51: 1 | G51: tsk salt | H51: 1 | I51: glas capers | J51: 1 | K51: fed hvidløg | L51: 4 | M51: store løg | N51: 1 | O51: tsk salt | P51: 2 | Q51: porre | R51: 1 | S51: tsk salt | T51: 40 | U51: g smør til bruning af bøffer, løg og champignon | V51: 1 | W51: tsk. peber | X51: 2 | Y51: løg | Z51: 250 | AA51: g champignons | AB51: 2 | AC51: store løg | AD51: 1 | AE51: tsk. Salt | AF51: 5 | AG51: fed hvidløg | AJ51: 1 | AK51: løg | AP51: 4 | AQ51: kviste pebermynte til duerne | AR51: 1 | AS51: spsk smør til stegning af svampene | AT51: 1 | AU51: lille spsk hvid peber | AV51: 1 | AW51: lille spsk hvid peber | AX51: 2 | AY51: kg friskfanget torsk eller anden hvid, mager fisk. Se nedenfor. | AZ51: 1 | BA51: tsk salt | BB51: 6 | BC51: dl mælk eller letmælk til soucen | BD51: 100 | BE51: g kæmpe rejer - dybfrosne ( med skal giver den bedste smag ) | BF51: 1 | BG51: pakke rejer dybfrosne | BH51: 75 | BI51: g mel ( til saucen ) | BJ51: 1 | BK51: tsk salt | BL51: 100 | BM51: g smør | BN51: 50 | BO51: g enebær | BP51: 1 | BQ51: flaske god rødvin - gerne den du drikker til maden | BR51: 1 | BS51: porre | BT51: 1 | BU51: laurbærblad | BV51: 1 | BW51: lille revet løg | BZ51: 4 | CA51: æg | CB51: 2 | CC51: spsk jomfru olivenolie | CD51: 8 | CE51: peberkorn | CF51: 1 | CG51: spsk fint hakket purløg | CH51: 2 | CI51: røde peberfrugter | CJ51: 1 | CK51: tsk bagepulver
A52: 41 | B52: =+List!E55 -> Walters bækørred frokostret | D52: 2 | E52: fed hvidløg | F52: 1 | G52: lille tsk hvid peber | H52: 1 | I52: lille glas rødbeder | J52: 2 | K52: æg (hvide og blomme) | L52: 2 | M52: laurbærblade | N52: 1 | O52: lille tsk hvid peber | P52: 2 | Q52: gulerødder | R52: 1 | S52: lille tsk hvid peber | T52: 2 | U52: store løg | V52: 8 | W52: små/mellem store tomater | X52: 2 | Y52: fed hvidløg | Z52: 1 | AA52: tsk paprika | AB52: 4 | AC52: gulerødder | AD52: 1 | AE52: tsk. Peber | AF52: 2 | AG52: gulerødder | AJ52: 2 | AK52: fed hvidløg | AP52: 2 | AQ52: spsk hakket persille til drys | AR52: 1 | AS52: dl fløde | AT52: 1 | AU52: citron | AV52: 1 | AW52: citron | AX52: 1 | AY52: løg | AZ52: 1 | BA52: lille tsk hvid peber | BB52: 20 | BC52: g smør ( 15 g til soucen, 5 g til fadet ) | BD52: 1 | BE52: stort løg i tern | BF52: 1 | BG52: glas sort kaviar | BH52: 8 | BI52: dl mælk ( til saucen ) | BJ52: 1 | BK52: lille tsk hvid peber | BL52: 300 | BM52: g rosenkål | BN52: 1 | BO52: fed hvidløg | BP52: 4 | BQ52: løg | BR52: 1 | BS52: lille stykke frisk knoldselleri ( eller tørret ) | BT52: 3 | BU52: kviste timian | BV52: 1 | BW52: spsk hakket kapers | BZ52: 1 | CA52: lille glas asier, agurker eller rødbeder | CB52: 0.5 | CC52: dl soya | CD52: 1 | CE52: tsk salt | CF52: 1 | CG52: tsk timianblade ( uden stilke ) | CH52: 15 | CI52: tråde safran | CJ52: 1 | CK52: Til chokolademousse
A53: 42 | B53: =+List!E56 -> Walters Lam i salsa verde | D53: 2 | E53: blade laurbærblade | F53: 1 | G53: dåse bouillon eller vand og terning | H53: 1 | I53: lille glas ansjoser til dem der kan lide dette, ellers små sild i dild | J53: 3 | K53: spsk mel | L53: 2 | M53: nelliker | N53: 1 | O53: lille tsk paprika | P53: 1 | Q53: lille knoldselleri | R53: 1 | S53: lille fløde 13 til saucen | T53: 1 | U53: stor pakke champignon | V53: 1 | W53: agurk evnt. Skrællet | X53: 2 | Y53: porre | Z53: 2 | AA53: dl bouillon eller vand og terning | AB53: 2 | AC53: porrer | AD53: 2 | AE53: tsk. Olie | AF53: 2 | AG53: stængler bladselleri | AJ53: 1 | AK53: bdt suppevisk | AP53: 1 | AQ53: spsk snittet mynte til drys | AR53: 1 | AS53: dl rødvin | AT53: 2 | AU53: spsk kapers | AV53: 2 | AW53: spsk kapers | AX53: 1 | AY53: fed hvidløg | AZ53: 1 | BA53: glas remo eller pickles efter behag | BB53: 3 | BC53: spsk hvedemel | BD53: 1 | BE53: fennikelknold i store tern | BF53: 1 | BG53: bdt dild fint hakket | BH53: 2 | BI53: tsk mad kulør | BJ53: 80 | BK53: g smør | BL53: 2 | BM53: spsk citronsaft ca. 1/2 citron samt citronskal | BN53: 5 | BO53: dl kalvefond ( eller bouillonterninger og vand ) | BP53: 3 | BQ53: fed hvidløg | BR53: 1 | BS53: lille bundt persille 3 stilke til soucen og hakket persille til pynt | BT53: 3 | BU53: dl vand | BV53: 2 | BW53: spsk hakket rødbeder | BZ53: 4 | CA53: stænk Tabasco på spejleægget | CB53: 2 | CC53: spsk kartoffelmel | CD53: 1 | CE53: bundt persille | CF53: 1 | CG53: lille tsk salt | CH53: 50 | CI53: g smuttede hakkede mandler | CJ53: 4 | CK53: hele æg
D54: 2 | E54: skiver ingefær | F54: 3 | G54: spsk mel | H54: 1 | I54: lille glas pickles | J54: 1 | K54: tsk salt | L54: 250 | M54: g tomater | N54: 1 | O54: lille pakke frosne bønner eller friske efter behag | P54: 1 | Q54: persillerod | R54: 1 | S54: agurk | T54: 2 | U54: pakker færdiglavet bainase souce | V54: 1 | W54: stor salathoved | X54: 1 | Y54: lille persillerod | Z54: 2 | AA54: dl piskefløde | AB54: 1 | AC54: kg kartofler | AD54: 2 | AE54: dl. Bouillon | AF54: 4 | AG54: nelliker | AJ54: 10 | AK54: cm peberrod eller 2 ds færdig revet peberrod | AP54: 20 | AQ54: g smør til stegning af duerne | AR54: 1 | AS54: tsk salt | AT54: 1 | AU54: spsk Dijon sennep | AV54: 1 | AW54: spsk Dijon sennep | AX54: 80 | AY54: g spæk | AZ54: 1 | BA54: fed hvidløg | BB54: 2 | BC54: spsk fiskesennep | BD54: 3 | BE54: spsk jomfru olivenolie | BF54: 4 | BG54: pæne salatblade | BH54: 1 | BI54: lille glas ribsgele | BJ54: 2 | BK54: dl bouillon ( terninger og vand ) | BL54: 10 | BM54: fed hvidløg | BN54: 2 | BO54: dl portvin | BP54: 1 | BQ54: strimmel appelsinskræl | BR54: 2 | BS54: spsk maizenamel ( eller hvedemel ) | BT54: 4 | BU54: skiver spæk | BV54: 1 | BW54: lille tsk salt | BZ54: 16 | CA54: bacon skiver godt ristet | CB54: 2 | CC54: spsk amerikansk grillkrydderi | CD54: 1 | CE54: groft rugbrød | CF54: 1 | CG54: meget lille tsk hvid peber | CH54: 2 | CI54: salathoveder | CJ54: 4 | CK54: spsk flormelis
A55: =+$A$1 -> Tast se | B55: =+List!E58 -> Deserter | C55: =+$C$1 -> Tast for print out på retten | D55: 1 | E55: tsk salt | F55: 1 | G55: tsk paprika | H55: 1 | I55: spsk salt | J55: 1 | K55: lille tsk hvid peber | L55: 500 | M55: g frosne bønner | N55: 4 | O55: pæne tomater | P55: 8 | Q55: kartofler | R55: 1 | S55: glas asier eller små agurker | T55: 4 | U55: røde chili peber (skal være friske) | V55: 8 | W55: forårsløg | X55: 1 | Y55: dåse flådede tomater | Z55: 1 | AA55: lille dåse tomatpure | AB55: 4 | AC55: kviste timian | AF55: 1 | AG55: spsk. Hele peberkorn | AP55: 3 | AQ55: stk løg i tern | AR55: 1 | AS55: lille tsk hvid peber | AT55: 1 | AU55: vineddike eller hvidvin | AV55: 1 | AW55: groft landbrøg ( Goslarbrød ) | AX55: 1 | AY55: tsk salt | AZ55: 2 | BA55: skiver ingefær | BB55: 1 | BC55: spsk hvidvins eddike | BD55: 2 | BE55: liter lys bouillon ( fiske- eller hønsebouillon ) se opskriften nedenfor | BF55: 1 | BG55: lille glas asparges | BH55: 1 | BI55: dl piskefløde til flødeskum | BJ55: 1 | BK55: spsk knust enebær | BL55: 1 | BM55: bdt persille | BN55: 100 | BO55: g smør | BP55: 150 | BQ55: g sorte oliven | BR55: 0.5 | BS55: kg frisk grønkål eller en pose drybfrosne grønkål | BT55: 1 | BU55: dl piskefløde ( eller fløde 13 ) | BV55: 1 | BW55: lille tsk hvid peber | BZ55: 2 | CA55: tsk. Smør til spejleæggene | CB55: 2 | CC55: fed hvidløg | CD55: 1 | CE55: lille glas rødbeder | CF55: 16 | CG55: sherrytomater | CH55: 2 | CI55: tsk paprika ( 1 rosen og 1 hot paprika ) | CJ55: 2.5 | CK55: dl piskefløde
A56: 43 | B56: =+List!E59 -> Jørgen Walters fiskekage | D56: 1 | E56: lille tsk hvid peber | F56: 1 | G56: bdt persille | H56: 1 | I56: lille spsk hvid peber | J56: 1 | K56: lille fløde 13 | L56: 2 | M56: gulerødder | N56: 1 | O56: lidt hvidvinseddike | P56: 2 | Q56: l bouillonsuppe | R56: 1 | S56: lille flaske eddike | T56: 3 | U56: røde, gule og grønne peber frugter ( en af hver ) | V56: 1 | W56: bundt persille | X56: 2 | Y56: laurbærblade | Z56: 1 | AA56: glas rødvin | AB56: 8 | AC56: laurbærblade | AD56: 800 | AE56: g. Pomes frites | AF56: 100 | AG56: g koldt smør ( til montering af saucen ) | AP56: 1 | AQ56: stk citron ( kun saften af denne ) | AR56: 8 | AS56: store kartofler til Hasselback kartofler | AT56: 1 | AU56: peberrod | AX56: 1 | AY56: lille tsk hvid peber | AZ56: 1 | BA56: rød chili peber | BB56: 1 | BC56: tsk salt | BD56: 4 | BE56: store kartofler i skiver | BG56: Rød dressing: | BH56: 1 | BI56: tsk salt | BJ56: 1 | BK56: kg kartofler | BL56: 1 | BM56: kg kartofler | BN56: 100 | BO56: g karljohansvampe ( findes disse ikke brug champignon ) | BP56: 1 | BQ56: dl jomfru olivenolie | BR56: 2 | BS56: dl fløde | BT56: 1 | BU56: tsk mad kulør hvis det er nødvendigt | BV56: 4 | BW56: store rå løgringe | CB56: 1 | CC56: lille tsk salt | CE56: salt og hvid peber | CF56: 1 | CG56: dl jomfru olivenolie | CH56: 2 | CI56: dl snittede krydderurter: dild, kørvel, estragon, persille og løvstikke | CJ56: 150 | CK56: g mørk chokolade
A57: 44 | B57: =+List!E60 -> Brændte figner | D57: 5 | E57: dl rødvin | F57: 1 | G57: dl piskefløde | J57: 1 | K57: tsk allehånde | L57: 2 | M57: bayerske pølser | N57: 1 | O57: lidt jomfru olivenolie | P57: 1 | Q57: kvist frisk timian | R57: 100 | S57: g sukker | T57: 16 | U57: fed hvidløg | V57: 2 | W57: røde chili peber | X57: 1 | Y57: kvist rosmarin | Z57: 1 | AA57: dl cremefraiche | AB57: 1 | AC57: porter | AF57: 1 | AG57: suppevisk timian, persille og laurbærblade (løvstikke, salvie) | AP57: 15 | AQ57: tråde safran | AR57: 2 | AS57: spsk smør/olie til pensling af kartoflerne | AT57: 2 | AU57: kg små pille kartofler | AX57: 1 | AY57: æg | AZ57: 1 | BA57: citron | BB57: 1 | BC57: tsk sukker | BD57: 1 | BE57: appelsin ( skal af den halve appelsin ) | BF57: 75 | BG57: g mayonaise | BH57: 1 | BI57: lille tsk hvid peber | BJ57: 1 | BK57: groft landbrød | BL57: 1 | BM57: kvist rosmarin | BN57: 100 | BO57: kantareller | BP57: 1 | BQ57: lille glas cognac | BR57: 400 | BS57: g vilde svampe ( karljohan, kantareller. Almindelige svampe kan også anvendes ) | BT57: 1 | BU57: kg gode kartofler | BV57: 4 | BW57: rå æggeblommer | CB57: 1 | CC57: lille tsk hvid peber | CD57: 5 | CE57: dl vand til kogning af kødet | CF57: 2 | CG57: spsk pinjekerner | CH57: 2 | CI57: spsk jomfru olivenolie | CJ57: 100 | CK57: g nougat
A58: 45 | B58: =+List!E61 -> Syltede pære | D58: 5 | E58: dl vand | L58: 1 | M58: tsk salt | N58: 1 | O58: spsk sukker eller honning | P58: 1 | Q58: hel frisk chili peber eller tørret | R58: 1 | S58: tsk salt | T58: 1 | U58: dl hvidvinseddike | V58: 400 | W58: g fåreost | X58: 1 | Y58: lille dåse koncentreret tomatpure | Z58: 1 | AA58: tsk salt | AB58: 2 | AC58: dl. Bouillon | AF58: 200 | AG58: g bacon | AP58: 4 | AQ58: dl lys boullion ( evnt. terninger og vand ) | AX58: 1 | AY58: fl god remolade | AZ58: 1 | BA58: kg nye danske kartofler | BB58: 1 | BC58: dl revet peberrod | BD58: 10 | BE58: tråde safran ( eller 1 tsk gurkemeje pulver ) | BF58: 1 | BG58: dl cremefraise | BH58: 1 | BI58: kg kartofler | BJ58: 1 | BK58: agurk | BL58: 2 | BM58: spsk andefedt eller afklaret smør | BN58: 40 | BO58: g smør til stegning af svampene (20g) og smør ristede aspargeskartofler (20 g) | BP58: 1 | BQ58: tsk salt | BR58: 4 | BS58: store bagekartofler ( eller dobbelt så mange, hvis de er små ) | BT58: 1 | BU58: tsk salt | BV58: 50 | BW58: g smør til stegning | CF58: 1 | CG58: fed hvidløg | CH58: 2 | CI58: spsk hvedemel | CJ58: 1 | CK58: Til chokoladecreme på toppen
A59: 46 | B59: =+List!E62 -> Æbleskiver | D59: 3 | E59: spsk mel til soucen | L59: 1 | M59: lille tsk hvid peber | N59: 1 | O59: løg | P59: 6 | Q59: dl Møllerens Gule Ærter ( 3/4 pakke ) Tykkelsen justeres af mængden | T59: 1 | U59: dl jomfru olivenolie | V59: 1 | W59: tsk. salt | X59: 1 | Y59: spsk mel | Z59: 1 | AA59: lille tsk hvid peber | AB59: 1 | AC59: bdt. Persille | AF59: 250 | AG59: g champignon | AP59: 300 | AQ59: g jorbær- eller vinrabarber | AX59: 8 | AY59: skiver groft rugbrød | BA59: eller | BB59: 2 | BC59: æg | BD59: 4 | BE59: kviste persille ( stilkene bruges i suppen, resten hakkes og bruges som drys ) | BF59: 1 | BG59: spsk tomatkoncentrat | BH59: 1 | BI59: glas syltede grønne tomater | BJ59: 1 | BK59: dl eddike | BL59: 5 | BM59: dl vand til fond med en suppevisk ( se opskriften og ingridienserne nedenfor ) | BN59: 20 | BO59: g jomfu olivenolie til stegning af svampene | BP59: 1 | BQ59: lille tsk hvid peber | BR59: 1 | BS59: bdt frisk rosmarin | BT59: 1 | BU59: lille tsk hvid peber | CB59: 1 | CC59: lille glas syltede røde chili peber | CF59: 1 | CG59: bundt basilikum (gem nogle blade til pynt) | CH59: 2 | CI59: dl hvidvin eller 1 1/2 dl hvidvin og 1/2 dl cognac | CJ59: 100 | CK59: g mørk chokolade
A60: 47 | B60: =+List!E63 -> Is med frugter | D60: 1 | E60: glas rødkål | L60: 5 | M60: dl rødvin | N60: 1 | O60: chilipeber | P60: 1 | Q60: tsk salt | T60: 4 | U60: spsk sukker eller honning | V60: 1 | W60: lille glas oliven grønne eller sorte uden sten | X60: 20 | Y60: g smør eller jomfru olivenolie | AA60: Kartoffelmos: | AF60: 1 | AG60: glas perleløg | AP60: 2 | AQ60: tsk rørsukker eller honning | AX60: 20 | AY60: g smør til brødet | AZ60: 8 | BA60: stk groft rugbrød | BB60: 1 | BC60: lille glas syltede rødbeder | BD60: 4 | BE60: stk modne tomater i både ( eller en lille dåse tomatpure så undgår du tomatskind i suppen ) | BF60: 1 | BG60: tsk paprika - rosen/edelsüss | BJ60: 0.2 | BK60: dl vand | BL60: 2 | BM60: gulerødder | BN60: 1 | BO60: lille tsk salt | BP60: 1 | BQ60: drys muskatnød | BR60: 2 | BS60: tsk salt | BU60: gode grøntsager efter behag | CJ60: 100 | CK60: g smør
A61: 48 | B61: =+List!E64 -> Pandekager | D61: 1 | E61: glas asier eller små agurker | L61: 1 | M61: bdt persille | N61: 1 | O61: fed hvidløg | P61: 1 | Q61: lille tsk hvid peber | V61: 2 | W61: spsk. olivenolie | X61: 1 | Y61: rød chili peber | Z61: 1 | AA61: dl mælk | AF61: 4 | AG61: spsk. Olivenolie | AP61: 4 | AQ61: dl jasminris eller basmatiris | AX61: 1 | AY61: citron | AZ61: 200 | BA61: g kold smør | BB61: 1 | BC61: kg pille kartofler | BD61: 4 | BE61: fed hvidløg ( hakkes ) | BF61: 1 | BG61: tsk citronsaft | BJ61: 1 | BK61: tsk salt til udtræk af vandet i agurken | BL61: 1 | BM61: lille knoldselleri eller 1/4 stor | BN61: 1 | BO61: lille tsk hvid peber | BP61: 1 | BQ61: lille kvist timian | BR61: 1 | BS61: tsk hvid peber | CG61: Hjemmebagt brød til 4 personer: | CJ61: 100 | CK61: g sukker
A62: 49 | B62: =+List!E65 -> Irish Coffee | D62: 1 | E62: spsk honning til rødkålen | L62: 1 | M62: stort groft landbrød efter eget ønske | N62: 1 | O62: groft landbrød | P62: 1 | Q62: glas Dijon sennep | V62: 2 | W62: spsk. eddike | X62: 1 | Y62: tsk salt | Z62: 10 | AA62: g smør | AF62: 100 | AG62: g smør | AP62: 6 | AQ62: dl vand til risene | AX62: 1 | AY62: bdt brøndkarse til pynt | BB62: 4 | BC62: stilke persille til pynt | BD62: 2 | BE62: hot røde chili peber ( skæres i tynde skiver - pas på ) | BF62: 1 | BG62: fed hvidløg fint hakket | BJ62: 3 | BK62: spsk sukker | BL62: 1 | BM62: porre | BN62: 1 | BO62: lille glas tyttebær eller ribs | BP62: 2 | BQ62: laurbærblade | CG62: 850 g hvedemel, 50 g grahamsmel og 1 dl hvedekerner | CJ62: 1 | CK62: tsk vanillesukker
D63: 30 | E63: g smør til de brune kartofler | P63: 1 | Q63: groft rugbrød | X63: 1 | Y63: lille tsk hvid peber | AA63: Smag til med salt og hvid peber | AF63: 2 | AG63: spsk. Mel eller jævning | AP63: 1 | AQ63: tsk salt til risene | AX63: 1 | AY63: bdt basilikum til pynt | BD63: 1 | BE63: stk rød peberfrugt i tern ( ikke hot ) | BF63: 1 | BG63: spsk asparges vand | BJ63: 1 | BK63: lille drys hvid peber | BL63: 1 | BM63: løg | BN63: 400 | BO63: g aspargeskartofler | BP63: 1 | BQ63: lille bundt persille | CG63: 1/2 l tykmælk, 2 spsk honning, 2 spsk olie, 1 tsk salt og 25 g gær | CJ63: 1 | CK63: tsk kaffepulver
B64: =+List!E67 -> Diverse | D64: 100 | E64: g sukker til de brune kartofler | P64: 1 | Q64: glas rødbeder | X64: 3 | Y64: dl rødvin | AF64: 1 | AG64: salt og peber | AP64: 10 | AQ64: g smør til risene | AX64: 1 | AY64: bdt persille til pynt | BD64: 1 | BE64: smag til med salt, hvid peber og cayennepeber | BG64: smages til med salt og hvid peber | BL64: 8 | BM64: peberkorn | BN64: 20 | BO64: g smør | BP64: 1 | BQ64: pose pasta efter egen smag
A65: 50 | B65: =+List!E68 -> Rester fra ugen | X65: 4 | Y65: dl vand | AX65: 1 | AY65: bdt purløg til pynt | BD65: 12 | BE65: skiver ristet brød af god kvalitet | BL65: 8 | BM65: enebær | BN65: 2 | BO65: spsk sukker eller honning | CG65: NB: Hvis du fanger en lille regnbueørred, kan denne også bruges til denne ret. ( Ingen mindstemål )
A66: 51 | B66: =+List!E69 -> Spise på Grillen
A67: 52 | B67: =+List!E70 -> 0
A68: 53 | B68: =+List!E71 -> 0
A69: 54 | B69: =+List!E72 -> 0
A70: 55 | B70: =+List!E73 -> 0 | E70: Salat, pynt eller grønt drys der serveres til retten: | G70: =+$E$70 -> Salat, pynt eller grønt drys der serveres til retten: | I70: =+$E$70 -> Salat, pynt eller grønt drys der serveres til retten: | K70: =+$E$70 -> Salat, pynt eller grønt drys der serveres til retten: | M70: =+$E$70 -> Salat, pynt eller grønt drys der serveres til retten: | O70: =+$E$70 -> Salat, pynt eller grønt drys der serveres til retten: | Q70: =+$E$70 -> Salat, pynt eller grønt drys der serveres til retten: | S70: =+$E$70 -> Salat, pynt eller grønt drys der serveres til retten: | U70: =+$E$70 -> Salat, pynt eller grønt drys der serveres til retten: | W70: =+$E$70 -> Salat, pynt eller grønt drys der serveres til retten: | Y70: =+$E$70 -> Salat, pynt eller grønt drys der serveres til retten: | AA70: =+$E$70 -> Salat, pynt eller grønt drys der serveres til retten: | AC70: =+$E$70 -> Salat, pynt eller grønt drys der serveres til retten: | AE70: =+$E$70 -> Salat, pynt eller grønt drys der serveres til retten: | AG70: =+$E$70 -> Salat, pynt eller grønt drys der serveres til retten: | AI70: =+$E$70 -> Salat, pynt eller grønt drys der serveres til retten: | AK70: =+$E$70 -> Salat, pynt eller grønt drys der serveres til retten: | AM70: =+$E$70 -> Salat, pynt eller grønt drys der serveres til retten: | AO70: =+$E$70 -> Salat, pynt eller grønt drys der serveres til retten: | AQ70: =+$E$70 -> Salat, pynt eller grønt drys der serveres til retten: | AS70: =+$E$70 -> Salat, pynt eller grønt drys der serveres til retten: | AU70: =+$E$70 -> Salat, pynt eller grønt drys der serveres til retten: | AW70: =+$E$70 -> Salat, pynt eller grønt drys der serveres til retten: | AY70: =+$E$70 -> Salat, pynt eller grønt drys der serveres til retten: | BA70: =+$E$70 -> Salat, pynt eller grønt drys der serveres til retten: | BC70: =+$E$70 -> Salat, pynt eller grønt drys der serveres til retten: | BE70: =+$E$70 -> Salat, pynt eller grønt drys der serveres til retten: | BG70: =+$E$70 -> Salat, pynt eller grønt drys der serveres til retten: | BI70: =+$E$70 -> Salat, pynt eller grønt drys der serveres til retten: | BK70: =+$E$70 -> Salat, pynt eller grønt drys der serveres til retten: | BM70: =+$E$70 -> Salat, pynt eller grønt drys der serveres til retten: | BO70: =+$E$70 -> Salat, pynt eller grønt drys der serveres til retten: | BQ70: =+$E$70 -> Salat, pynt eller grønt drys der serveres til retten: | BS70: =+$E$70 -> Salat, pynt eller grønt drys der serveres til retten: | BU70: =+$E$70 -> Salat, pynt eller grønt drys der serveres til retten: | BW70: =+$E$70 -> Salat, pynt eller grønt drys der serveres til retten: | BY70: =+$E$70 -> Salat, pynt eller grønt drys der serveres til retten: | CA70: =+$E$70 -> Salat, pynt eller grønt drys der serveres til retten: | CC70: =+$E$70 -> Salat, pynt eller grønt drys der serveres til retten: | CE70: =+$E$70 -> Salat, pynt eller grønt drys der serveres til retten: | CG70: =+$E$70 -> Salat, pynt eller grønt drys der serveres til retten: | CI70: =+$E$70 -> Salat, pynt eller grønt drys der serveres til retten: | CK70: =+$E$70 -> Salat, pynt eller grønt drys der serveres til retten: | CM70: =+$E$70 -> Salat, pynt eller grønt drys der serveres til retten: | CO70: =+$E$70 -> Salat, pynt eller grønt drys der serveres til retten: | CQ70: =+$E$70 -> Salat, pynt eller grønt drys der serveres til retten: | CS70: =+$E$70 -> Salat, pynt eller grønt drys der serveres til retten: | CU70: =+$E$70 -> Salat, pynt eller grønt drys der serveres til retten: | CW70: =+$E$70 -> Salat, pynt eller grønt drys der serveres til retten:
A71: 56 | B71: =+List!E74 -> 0 | F71: 1 | G71: bdt finhakket persille | I71: Server din egen grøn salat til retten, gerne med fetaost, sort oliven og syltede hvidløg. | K71: Dijon sennep kan serveres til. | L71: 1 | M71: bdt hakket persille | O71: Hertil serveres grønne bønner og en tomatsalat | Q71: Hertil serveres Dijon sennep og groft rugbrød med en dram og en kold øl | R71: 1 | S71: glas asier eller små agurker serveres hertil | U71: Jwa's hjemmelavet chili tilbehør | W71: De hele oliven uden sten grønne/sorte lægges over salaten. | X71: 1 | Y71: bdt finthakket persille | Z71: 1 | AA71: frisk salat efter ønske | AC71: Drys retten med rigeligt persille ved serveringen. | AE71: En god sommersalat kunne være passende. | AG71: Serveres med hjerteformede, smørristede brødcroutons eller lune hvidløgs flutes. | AQ71: Hvis man ikke ønsker ris, er duerne meget velegnet til nye kartofler. | AS71: Server Hasselback kartofler dertil | AW71: Serveres med en god salat og groft landbrød: | AY71: Pynt med noget grønt vælg selv af ovnnævnte forslag. | BA71: Serveres enten med groft rugbrød/smør eller nye, pillede, danske kartofler og kold smør. | BC71: Citronskiver anrettes ved siden af fisken. | BE71: Hakket persille | BG71: Pynt tallerknerne med asparges, når du nu har købt disse for at bruge noget aspargesvand til dressingen. | BI71: Prøv at serverer syltede grønne tomater hertil. | BK71: Lav en dejlig agurkesalat hertil. | BM71: Waldorf - salat passer godt hertil: | BO71: Waldorf - salat passer godt hertil: | BQ71: Du kan også serverer lune flutes til denne ret, men husk en god kraftig rødvin. | BS71: Hertil serveres en god rødvin. Prøv en Merlot rødvin fra Italien: Bolla Merlot delle Venezia IGT 1996 | BU71: Waldorf - salat passer godt hertil: | BW71: Der kan pyntes lidt mere efter behag: Hakket rødbeder, kapers og peberrod. | CA71: Salatblade eller persille | CC71: Prøv de syltede røde chili peber hertil med en kold øl. | CE71: Drys hakket persille over retten og server den varm med groft rugbrød og rødbeder. | CG71: Lækkert hjemmebagt brød. | CI71: server friske grønne asparges til. Disse overhældes med afklaret smør og drysses med ost, salt og hvid peber | CK71: Pynt med ristede mandelflager og orangekugler
K72: Prøv et af ovennævnte forslag. | O72: Karbonaderne kan naturligvis også serveres uden ost | Q72: Rødbeder kan også bruges som tilbehør | R72: 1 | S72: skål frisklavet agurkesalat kan også bruges | X72: 1 | Y72: reven skal af en halv citron | AG72: Server samme rødvin hertil som bruges i retten. | AQ72: Prøv evnt. at serverer myntegele hertil. | AY72: Citron skal der til. | BA72: Hvis kartofler, så drys med persille. | BC72: Pynt med persille | BG72: Serveres med et koldt glas hvidvin: Gewurtztraminer | BM72: Æbler, bladselleri og valnødder blandet op med mayonnaise | BO72: Æbler, bladselleri og valnødder blandet op med mayonnaise | BU72: Æbler, bladselleri og valnødder blandet op med mayonnaise | BW72: Kan kun anbefales | CE72: En kold øl og en porse snaps er god hertil | CG72: Pesto dressing. | CK72: Kaffe og cognac passer godt til kagen.
BA73: Serveres med kold hvidvin eller en kold øl og en dram. | BM73: Opskrifter stammer fra Hotel Waldorf-Astoria New York | BO73: Opskrifter stammer fra Hotel Waldorf-Astoria New York | BU73: Opskrifter stammer fra Hotel Waldorf-Astoria New York | CG73: Basilikumblade
CG74: Serveres med en god Alsacevin: Gewurtztraminer.
D76: Gode råd for svinekød | R76: Gode råd for oksekød | AF76: Gode råd for fjerkræ | AT76: Gode råd for fisk | BH76: Gode råd for vildt | BV76: Gode råd for Walters specialiteter | CJ76: Gode råd for deserter | CX76: Gode råd for diverse
CX77: * | CY77: De gode råd er ikke skrevet endnu
D78: * | E78: De gode råd er ikke skrevet endnu | R78: * | S78: Pak oksekød, der er vacuumpakket, ud af emballagen 3-4 timer før det skal tilberedes, | AF78: * | AG78: Ved at have en god hygiejne i køkkenet kan du undgå at sprede eventuelle Salmonella bakterier. | AT78: * | AU78: Fanger du selv dine fisk, så er du selv herrer over, hvor friske de er, inden de skal tilberedes. | BH78: * | BI78: Vildtkød bør altid brunes ved kraftig varme. | BV78: * | BW78: De gode råd er ikke skrevet endnu | CJ78: * | CK78: De gode råd er ikke skrevet endnu
S79: så det får god tid til at ilte. | AG79: Følger du disse enkle råd er du på den sikre side. | AU79: Det er vigtigt om sommeren, hvor det er varmt i vejret, at du straks efter fangsten pakker fisken
AU80: ind i et vådt viskestykke og lægger fisken i en kølebox. | BH80: * | BI80: Det frarådes at servere vildt for rødt eller blodigt.
R81: * | S81: Vent altid med at krydre oksekød med salt, til kødet er brunet. | AF81: * | AG81: Optø fjerkræ på et fad eller i en skål i køleskabet, så det ikke drypper på andre madvarer. | AU81: Eller det næst bedste på jorden i total skygge.
AF82: * | AG82: Smid straks emballagen ud efter optøningen/eftermodningen. | AT82: * | AU82: Er du på en turbåd om sommeren, skal du bede skipper om at have is ombord, så kan du | BH82: * | BI82: Kontroller kødet med et stegetermometer.
R83: * | S83: Steg oksebøffer og oksestege i smør og/eller jomfru olivenolie. Det fremhæver kødsmagen bedst. | AF83: * | AG83: Hold fjerkræ og andre madvarer f. eks. grøntsager adskilt før og under tilberedningen. | AU83: fylde kurven med is og lægge dine fisk på køl.
AF84: * | AG84: Vask skærebrædt, kniv, bord og hænder grundigt efter håndtering af råt fjerkræ. | AT84: * | AU84: Åbne og rense fisken på fiskepladsen skal du kun gøre, hvis du straks efter hjemkomst | BH84: * | BI84: Er kernetemperaturen 70 - 72 grader kan du være på den sikre side sundhedsmæssigt.
R85: * | S85: Steg oksekød, der har fedtkant eller fedtmarmorering, med fedtet på. Det er nemlig fedtet, | AF85: * | AG85: Anvend ikke samme skærebrædt til fjerkræ og grøntsager. | AU85: tilbereder denne.
S86: der giver den ekstra gode kødsmag. Bagefter kan det evt. skæres af. | AF86: * | AG86: Brug rene karklude og viskestykker og skift dem hver dag. | AU86: Hvis den skal fryses, skal du først rense fisken derhjemme i rent vand fra den kolde hane. | BH86: * | BI86: For fuglevildt se også "Gode råd for fjerkræ".
AU87: Der kan komme bakterier i fisken, som gør den uspiselig, efter den er frosset.
R88: * | S88: Steg oksebøffer ved middel til kraftig varme, men undgå at stege dem så hårdt, | AG88: Den bedste måde at kontrollere om fjerkræ er gennemstegt, er ved at bruge et stegetermometer. | AU88: og optøet igen. På frost max 3 mdr. for ikke fede fisk, fede fisk mindre tid.
S89: så overfladen bliver sprød. | AG89: Temperaturen skal være mindst 75 grader. Fyldt fjerkræ skal også være gennemstegt. | AT89: * | AU89: Køber du dine fisk hos fiskehandleren, så se på gællerne om de er friske og røde.
AU90: Lugt til fisken, den må ikke lugte af "FISK", men af frisk havvand, hvis den kommer fra havet.
R91: * | S91: Lad både oksebøffer og oksestege hvile - færdigstegte og tildækkede - inden de serveres. | AU91: Køber du dine fisk på havnen ved de fiskerbåde, som kommer ind med fisk,
S92: Bøffer skal hvile 5-8 min. Stege 20-25 min. | AU92: så er du som regel sikker på friske fisk.
AT93: * | AU93: Fisk steges altid i smør og/eller jomfru olivenolie, det fremhæver fiskens smag.
AU94: Steg altid fisken ved middel varme, så den ikke branker og bliver hård.
AU95: Fisk må godt krydres med salt inden stegningen, samt andre krydderier efter eget ønske.
AT96: * | AU96: Fisken steges eller koges så rygbenet slipper fiskekødet uden noget hænger ved.
E103: INDKØBSLISTE TIL DENNE RET ER FOR
E104: =+Indkøb!C3 -> 8
E105: VOKSNE PERSONER
E106: =+IF(Indkøb!C5>0," OG ","") -> 
E107: =IF(Indkøb!C5>0,Indkøb!C5,"") -> 
E108: =+IF(Indkøb!C5>0," BØRN UNDER 18 ÅR","") -> 

Sheet Gode råd
A1: =+Opskrifter!D76 -> Gode råd for svinekød | C1: =+Opskrifter!R76 -> Gode råd for oksekød | E1: =+Opskrifter!AF76 -> Gode råd for fjerkræ | G1: =+Opskrifter!AT76 -> Gode råd for fisk | I1: =+Opskrifter!BH76 -> Gode råd for vildt | K1: =+Opskrifter!BV76 -> Gode råd for Walters specialiteter | M1: =+Opskrifter!CJ76 -> Gode råd for deserter | O1: =+Opskrifter!CX76 -> Gode råd for diverse
A2: =+Opskrifter!D78 -> * | B2: =+Opskrifter!E78 -> De gode råd er ikke skrevet endnu | C2: =+Opskrifter!R78 -> * | D2: =+Opskrifter!S78 -> Pak oksekød, der er vacuumpakket, ud af emballagen 3-4 timer før det skal tilberedes, | E2: =+Opskrifter!AF78 -> * | F2: =+Opskrifter!AG78 -> Ved at have en god hygiejne i køkkenet kan du undgå at sprede eventuelle Salmonella bakterier. | G2: =+Opskrifter!AT78 -> * | H2: =+Opskrifter!AU78 -> Fanger du selv dine fisk, så er du selv herrer over, hvor friske de er, inden de skal tilberedes. | I2: =+Opskrifter!BH78 -> * | J2: =+Opskrifter!BI78 -> Vildtkød bør altid brunes ved kraftig varme. | K2: =+Opskrifter!BV78 -> * | L2: =+Opskrifter!BW78 -> De gode råd er ikke skrevet endnu | M2: =+Opskrifter!CJ78 -> * | N2: =+Opskrifter!CK78 -> De gode råd er ikke skrevet endnu | O2: =+Opskrifter!CX77 -> * | P2: =+Opskrifter!CY77 -> De gode råd er ikke skrevet endnu
D3: =+Opskrifter!S79 -> så det får god tid til at ilte. | F3: =+Opskrifter!AG79 -> Følger du disse enkle råd er du på den sikre side. | H3: =+Opskrifter!AU79 -> Det er vigtigt om sommeren, hvor det er varmt i vejret, at du straks efter fangsten pakker fisken
H4: =+Opskrifter!AU80 -> ind i et vådt viskestykke og lægger fisken i en kølebox. | I4: =+Opskrifter!BH80 -> * | J4: =+Opskrifter!BI80 -> Det frarådes at servere vildt for rødt eller blodigt.
C5: =+Opskrifter!R81 -> * | D5: =+Opskrifter!S81 -> Vent altid med at krydre oksekød med salt, til kødet er brunet. | E5: =+Opskrifter!AF81 -> * | F5: =+Opskrifter!AG81 -> Optø fjerkræ på et fad eller i en skål i køleskabet, så det ikke drypper på andre madvarer. | H5: =+Opskrifter!AU81 -> Eller det næst bedste på jorden i total skygge.
E6: =+Opskrifter!AF82 -> * | F6: =+Opskrifter!AG82 -> Smid straks emballagen ud efter optøningen/eftermodningen. | G6: =+Opskrifter!AT82 -> * | H6: =+Opskrifter!AU82 -> Er du på en turbåd om sommeren, skal du bede skipper om at have is ombord, så kan du | I6: =+Opskrifter!BH82 -> * | J6: =+Opskrifter!BI82 -> Kontroller kødet med et stegetermometer.
C7: =+Opskrifter!R83 -> * | D7: =+Opskrifter!S83 -> Steg oksebøffer og oksestege i smør og/eller jomfru olivenolie. Det fremhæver kødsmagen bedst. | E7: =+Opskrifter!AF83 -> * | F7: =+Opskrifter!AG83 -> Hold fjerkræ og andre madvarer f. eks. grøntsager adskilt før og under tilberedningen. | H7: =+Opskrifter!AU83 -> fylde kurven med is og lægge dine fisk på køl.
E8: =+Opskrifter!AF84 -> * | F8: =+Opskrifter!AG84 -> Vask skærebrædt, kniv, bord og hænder grundigt efter håndtering af råt fjerkræ. | G8: =+Opskrifter!AT84 -> * | H8: =+Opskrifter!AU84 -> Åbne og rense fisken på fiskepladsen skal du kun gøre, hvis du straks efter hjemkomst | I8: =+Opskrifter!BH84 -> * | J8: =+Opskrifter!BI84 -> Er kernetemperaturen 70 - 72 grader kan du være på den sikre side sundhedsmæssigt.
C9: =+Opskrifter!R85 -> * | D9: =+Opskrifter!S85 -> Steg oksekød, der har fedtkant eller fedtmarmorering, med fedtet på. Det er nemlig fedtet, | E9: =+Opskrifter!AF85 -> * | F9: =+Opskrifter!AG85 -> Anvend ikke samme skærebrædt til fjerkræ og grøntsager. | H9: =+Opskrifter!AU85 -> tilbereder denne.
D10: =+Opskrifter!S86 -> der giver den ekstra gode kødsmag. Bagefter kan det evt. skæres af. | E10: =+Opskrifter!AF86 -> * | F10: =+Opskrifter!AG86 -> Brug rene karklude og viskestykker og skift dem hver dag. | H10: =+Opskrifter!AU86 -> Hvis den skal fryses, skal du først rense fisken derhjemme i rent vand fra den kolde hane. | I10: =+Opskrifter!BH86 -> * | J10: =+Opskrifter!BI86 -> For fuglevildt se også "Gode råd for fjerkræ".
H11: =+Opskrifter!AU87 -> Der kan komme bakterier i fisken, som gør den uspiselig, efter den er frosset.
C12: =+Opskrifter!R88 -> * | D12: =+Opskrifter!S88 -> Steg oksebøffer ved middel til kraftig varme, men undgå at stege dem så hårdt, | F12: =+Opskrifter!AG88 -> Den bedste måde at kontrollere om fjerkræ er gennemstegt, er ved at bruge et stegetermometer. | H12: =+Opskrifter!AU88 -> og optøet igen. På frost max 3 mdr. for ikke fede fisk, fede fisk mindre tid.
D13: =+Opskrifter!S89 -> så overfladen bliver sprød. | F13: =+Opskrifter!AG89 -> Temperaturen skal være mindst 75 grader. Fyldt fjerkræ skal også være gennemstegt. | G13: =+Opskrifter!AT89 -> * | H13: =+Opskrifter!AU89 -> Køber du dine fisk hos fiskehandleren, så se på gællerne om de er friske og røde.
H14: =+Opskrifter!AU90 -> Lugt til fisken, den må ikke lugte af "FISK", men af frisk havvand, hvis den kommer fra havet.
C15: =+Opskrifter!R91 -> * | D15: =+Opskrifter!S91 -> Lad både oksebøffer og oksestege hvile - færdigstegte og tildækkede - inden de serveres. | H15: =+Opskrifter!AU91 -> Køber du dine fisk på havnen ved de fiskerbåde, som kommer ind med fisk,
D16: =+Opskrifter!S92 -> Bøffer skal hvile 5-8 min. Stege 20-25 min. | H16: =+Opskrifter!AU92 -> så er du som regel sikker på friske fisk.
G17: =+Opskrifter!AT93 -> * | H17: =+Opskrifter!AU93 -> Fisk steges altid i smør og/eller jomfru olivenolie, det fremhæver fiskens smag.
H18: =+Opskrifter!AU94 -> Steg altid fisken ved middel varme, så den ikke branker og bliver hård.
H19: =+Opskrifter!AU95 -> Fisk må godt krydres med salt inden stegningen, samt andre krydderier efter eget ønske.
G20: =+Opskrifter!AT96 -> * | H20: =+Opskrifter!AU96 -> Fisken steges eller koges så rygbenet slipper fiskekødet uden noget hænger ved.
B21: Gode råd fra kokken: Jørgen Walter | D21: =+$B$21 -> Gode råd fra kokken: Jørgen Walter | F21: =+$B$21 -> Gode råd fra kokken: Jørgen Walter | H21: =+$B$21 -> Gode råd fra kokken: Jørgen Walter | J21: =+$B$21 -> Gode råd fra kokken: Jørgen Walter | L21: =+$B$21 -> Gode råd fra kokken: Jørgen Walter | N21: =+$B$21 -> Gode råd fra kokken: Jørgen Walter | P21: =+$B$21 -> Gode råd fra kokken: Jørgen Walter
